{"text_format":"1","workbook":"xlsx","n_sheets":15,"sheets":["Read Me ","Home","4 Outward","5 Outward","6 ITC availed","7 ITC Rev","8 Other ITC","9 Tax Paid","10 PY trans in current FY","14 Differential tax","15 Demand & Refunds","16 Comp DS & Goods sent on appr","17 HSN Outward","18 HSN Inward","Master"],"not_rendered":{"charts":0,"images":6,"macros":1,"external_links":1,"defined_names":12,"comments":0,"pivot_tables":0},"unopened":[],"bounds":{"document_bytes":16777216,"sheet_cells":100000,"rows_first":2000,"rows_last":500,"rows_between":2000,"halvings":0,"cell_chars":16384,"cell_head_chars":4096},"cells_cut":0,"cells_raw":0,"read":"whole","date_system":"1900"}

{"sheet":"Read Me ","index":0,"n_rows":90,"n_cols":5,"rows_kept":90,"cut":false,"hidden":false,"merged":[[8,1,8,8],[0,1,0,8],[2,1,2,8],[3,1,3,8],[5,1,5,8],[7,1,7,8],[26,1,26,8],[9,1,9,8],[12,1,12,8],[13,1,13,8],[15,1,15,8],[16,1,16,8],[18,1,18,8],[19,1,19,8],[21,1,21,8],[22,1,22,8],[24,1,24,8],[25,4,25,8],[27,1,39,1],[27,2,27,8],[28,2,39,2],[28,4,28,8],[29,4,29,8],[30,4,30,8],[31,4,31,8],[32,4,32,8],[33,4,33,8],[34,4,34,8],[35,4,35,8],[36,4,36,8],[37,4,37,8],[38,4,38,8],[39,4,39,8],[63,4,63,8],[62,4,62,8],[40,2,40,8],[41,2,49,2],[41,4,41,8],[42,4,42,8],[43,4,43,8],[44,4,44,8],[45,4,45,8],[46,4,46,8],[47,4,47,8],[49,4,49,8],[40,1,49,1],[57,4,57,8],[58,4,58,8],[59,4,59,8],[60,4,60,8],[48,4,48,8],[50,1,50,8],[51,1,63,1],[51,2,63,2],[51,4,51,8],[52,4,52,8],[53,4,53,8],[54,4,54,8],[55,4,55,8],[56,4,56,8],[61,4,61,8],[64,1,64,8],[65,4,65,8],[66,1,75,1],[66,2,75,2],[66,4,66,8],[67,4,67,8],[68,4,68,8],[69,4,69,8],[70,4,70,8],[81,3,81,8],[71,4,71,8],[72,4,72,8],[73,4,73,8],[74,4,74,8],[75,4,75,8],[76,3,76,8],[77,1,77,8],[78,1,80,1],[78,3,78,8],[79,3,79,8],[80,3,80,8],[88,3,88,8],[89,3,89,8],[82,1,82,8],[83,1,84,1],[83,2,84,2],[83,4,83,8],[84,4,84,8],[85,1,87,1],[85,2,87,2],[85,4,85,8],[86,4,86,8],[87,4,87,8]]}
[null," Goods and Services Tax - GST GSTR-9 Offline Tool (v1.5)"]
[]
[null,"Introduction to Excel based GSTR-9 offline tool"]
[null,"1. The Excel based GSTR-9 Offline Tool is designed to help taxpayer to prepare his GSTR-9 return offline"]
[]
[null,"2. Details for following Tables of GSTR-9 return can be added by taxpayer using the offline Tool. It is not Mandatory to fill data in all worksheets. The worksheet for which no details then need to be declared, it can be left blank. \n    4. Outward\n    5. Outward\n    6. ITC Availed\n    7. ITC Rev\n    8. Other ITC\n    9. Tax Paid\n   10. PY trans in current FY \n   14. Differential Tax\n   15. Demand & Refunds\n   16. Comp DS & Goods sent on appr\n   17.  HSN Outward\n   18. HSN Inward"]
[]
[null,"3. The Offline tool has following features in 'Home' sheet to help taxpayer in Return Preparation \n     a. Open Downloaded GSTR9 JSON File: To import records from downloaded JSON file. The details would be populated to respective table wise worksheets.Upon successful import of file the details would be \n         populated to respective table wise worksheets.    \n     b. Generate JSON File to Upload : To generate JSON file for upload of GSTR-9 return details prepared offline on GST portal\n     c. Open downloaded error JSON file : To open file downloaded from GST portal from the ‘Processed with error’ link. The downloaded zipped folder consists of two JSON files. Unzip the file and use this button to\n         open both the JSON files together in a single click by selecting both the files. Upon successful import of both the files both the details processed with errors and successfully would be populated to \n         respective table wise worksheets. Please refer ‘Handling Error’ section for details \n      d.Validate Sheet: To Validate the data entered in respective worksheet of this offline Tool. Successful validation is notified to Taxpayer via pop-up while on failure of validation the cells that fail \n           validation would be marked in Red.               \n    "]
[]
[null,"4. The high level process flow for GSTR-9 return preparation is as follows  \n     a. Validate the details filled in various  tables using 'validate' button at the top of every sheet.\n     b. Generate JSON using 'Generate JSON File to Upload' option\n     c. Upload the generated JSON on GST Portal. Preview the details uploaded and File return on the GST portal\n     d. Open saved version (Yes/No):- If you select 'No' option then previously saved data not visible and if you select 'Yes' then saved data will be available in the respective worksheets"]
[]
[]
[null,"Preparing GSTR-9 return Using Offline Tool "]
[null,"1. Please ensure you download the latest version of  GSTR-9 Offline Tool from the GST portal. https://www.gst.gov.in/download/returns\n2. Launch the GSTR-9 Excel based Offline Tool a pop up (Open saved version - Yes/No) would appear and navigate to worksheet named 'Home'\n    a. On click of 'Yes' any previously saved data in the offline tool will be available.    \n    b. On click of 'No' any data previously saved data in the offline tool will be lost and you can't recover the data.\n3. Enter your GSTIN in home sheet. Entered GSTIN would be validated only for correct structure.\n4. Select the applicable Financial Year from the drop-down. It is a mandatory field.\n5. Select the AATO of applicable Previous Year from the drop-down. It is a mandatory field.\n6.Download GSTR-9 JSON file from GST portal after logging in to the portal from 'Prepare Offline' section of GSTR-9 tile.\n7. Open downloaded  GSTR-9 JSON file in to the Offline tool. JSON file can't be generated from Offline tool until GSTR-9 JSON file downloaded from the portal has been opened in the Offline tool. \n8. Auto drafted details shall be populated in respective work sheets. \n9. Enter additional details/edit auto drafted details as applicable in various worksheets. It is not Mandatory to fill data in all worksheets. The worksheet for which no details need to be declared can be left blank.\n10. Click Validate Sheet to check the status of validation. In case of validation failure; please check for cells that have failed validation and correct errors as per help text.\n11.Click on 'Generate JSON File to Upload ' to generate JSON file for upload of GSTR-9 return details prepared offline on GST portal.   "]
[]
[null,"Steps for uploading prepared GSTR-9 JSON file on GST portal"]
[null,"1. Login to GST Portal and select 'Returns Dashboard'.\n2. Select applicable Financial Year and click on \"Prepare Offline\" option in \"Annual Return\" tile/Box.\n3. Upload the JSON prepared using offline Tool using upload option in the return dashboard.\n4. The uploaded JSON file would be validated and processed. \n5. In case of validation failure upon processing ; errors if any would be shown on portal.\n6. Post successful upload of data on GST portal ; Taxpayer to Preview the form and file GSTR-9.\n\nNotes :\nYou may download the records successfully processed on GST portal anytime by navigating to 'Services > Returns > Annual Return >  Financial Year > Search > Prepare Offline > Download'. On click of download a JSON file would be available for download in about 20 Mins. The downloaded JSON file may be opened in Offline Tool using ‘Open Downloaded GSTR-9 JSON File' to view/ edit/update details. Post update of details create JSON to upload on GST portal."]
[]
[null," Error File Handling"]
[null,"1. In case of validation failure of one or more details upon processing of uploaded JSON file; the upload status would be updated as 'Processed with Error'.\n2. A link would be available to download a Zipped Error file beside the ‘Processed with Error’ status.\n3. Download the Zipped Error File and save on your system.\n4. Now click on the button \"Open Downloaded Error JSON files\" to open a file dialog box.\n5. Select both the files from the unzipped folder and click on \"Open\".\n6. A message saying \"Error Files successfully Opened\" upon successful opening of files in Offline tool. A pop-up message with work sheets name with error would be shown. \n7. Please navigate to each worksheets and ensure all records from both the files have been successfully opened in Tool.\n8. Correct errors in records with error text in column ‘GST Portal Validation Errors’ in each worksheet. \n9. Validate the sheets again post making corrections. \n10. Click on 'Generate summary' to update the summary post details have been successfully validated for each worksheet. \n11. Click on 'Generate JSON File to upload' to generate JSON file for upload of GSTR-9 return details prepared offline on GST portal.\n12. Follow steps mentioned in GSTR-9 JSON upload on GST Portal section to file GSTR-9."]
[]
[null," For Issues with Persistent Comments In Cells"]
[null,"1. If the comments in cells are persistent then the following steps are to be followed:\n    a. Go to File -> Options\n    b. Select Advanced from the options pane in the left.\n    c. Here go to \"Display\" tab.\n    d. In the options for \"For cells with comments, show\", select \"Indicators only, and comments on hover\"."]
[]
[null,"GSTR 9 Data Entry Instruction"]
[null,"Worksheet Name","GSTR-9 Table Reference","Field Name","Help Instruction"]
[null,"PT. II Details of Outward and inward supplies made during the financial year "]
[null,"4. Outward","Taxpayer has to import the JSON file in to offline tool to check the auto filled details in Table no. 4(A) to 4(G) and Table no. 4(I) to 4(L) of GSTR 9 based on the supplies reported during the relevant financial year in GSTR-1. However, the auto filled details can be edited. If you have edited/modified any auto filled value, then that value shall be considered as final after successful uploading of JSON file on to portal"]
[null,null,"4.Details of advances, inward and outward supplies made during the financial year on which tax is payable ","4A. Supplies made to un-registered persons (B2C)","1. Aggregate value of supplies made to unregistered persons (B2C supplies) on which tax has been paid shall be declared here. These will include details of supplies made to unregistered persons/consumers through E-Commerce operators, if any.\n2. Details are to be declared as net of credit notes or debit notes issued during the Financial Year.\n3. Table 5, Table 7 along with respective amendments in Table 9 and Table 10 of FORM GSTR-1 may be used for filling up these details. This table shall be auto filled based on the outward supplies reported in GSTR-1.\n"]
[null,null,null,"4B. Supplies made to registered persons (B2B)","1. Aggregate value of supplies made to registered persons on which tax has been paid shall be declared. \n2. These will include supplies made through E-Commerce operators but shall not include supplies on which tax is to be paid by the recipient on reverse charge basis. \n3. Details of debit and credit notes are to be mentioned separately. Table 4A of FORM GSTR-1 may be used for filling up these details."]
[null,null,null,"4C. Zero rated supply (Export) on payment of tax (except supplies to SEZs)","Aggregate value of exports (except supplies made to SEZs) on which tax has been paid shall be declared here. Table 6A of FORM GSTR-1 may be used for filling up these details."]
[null,null,null,"4D. Supply made to SEZs on payment of tax","Aggregate value of supplies made to SEZs on which tax has been paid shall be declared here. Table 6B of GSTR-1 may be used for filling up these details."]
[null,null,null,"4E. Deemed Exports","Aggregate value of supplies which are in the nature of deemed exports on which tax has been paid shall be declared here. Table 6C of FORM GSTR-1 may be used for filling up these details."]
[null,null,null,"4F. Advances on which tax has been paid but invoice has not been issued (not covered under (A) to (E) above)","Details of all unadjusted advances i.e. advance has been received and tax has been paid but invoice has not been issued in the current year shall be declared here. Table 11A of FORM GSTR-1 may be used for filling up these details."]
[null,null,null,"4G. Inward supplies on which tax is to be paid on reverse charge basis","1. Aggregate value of all inward supplies (including advances and net of credit and debit notes) on which tax is to be paid by the recipient (i.e.by the person filing the annual return) on reverse charge basis. \n2. This shall include supplies received from registered persons and unregistered persons on which tax is levied on reverse charge basis. This shall also include aggregate value of all import of services. Table 3.1(d) of FORM GSTR-3B may be used for filling up these details."]
[null,null,null,"4H. Sub-total (A to G above)","This field shall be auto calculated"]
[null,null,null,"4I. Credit Notes issued in respect of transactions specified in (B) to (E) above (-)","Aggregate value of credit notes issued in respect of B to B supplies (4B), exports (4C), supplies to SEZs (4D) and deemed exports (4E) shall be declared here. Table 9B of FORM GSTR-1 may be used for filling up these details. Taxpayer can report the values in table 4B to 4E as net of credit notes in case of any difficulty in reporting the same separately."]
[null,null,null,"4J. Debit Notes issued in respect of transactions specified in (B) to (E) above (+)","Aggregate value of debit notes issued in respect of B to B supplies (4B), exports (4C), supplies to SEZs (4D) and deemed exports (4E) shall be declared here. Table 9B of FORM GSTR-1 may be used for filling up these details. Taxpayer can report the values in table 4B to 4E as net of debit notes in case of any difficulty in reporting the same separately."]
[null,null,null,"4K.  Supplies / tax declared through Amendments (+).\n4L. Supplies / tax reduced through Amendments (-)","Details of amendments made to B to B supplies (4B), exports (4C), supplies to SEZs (4D) and deemed exports (4E), credit notes (4I), debit notes (4J) and refund vouchers shall be declared here. Table 9A and Table 9C of FORM GSTR-1 may be used for filling up these details. Taxpayer can report the values in table 4B to 4E as net of amendments in case of any difficulty in reporting the same separately."]
[null,null,null,"4M. Sub-total (I to L above)\n4N. Supplies and advances on which tax is to be paid (H + M) above","This field shall be auto calculated"]
[null,"5. Outward","Taxpayer has to import the JSON file in to offline tool to check the auto filled details in table no 5 of GSTR-9 based on the supplies reported GSTR-1s of  relevant financial year. However, you may edit the auto filled details. If you have edited/modified any auto filled value, then that value shall be considered as final after successful uploading of JSON file on to portal"]
[null,null,"5. Details of Outward supplies made during the financial year on which tax is not payable ","5A. Zero rated supply (Export) without payment of tax","1. Aggregate value of exports (except supplies to SEZs) on which tax has not been paid shall be declared here. \n2. Table 6A of FORM GSTR-1 may be used for filling up these details."]
[null,null,null,"5B. Supply to SEZs without payment of tax","1. Aggregate value of supplies to SEZs on which tax has not been paid shall be declared here. \n2. Table 6B of GSTR-1 may be used for filling up these details."]
[null,null,null,"5C. Supplies on which tax is to be paid by the recipient on reverse charge basis","1. Aggregate value of supplies made to registered persons on which tax is payable by the recipient on reverse charge basis. Details of debit and credit notes are to be mentioned separately. \n2. Table 4B of FORM GSTR-1 may be used for filling up these details."]
[null,null,null,"5D, 5E & 5F. Exempted, Nil Rated and Non -GST Supplies (including ‘no supply’)","1. Aggregate value of Exempted, Nil Rated and Non-GST supplies shall be declared here. \n2. Table 8 of FORM GSTR-1 may be used for filling up these details. The value of “no supply” shall also be declared here."]
[null,null,null,"5G. Sub-total (A to F above)","This field shall be auto calculated"]
[null,null,null,"5H. Credit Notes issued in respect of transactions specified  in A to F above (-)","1. Aggregate value of credit notes issued in respect of supplies declared in 5A, 5B, 5C, 5D, 5E and 5F shall be declared here. \n2. Table 9B of FORM GSTR-1 may be used for filling up these details.\n3. Taxpayer can report the values in table 5A to 5F as net of credit notes in case of any difficulty in reporting the same separately."]
[null,null,null,"5I. Debit Notes issued in respect of transactions specified  in A to F above (+)","1. Aggregate value of debit notes issued in respect of supplies declared in 5A, 5B, 5C, 5D, 5E and 5F shall be declared here. \n2. Table 9B of FORM GSTR-1 may be used for filling up these details.\n3. Taxpayer can report the values in table 5A to 5F as net of debit notes in case of any difficulty in reporting the same separately."]
[null,null,null,"5J.  Supplies declared through Amendments (+)\n5K. Supplies reduced through Amendments (-)","1. Details of amendments made to exports (except supplies to SEZs) and supplies to SEZs on which tax has not been paid shall be declared here. Table 9A and Table 9C of FORM GSTR-1 may be used for filling up these details.\n2. Taxpayer can report the values in table 5A to 5F as net of amendments in case of any difficulty in reporting the same separately."]
[null,null,null,"5L. Sub-Total (H to K above)\n5M. Turnover on which tax is not to be paid  (G + L above).\n5N. Total Turnover (including advances) (4N + 5M - 4G above)","These fields shall be auto calculated."]
[null,"Pt. III Details of ITC for the financial year"]
[null,"6. ITC availed","6A. Details of ITC availed during the financial year","6A. Total amount of input tax credit availed through FORM GSTR-3B (sum total of Table 4A of FORM GSTR-3B) ","1. Total input tax credit availed in Table 4A of FORM GSTR-3B by the taxpayer would be auto-populated here.\n2. This field is Non-editable. Taxpayer shall import the JSON file in to offline tool to check the total amount of input tax credit availed through Form GSTR 3B.\n3. Taxpayer shall import the JSON file to check the auto filled details in table no 6A."]
[null,null,null,"6B. Inward supplies (other than imports and inward supplies liable to reverse charge but includes services received from SEZs)","1. Aggregate value of ITC availed on all inward supplies except those on which tax is payable on reverse charge basis but includes supply of services received from SEZs shall be declared here. It may be noted that the total ITC availed may be classified as ITC on inputs, capital goods and input services. \n2. Table 4(A)(5) of FORM GSTR-3B may be used for filling up these details. This shall not include ITC which was availed, reversed and then reclaimed in the ITC ledger. This is to be declared separately under 6(H)."]
[null,null,null,"6C. Inward supplies received from unregistered persons liable to reverse charge (other than B above) on which tax is paid & ITC availed ","1. Aggregate value of input tax credit availed on all inward supplies received from unregistered persons (other than import of services) on which tax is payable on reverse charge basis shall be declared here. It may be noted that the total ITC availed may be classified as ITC on inputs, capital goods and input services. \n2. Table 4(A)(3) of FORM GSTR-3B may be used for filling up these details "]
[null,null,null,"6D. Inward supplies received from registered persons liable to reverse charge (other than B above) on which tax is paid and ITC availed ","1. Aggregate value of input tax credit availed on all inward supplies received from registered persons on which tax is payable on reverse charge basis shall be declared here. It may be noted that the total ITC availed may be classified as ITC on inputs, capital goods and input services. \n2. Table 4(A)(3) of FORM GSTR-3B may be used for filling up these details."]
[null,null,null,"6E. Import of goods (including supplies from SEZs)","1. Details of input tax credit availed on import of goods including supply of goods received from SEZs shall be declared here. It may be noted that the total ITC availed may be classified as ITC on inputs and capital goods.\n2. Table 4(A)(1) of FORM GSTR-3B may be used for filling up these details"]
[null,null,null,"6F. Import of services (excluding inward supplies from SEZs)","1. Details of input tax credit availed on import of services (excluding inward supplies from SEZs) shall be declared here. \n2. Table 4(A)(2) of FORM GSTR3B may be used for filling up these details"]
[null,null,null,"6G. Input Tax credit received from ISD","1. Aggregate value of input tax credit received from input service distributor shall be declared here. \n2. Table 4(A)(4) of FORM GSTR-3B may be used for filling up these details."]
[null,null,null,"6H. Amount of ITC reclaimed (other than B above) under the provisions of the Act","Aggregate value of input tax credit availed, reversed and reclaimed under the provisions of the Act shall be declared here"]
[null,null,null,"6I. Sub-total (B to H above)\n6J. Difference (I - A above)","These fields shall be auto calculated."]
[null,null,null,"6K. Transition Credit through TRAN-I (including revisions if any)","Details of transition credit received in the electronic credit ledger on filing of FORM GST TRAN-I including revision of thereof (whether upwards or downwards), if any shall be declared here. This field shall be auto filled based on the credit availed through Tran 1. However this field is allowed for edit."]
[null,null,null,"6L. Transition Credit through TRAN-II","Details of transition credit received in the electronic credit ledger after filing of FORM GST TRAN-2 shall be declared here. This field shall be auto filled based on the credit availed through Tran 2. However this field is allowed for edit."]
[null,null,null,"6M. Any other ITC availed but not specified above ","Details of ITC availed but not covered in any of heads specified under 6B to 6L above shall be declared here. Details of ITC availed through FORM ITC-01 and FORM ITC-02 in the financial year shall be declared here."]
[null,null,null,"6N. Sub-total (K to M  above)\n6O. Total ITC availed (I +  N above)","These fields shall be auto calculated."]
[null,"Pt. IV Details of tax paid as declared in returns filed during the financial year"]
[null,"7. ITC Rev","7. Details of ITC Reversed and Ineligible ITC for the financial year","Table no 7A to 7H","1. Details of input tax credit reversed due to ineligibility or reversals required under rule 37, 39, 42 and 43 of the CGST/SGST Rules, 2017 shall be declared here. \n2. This column should also contain details of any input tax credit reversed under section 17(5) of the CGST/SGST Act, 2017 and details of ineligible transition credit claimed through FORM GST TRAN-1 or FORM GST TRAN-2 and then subsequently reversed. \n3. Table 4(B) of FORM GSTR-3B may be used for filling up these details. Any ITC reversed through FORM GST ITC -03 shall be declared in 7H. If taxpayer wants to specify more reversals then he can click on '+' symbol to add more rows.\n4. If the amount stated in Table 4D of FORM GSTR-3B was not included in table 4A of FORM GSTR-3B, then no entry should be made in table 7E of FORM GSTR-9. However, if amount mentioned in table 4D of FORM GSTR-3B was included in table 4A of FORM GSTR-3B, then entry will come in 7E of FORM GSTR-9."]
[null,"8. Other ITC","8. Other ITC related information","8A. ITC as per GSTR-2A (Table 3 & 5 thereof)","1. The total credit available for inwards supplies (other than imports and inwards supplies liable to reverse charge but includes services received from SEZs) received during the relevant Financial Year and reflected in FORM GSTR-2A (table 3 & 5 only) shall be auto-populated in this table. \n2. This would be the aggregate of all the input tax credit that has been declared by the corresponding suppliers in their FORM GSTR-1\n3. This field shall be auto-filled based on your GSTR-2A and the same is not allowed for Edit.\n4. Taxpayer shall import the JSON file to check the auto filled details in table no 6A."]
[null,null,null,"8B. ITC as per sum total of 6(B) and 6(H) above","The input tax credit as declared in Table 6B and 6H shall be auto-populated here and the same shall not be allowed to be edited.. If you want to make any changes then you need to do it in table no. 6B and 6H"]
[null,null,null,"8C. ITC on inward supplies (other than imports and inward supplies liable to reverse charge but includes services received from SEZs) received during the financial year but availed in the next financial year upto specified period","1. Aggregate value of input tax credit availed on all inward supplies (except those on which tax is payable on reverse charge basis but includes supply of services received from SEZs) received during the Financial Year but credit on which was availed in the next financial year upto specified period..\n2. Table 4(A)(5) of FORM GSTR-3B may be used for filling up these details."]
[null,null,null,"8D. Difference [A-(B+C)] ","This field shall be auto calculated"]
[null,null,null,"8E. ITC available but not availed \n8F. ITC available but ineligible","1. The credit which was available and not availed in FORM GSTR-3B and the credit was not availed in FORM GSTR-3B as the same was ineligible shall be declared here. Ideally, if 8D is positive, the sum of 8E and 8F shall be equal to 8D."]
[null,null,null,"8G. IGST paid on import of goods (including supplies from SEZ) ","Aggregate value of IGST paid at the time of imports (including imports from SEZs) during the financial year shall be declared here"]
[null,null,null,"8H. IGST credit availed on import of goods (as per 6(E) above)","The input tax credit as declared in Table 6E shall be auto-populated here and the same is not allowed for edit. If taxpayer wants to change the credit availed on import of goods, then he shall make changes in table no 6E."]
[null,null,null,"8I. Difference (G-H)","This field shall be auto calculated"]
[null,null,null,"8J. ITC available but not availed on import of goods (Equal to I) ","This field shall be auto calculated. If taxpayer wants to make any change in this field, then he shall make changes in table no 8G and 6E"]
[null,null,null,"8K. Total ITC to be lapsed in current financial year (E + F + J)","The total input tax credit which shall lapse for the current financial year shall be computed (auto filled) in this row"]
[null,"9. Tax Paid","9. Details of tax paid as declared in returns filed during the financial year","1. Actual tax (including Interest, Late fee, Penalty, Others) paid through cash or ITC during the financial year shall be declared year. \n2. Payment of tax under Table 6.1 of FORM GSTR-3B may be used for filling up these details.\n3. Paid through Cash and Paid through ITC columns shall be auto filled based on table no 6.1 of GSTR -3B and the same is non-editable\n"]
[null,"Pt. V Particulars of the transactions for the financial year declared in returns of the next financial year till the specified period"]
[null,"10. PY trans in current FY\n","10. Supplies / tax declared through Amendments (+) (net of debit notes)\n11. Supplies / tax reduced through Amendments (-) (net of credit notes)","Details of additions or amendments to any of the supplies already declared in the returns of the previous financial year but such amendments were furnished in Table 9A, Table 9B and Table 9C of FORM GSTR-1 in the current financial year upto the specified period."]
[null,null,"12. Reversal of ITC availed during previous financial year","1. Aggregate value of reversal of ITC which was availed in the previous financial year but reversed in returns filed in the current financial year upto the specified period shall be declared here.\n2.  Table 4(B) of FORM GSTR-3B may be used for filling up these details.tails.\n"]
[null,null,"13. ITC availed for the previous financial year","1. Details of ITC for goods or services received in the previous financial year but ITC for the same was availed in returns filed in the current financial year upto the specified period shall be declared here. \n2. Table 4(A) of FORM GSTR-3B may be used for filling up these details"]
[null,"14. Differential tax","14. Differential tax paid on account of declaration in 10 & 11 above","Differential tax (including Interest) paid on account of transactions related to the previous financial year but declared in the returns filed in the current financial year shall be reported in this table"]
[null,"Pt. VI Other Information "]
[null,"15. Demand & Refund","15. Particulars of Demands and Refunds ","15A to 15D","1. Aggregate value of refunds claimed, sanctioned, rejected and pending for processing shall be declared here. \n2. Refund claimed will be the aggregate value of all the refund claims filed in the financial year and will include refunds which have been sanctioned, rejected or are pending for processing. \n3. Refund sanctioned means the aggregate value of all refund sanction orders. \n4. Refund pending will be the aggregate amount in all refund application for which acknowledgement has been received and will exclude provisional refunds received. These will not include details of non-GST refund claims.\n5. This table is optional."]
[null,null,null,"15E to 15G","1. Aggregate value of demands of taxes for which an order has been issued by the adjudicating authority shall be declared here. \n2. Aggregate value of taxes paid out of the total value of demand as declared in 15E above shall be declared here. \n3. Aggregate value of demands pending recovery out of 15E above shall be declared here.\n4. This table is optional."]
[null,"16. Comp DS & Goods sent on appr","16. Information on supplies received from composition taxpayers, deemed supply under section 143 and goods sent on approval basis","16A. Supplies received from Composition taxpayers","1. Aggregate value of supplies received from composition taxpayers shall be declared here\n2. Table 5 of FORM GSTR-3B may be used for filling up these details"]
[null,null,null,"16B. Deemed supply  under Section 14","Aggregate value of all deemed supplies from the principal to the job-worker in terms of sub-section (3) and sub-section (4) of Section 143 of the CGST Act shall be declared here"]
[null,null,null,"16C. Goods sent on approval basis but not returned","Aggregate value of all deemed supplies for goods which were sent on approval basis but were not returned to the principal supplier within one hundred eighty days of such supply shall be declared here"]
[null,"17. HSN Outward","17. HSN Wise Summary of outward supplies ","1.Summary of outward supplies made against a particular HSN code to be reported in this table. \n2. Quantity is to be reported net of returns (sold but returned). \n3. Table 12 of FORM GSTR-1 may be used for filling up details in Table 17.\n4. HSN code field is always user input in offline tool. However, at the time of clicking on Validate sheet, tool shall validate the HSN code details with Master\n5. This table is mandatory for taxpayers with B2B supplies and/or taxpayers having AATO in the previous year more than Rs. 5 cr.\n6. 4/6/8-digit HSN codes to be reported by taxpayers having AATO upto Rs.5 cr and having B2B supplies.\n7. 6/8-digit HSN codes to be reported by taxpayers having AATO more than Rs. 5 cr."]
[null,"18. HSN Inward","18. HSN Wise Summary of Inward supplies ","1. Summary of supplies received against a particular HSN code to be reported only in this table. \n2. Quantity is to be reported net of returns (purchased but returned). \n3.HSN code field is always user input in offline tool. However, at the time of clicking on Validate sheet, tool shall validate the HSN code details with Master\n4. This table is optional."]

{"sheet":"Home","index":1,"n_rows":13,"n_cols":5,"rows_kept":13,"cut":false,"hidden":false,"merged":[[11,1,11,9],[12,1,14,9],[8,1,10,9],[0,1,2,9],[4,1,4,2],[5,1,5,2],[6,1,6,2],[4,4,6,9]]}
[null,"                      Goods and Services Tax - GST GSTR-9 Offline Tool (v1.5)"]
[]
[]
[]
[null,"GSTIN *",null,"Financial Year \n(YYYY-YY) *","      Please Note : Fields marked with * (red asterisk) are mandatory fields and need to be filled up"]
[null,"gstin",null,"rety"]
[]
[]
[]
[]
[]
[null,"Error File Handling"]
[null,"In case of error(s) in the GSTR-9 data uploaded, GST Portal will generate an error file (in .Zip format)\n\nSteps to correct errors and upload Revised GSTR-9 return data on GST Portal\n     1) Download the Error file  ( returns_<Date>_R9_<GSTIN>_errorReport.json ) with records processed with error on GST Portal and save on your system \n     2) Now click on the button \"Open Downloaded Error JSON files\" to the right. \n     3) Select the error file;you will get a succesfull message saying \"Error Report successfully imported\".\n     4) Correct errors in records with error text in column ‘GST Portal Validation Errors’ in each worksheet\n     5) Generate JSON to upload your revised data on GST-portal\n"]

{"sheet":"4 Outward","index":2,"n_rows":20,"n_cols":11,"rows_kept":20,"cut":false,"hidden":false,"merged":[[17,2,17,4],[18,2,18,4],[19,2,19,4],[13,2,13,4],[14,2,14,4],[15,2,15,4],[3,10,4,10],[0,1,1,10],[2,1,2,10],[5,2,5,10],[16,2,16,4],[11,2,11,4],[12,2,12,4],[3,6,3,9],[3,5,4,5],[3,1,4,4],[6,2,6,4],[7,2,7,4],[8,2,8,4],[9,2,9,4],[10,2,10,4]]}
[null,"Goods and Services Tax - GST GSTR-9 Offline Tool (v1.5)"]
[]
[null,"Pt II. Details of  outward  and inward supplies  made during the financial year\n\n\n"]
[null,"Nature of Supplies",null,null,null,"Taxable Value (₹)","(Amount in ₹ in all tables)",null,null,null,"Sheet Validation Errors"]
[null,null,null,null,null,null,"Central Tax","State Tax / UT Tax","Integrated Tax","Cess"]
[null,4,"Details of advances, inwards and outward supplies made during the financial year on which tax is payable"]
[null,"A","Supplies made to un-registered persons (B2C) "]
[null,"B","Supplies made to registered persons (B2B)"]
[null,"C","Zero rated supply (Export) on payment of tax (except supplies to SEZs)"]
[null,"D","Supply to SEZs on payment of tax"]
[null,"E","Deemed Exports"]
[null,"F","Advances on which tax has been paid but invoice has not been issued (not covered under (A) to (E) above)"]
[null,"G","Inward supplies on which tax is to be paid on reverse charge basis"]
[null,"H","Sub-total (A to G above)",null,null,{"$f":"SUM(F7:F13)","v":0},{"$f":"SUM(G7:G13)","v":0},{"$f":"SUM(H7:H13)","v":0},{"$f":"SUM(I7:I13)","v":0},0]
[null,"I","Credit Notes issued in respect of transactions specified in (B) to (E) above (-)"]
[null,"J","Debit Notes issued in respect of transactions specified in (B) to (E) above (+)"]
[null,"K","Supplies / tax declared through Amendments (+)"]
[null,"L","Supplies / tax reduced through Amendments (-)"]
[null,"M","Sub-total (I to L above)",null,null,{"$f":"F16+F17-F15-F18","v":0},{"$f":"G16+G17-G15-G18","v":0},0,0,0]
[null,"N","Supplies and advances on which tax is to be paid (H + M) above",null,null,{"$f":"F14+F19","v":0},{"$f":"G14+G19","v":0},0,0,0]

{"sheet":"5 Outward","index":3,"n_rows":20,"n_cols":9,"rows_kept":20,"cut":false,"hidden":false,"merged":[[5,2,5,8],[3,1,4,2],[3,3,4,3],[3,4,3,7],[0,1,1,8],[2,1,2,8],[3,8,4,8]]}
[null,"Goods and Services Tax - GST GSTR-9 Offline Tool (v1.5)"]
[]
[null,"Pt II. Details of  outward  and inward supplies  made during the financial year\n\n\n"]
[null,"Nature of Supplies",null,"Taxable Value (₹)","(Amount in ₹ in all tables)",null,null,null,"Sheet Validation Errors"]
[null,null,null,null,"Central Tax","State Tax / UT Tax","Integrated Tax","Cess"]
[null,5,"Details of Outward supplies made during the financial year on which tax is not payable"]
[null,"A","Zero rated supply (Export) without payment of tax"]
[null,"B","Supply to SEZs without payment of tax"]
[null,"C","Supplies on which tax is to be paid by recipient on reverse charge basis"]
[null,"D","Exempted "]
[null,"E","Nil Rated "]
[null,"F","Non-GST supply (includes 'no supply' ) "]
[null,"G","Sub-total (A to F above)",{"$f":"SUM(D7:D12)","v":0}]
[null,"H","Credit Notes issued in respect of transactions specified in A to F above (-)"]
[null,"I","Debit Notes issued in respect of transactions specified in A to F above (+)"]
[null,"J","Supplies declared through Amendments (+)"]
[null,"K","Supplies reduced through Amendments (-)"]
[null,"L","Sub-Total (H to K above)",{"$f":"D15+D16-D14-D17","v":0}]
[null,"M","Turnover on which tax is not to be paid  (G + L) above",{"$f":"D13+D18","v":0}]
[null,"N","Total Turnover (including advances) (4N + 5M - 4G) above",0,0,0,0,0]

{"sheet":"6 ITC availed","index":4,"n_rows":28,"n_cols":9,"rows_kept":28,"cut":false,"hidden":false,"merged":[[25,2,25,3],[27,2,27,3],[19,2,19,3],[6,2,6,3],[7,1,9,1],[7,2,9,2],[26,2,26,3],[20,2,20,3],[10,1,12,1],[10,2,12,2],[13,1,15,1],[13,2,15,2],[16,1,17,1],[16,2,17,2],[18,2,18,3],[21,2,21,3],[22,2,22,3],[23,2,23,3],[24,2,24,3],[0,1,1,8],[2,1,2,8],[3,8,4,8],[5,2,5,8],[3,3,4,3],[3,1,4,2],[3,4,3,7]]}
[null,"Goods and Services Tax - GST GSTR-9 Offline Tool (v1.5)"]
[]
[null,"Pt III. Details of ITC for the financial year\n\n"]
[null,"Description",null,"Type","(Amount in ₹ in all tables)",null,null,null,"Sheet Validation Errors"]
[null,null,null,null,"Central Tax","State Tax / UT Tax","Integrated Tax","Cess"]
[null,6,"Details of ITC availed during the financial year"]
[null,"A","Total amount of input tax credit availed through FORM GSTR-3B (Sum total of table 4A of FORM GSTR-3B)"]
[null,"B","Inward supplies (other than imports and inward supplies liable to reverse charge but includes services received from SEZs)","Inputs"]
[null,null,null,"Capital Goods"]
[null,null,null,"Input Services"]
[null,"C","Inward supplies received from unregistered persons liable to reverse charge  (other than B above) on which tax is paid & ITC availed","Inputs"]
[null,null,null,"Capital Goods"]
[null,null,null,"Input Services"]
[null,"D","Inward supplies received from registered persons liable to reverse charge (other than B above) on which tax is paid and ITC availed","Inputs"]
[null,null,null,"Capital Goods"]
[null,null,null,"Input Services"]
[null,"E","Import of goods (including supplies from SEZ)","Inputs"]
[null,null,null,"Capital Goods"]
[null,"F","Import of services (excluding inward supplies from SEZs)"]
[null,"G","Input Tax  credit received from ISD"]
[null,"H","Amount of ITC reclaimed (other than B above) under the provisions of the Act"]
[null,"I","Sub-total (B to H above)",null,{"$f":"SUM(E8:E21)","v":0},{"$f":"SUM(F8:F21)","v":0},0,0]
[null,"J","Difference (I - A) above",null,{"$f":"E22-E7","v":0},{"$f":"F22-F7","v":0},0,0]
[null,"K","Transition Credit through TRAN-1 (including revisions if any)"]
[null,"L","Transition Credit through TRAN-2"]
[null,"M","Any other ITC availed but not specified above"]
[null,"N","Sub-total (K to M above)",null,{"$f":"SUM(E24:E26)","v":0},{"$f":"SUM(F24:F26)","v":0},0,0]
[null,"O","Total ITC availed (I + N) above",null,{"$f":"E22+E27","v":0},{"$f":"F22+F27","v":0},0,0]

{"sheet":"7 ITC Rev","index":5,"n_rows":16,"n_cols":8,"rows_kept":16,"cut":false,"hidden":false,"merged":[[5,2,5,7],[3,3,3,6],[3,1,4,2],[0,1,1,7],[2,1,2,7],[3,7,4,7]]}
[null,"Goods and Services Tax - GST GSTR-9 Offline Tool (v1.5)"]
[]
[null,"Pt III. Details of ITC for the financial year\n\n\n"]
[null,"Details",null,"(Amount in ₹ in all tables)",null,null,null,"Sheet Validation Errors"]
[null,null,null,"Central Tax","State Tax / UT Tax","Integrated Tax","Cess"]
[null,7,"Details of ITC Reversed and  Ineligible ITC for the financial year"]
[null,"A","As per Rule 37"]
[null,"B","As per Rule 39"]
[null,"C","As per Rule 42"]
[null,"D","As per Rule 43"]
[null,"E","As per section 17(5)"]
[null,"F","Reversal of TRAN-I credit"]
[null,"G","Reversal of TRAN-II credit"]
[null,"H1","Other reversals(specify)"]
[null,"I","Total ITC Reversed (Sum of A to H above)",{"$f":"SUM(D7:D14)-D11","v":0},{"$f":"SUM(E7:E14)-E11","v":0},{"$f":"SUM(F7:F14)-F11","v":0},{"$f":"SUM(G7:G14)-G11","v":0}]
[null,"J","Net ITC Available for Utilization (6O - 7I)",0,0,0,0]

{"sheet":"8 Other ITC","index":6,"n_rows":17,"n_cols":8,"rows_kept":17,"cut":false,"hidden":false,"merged":[[5,2,5,7],[3,7,4,7],[3,3,3,6],[3,1,4,2],[0,1,1,7],[2,1,2,7]]}
[null,"Goods and Services Tax - GST GSTR-9 Offline Tool (v1.5)"]
[]
[null,"\nPt III. Details of ITC for the financial year\n\n\n"]
[null,"Details",null,"(Amount in ₹ in all tables)",null,null,null,"Sheet Validation Errors"]
[null,null,null,"Central Tax","State Tax / UT Tax","Integrated Tax","Cess"]
[null,8,"Other ITC related information"]
[null,"A","ITC as per GSTR-2A (Table 3 & 5 thereof)"]
[null,"B","ITC as per sum total 6(B) and 6(H)  above",0,0,0,0]
[null,"C","ITC on inward supplies (other than imports and inward supplies liable to reverse charge but includes services received from SEZs) received during the financial year but availed in the next financial year upto specified period"]
[null,"D","Difference [A-(B+C)]",{"$f":"D7-D8-D9","v":0},{"$f":"E7-E8-E9","v":0},0,0]
[null,"E","ITC available but not availed"]
[null,"F","ITC available but ineligible"]
[null,"G","IGST paid  on import of goods (including supplies from SEZ)"]
[null,"H","IGST credit availed on import of goods (as per 6(E) above)",0,0,0,0]
[null,"I","Difference (G-H)",{"$f":"D13-D14","v":0},{"$f":"E13-E14","v":0},0,0]
[null,"J","ITC available but not availed on import of goods (Equal to I)",{"$f":"D15","v":0},{"$f":"E15","v":0},0,0]
[null,"K","Total ITC to be lapsed in current financial year (E + F + J)",{"$f":"D11+D12+D16","v":0},{"$f":"E11+E12+E16","v":0},0,0]

{"sheet":"9 Tax Paid","index":7,"n_rows":14,"n_cols":10,"rows_kept":14,"cut":false,"hidden":false,"merged":[[0,1,1,9],[2,1,2,9],[3,2,3,9],[4,9,5,9],[4,3,5,3],[4,4,5,4],[4,2,5,2],[4,5,4,8],[4,1,5,1]]}
[null,"Goods and Services Tax - GST GSTR-9 Offline Tool (v1.5)"]
[]
[null,"Pt IV. Details of tax paid as declared in returns filed during the financial year\n\n\n"]
[null,9,"Details of tax paid as declared in returns filed during the financial year"]
[null,null,"Description","Tax Payable (₹)","Paid through cash (₹)","Paid through ITC (₹)",null,null,null,"Sheet Validation Errors"]
[null,null,null,null,null,"Central Tax","State Tax / UT Tax","Integrated Tax","Cess"]
[null,"A","Integrated Tax"]
[null,"B","Central Tax"]
[null,"C","State/UT Tax"]
[null,"D","Cess"]
[null,"E","Interest"]
[null,"F","Late fee"]
[null,"G","Penalty"]
[null,"H","Other"]

{"sheet":"10 PY trans in current FY","index":8,"n_rows":10,"n_cols":9,"rows_kept":10,"cut":false,"hidden":false,"merged":[[3,1,4,2],[3,3,4,3],[3,4,3,7],[0,1,1,8],[2,1,2,8],[3,8,4,8]]}
[null,"Goods and Services Tax - GST GSTR-9 Offline Tool (v1.5)"]
[]
[null,"Particulars of the transactions for the financial year declared in returns of the next financial year till the specified period\n"]
[null,"Description",null,"Taxable Value (₹)","(Amount in ₹ in all tables)",null,null,null,"Sheet Validation Errors"]
[null,null,null,null,"Central Tax","State Tax / UT Tax","Integrated Tax","Cess"]
[null,10," Supplies / tax declared through Amendments (+) (net of debit notes)"]
[null,11,"Supplies / tax reduced through Amendments (-) (net of credit notes)"]
[null,12,"Reversal of ITC availed during previous financial year"]
[null,13,"ITC availed for the previous financial year"]
[null,null,"Total turnover (5N +10-11)",0,0,0,0,0]

{"sheet":"14 Differential tax","index":9,"n_rows":10,"n_cols":6,"rows_kept":10,"cut":false,"hidden":false,"merged":[[4,1,4,2],[0,1,1,5],[2,1,2,5],[3,2,3,5]]}
[null,"Goods and Services Tax - GST GSTR-9 Offline Tool (v1.5)"]
[]
[null,"Particulars of the transactions for the financial year declared in returns of the next financial year till the specified period\n"]
[null,14,"Differential tax paid on account of declaration in 10 & 11 above"]
[null,"Description",null,"Payable (₹)","Paid (₹)","Sheet Validation Errors"]
[null,"A","Integrated Tax"]
[null,"B","Central Tax"]
[null,"C","State/UT Tax"]
[null,"D","Cess"]
[null,"E","Interest"]

{"sheet":"15 Demand & Refunds","index":10,"n_rows":15,"n_cols":12,"rows_kept":15,"cut":false,"hidden":false,"merged":[[5,11,6,11],[3,2,4,11],[2,1,2,11],[0,1,1,11],[5,3,5,9],[5,1,6,2],[5,10,6,10],[3,1,4,1]]}
[null,"Goods and Services Tax - GST GSTR-9 Offline Tool (v1.5)"]
[]
[null,"Pt VI. Other Information\n\n\n"]
[null,15,"Particulars of Demands and Refunds"]
[]
[null,"Details",null,"(Amount in ₹)",null,null,null,null,null,null,"Sheet Validation Errors","GST portal Validation Errors"]
[null,null,null,"Central Tax","State Tax / UT Tax","Integrated Tax","Cess","Interest","Penalty","Late Fee /  Others"]
[null,"A","Total Refund claimed "]
[null,"B","Total Refund sanctioned"]
[null,"C","Total Refund Rejected"]
[null,"D","Total Refund Pending"]
[null,"E","Total demand of taxes "]
[null,"F","Total taxes paid in respect of E above"]
[null,"G","Total demands pending out of E above"]
[null,null,null,null,null,null,null,null,null,null,"  "]

{"sheet":"16 Comp DS & Goods sent on appr","index":11,"n_rows":10,"n_cols":9,"rows_kept":10,"cut":false,"hidden":false,"merged":[[5,4,5,7],[0,1,1,8],[2,1,2,8],[5,8,6,8],[3,2,4,8],[3,1,4,1]]}
[null,"Goods and Services Tax - GST GSTR-9 Offline Tool (v1.5)"]
[]
[null,"Pt VI. Other Information\n\n\n"]
[null,16,"Information on supplies received from composition taxpayers, deemed supply under section 143 and goods sent on approval basis"]
[]
[null,null,null,null,"(Amount in ₹ in all tables)",null,null,null,"Sheet Validation Errors"]
[null,null,"Details","Taxable Value (₹) ","Central Tax","State Tax / UT Tax","Integrated Tax","Cess"]
[null,"A","Supplies received from Composition taxpayers"]
[null,"B","Deemed supply under section 143"]
[null,"C","Goods sent on approval basis but not returned"]

{"sheet":"17 HSN Outward","index":12,"n_rows":5,"n_cols":15,"rows_kept":5,"cut":false,"hidden":false,"merged":[[0,1,1,14],[2,1,2,14],[3,2,3,14]]}
[null,"Goods and Services Tax - GST GSTR-9 Offline Tool (v1.5)"]
[]
[null,"Pt VI. Other Information\n\nPlease Note : Fields marked with * (red asterisk) are mandatory fields and need to be filled up"]
[null,17,"HSN wise summary of outward supplies"]
[null,"HSN Code*","Description","UQC *","Total quantity*","Total Taxable value (₹)*","Is supply applicable for concessional rate of tax*","Rate of Tax (%)*","Integrated Tax (₹)","Central Tax (₹)","State/UT Tax (₹)","Cess","Action*","Sheet Validation errors","GST portal Validation Errors"]

{"sheet":"18 HSN Inward","index":13,"n_rows":5,"n_cols":15,"rows_kept":5,"cut":false,"hidden":false,"merged":[[0,1,1,14],[2,1,2,14],[3,2,3,14]]}
[null,"Goods and Services Tax - GST GSTR-9 Offline Tool (v1.5)"]
[]
[null,"Pt VI. Other Information\n\nPlease Note : Fields marked with * (red asterisk) are mandatory fields and need to be filled up"]
[null,18,"HSN wise summary of inward supplies"]
[null,"HSN Code*","Description","UQC *","Total quantity*","Total Taxable value (₹)*","Is supply applicable for concessional rate of tax*","Rate of Tax (%)*","Integrated Tax (₹)","Central Tax (₹)","State/UT Tax (₹)","Cess","Action*","Sheet Validation errors","GST portal Validation Errors"]

{"sheet":"Master","index":14,"n_rows":17944,"n_cols":10,"rows_kept":4500,"cut":true,"hidden":true,"merged":[],"bounds":{"rows_first":2000,"rows_last":500,"rows_between":2000,"halvings":0}}
["Financial year","Is supply applicable for concessional rate of tax*","Rate of Tax","Action","UQC_CD",null,"UQC_DESC","UQC",null,"HSN_CD"]
["2017-18","Yes",0,"Add","BAG","-","BAGS",{"$f":"CONCATENATE(E2,F2,G2)","v":"BAG-BAGS"},"BAG","01"]
["2018-19","No",0.1,"Delete","BAL","-","BALE",{"$f":"CONCATENATE(E3,F3,G3)","v":"BAL-BALE"},"BAL","0101"]
["2019-20",null,0.25,null,"BDL","-","BUNDLES","BDL-BUNDLES","BDL","01011010"]
["2020-21",null,1,null,"BKL","-","BUCKLES","BKL-BUCKLES","BKL","01011020"]
["2021-22",null,1.5,null,"BOU","-","BILLION OF UNITS","BOU-BILLION OF UNITS","BOU","01011090"]
[null,null,3,null,"BOX","-","BOX","BOX-BOX","BOX","010121"]
[null,null,5,null,"BTL","-","BOTTLES","BTL-BOTTLES","BTL","01012100"]
[null,null,7.5,null,"BUN","-","BUNCHES","BUN-BUNCHES","BUN","010129"]
[null,null,12,null,"CAN","-","CANS","CAN-CANS","CAN","01012910"]
[null,null,18,null,"CBM","-","CUBIC METERS","CBM-CUBIC METERS","CBM","01012990"]
[null,null,28,null,"CCM","-","CUBIC CENTIMETERS","CCM-CUBIC CENTIMETERS","CCM","010130"]
[null,null,null,null,"CMS","-","CENTIMETERS","CMS-CENTIMETERS","CMS","01013010"]
[null,null,null,null,"CTN","-","CARTONS","CTN-CARTONS","CTN","01013020"]
[null,null,null,null,"DOZ","-","DOZENS","DOZ-DOZENS","DOZ","01013090"]
[null,null,null,null,"DRM","-","DRUMS","DRM-DRUMS","DRM","010190"]
[null,null,null,null,"GGK","-","GREAT GROSS","GGK-GREAT GROSS","GGK","01019010"]
[null,null,null,null,"GMS","-","GRAMMES","GMS-GRAMMES","GMS","01019020"]
[null,null,null,null,"GRS","-","GROSS","GRS-GROSS","GRS","01019030"]
[null,null,null,null,"GYD","-","GROSS YARDS","GYD-GROSS YARDS","GYD","01019090"]
[null,null,null,null,"KGS","-","KILOGRAMS","KGS-KILOGRAMS","KGS","0102"]
[null,null,null,null,"KLR","-","KILOLITRE","KLR-KILOLITRE","KLR","01021010"]
[null,null,null,null,"KME","-","KILOMETRE","KME-KILOMETRE","KME","01021020"]
[null,null,null,null,"MLT","-","MILILITRE","MLT-MILILITRE","MLT","01021030"]
[null,null,null,null,"MTR","-","METERS","MTR-METERS","MTR","01021090"]
[null,null,null,null,"MTS","-","METRIC TON","MTS-METRIC TON","MTS","010221"]
[null,null,null,null,"NOS","-","NUMBERS","NOS-NUMBERS","NOS","01022110"]
[null,null,null,null,"PAC","-","PACKS","PAC-PACKS","PAC","01022120"]
[null,null,null,null,"PCS","-","PIECES","PCS-PIECES","PCS","010229"]
[null,null,null,null,"PRS","-","PAIRS","PRS-PAIRS","PRS","01022910"]
[null,null,null,null,"QTL","-","QUINTAL","QTL-QUINTAL","QTL","01022990"]
[null,null,null,null,"ROL","-","ROLLS","ROL-ROLLS","ROL","01023100"]
[null,null,null,null,"SET","-","SETS","SET-SETS","SET","01023900"]
[null,null,null,null,"SQF","-","SQUARE FEET","SQF-SQUARE FEET","SQF","010290"]
[null,null,null,null,"SQM","-","SQUARE METERS","SQM-SQUARE METERS","SQM","01029010"]
[null,null,null,null,"SQY","-","SQUARE YARDS","SQY-SQUARE YARDS","SQY","01029020"]
[null,null,null,null,"TGM","-","TEN GROSS","TGM-TEN GROSS","TGM","01029090"]
[null,null,null,null,"THD","-","THOUSANDS","THD-THOUSANDS","THD","0103"]
[null,null,null,null,"TON","-","TONNES","TON-TONNES","TON","01031000"]
[null,null,null,null,"TUB","-","TUBES","TUB-TUBES","TUB","01039100"]
[null,null,null,null,"UGS","-","US GALLONS","UGS-US GALLONS","UGS","01039200"]
[null,null,null,null,"UNT","-","UNITS","UNT-UNITS","UNT","0104"]
[null,null,null,null,"YDS","-","YARDS","YDS-YARDS","YDS","010410"]
[null,null,null,null,"OTH","-","OTHERS","OTH-OTHERS","OTH","01041010"]
[null,null,null,null,"TBS","-","TABLETS","TBS-TABLETS","TBS","01041090"]
[null,null,null,null,null,null,null,null,null,"01042000"]
[null,null,null,null,null,null,null,null,null,"0105"]
[null,null,null,null,null,null,null,null,null,"01051100"]
[null,null,null,null,null,null,null,null,null,"01051200"]
[null,null,null,null,null,null,null,null,null,"01051300"]
[null,null,null,null,null,null,null,null,null,"01051400"]
[null,null,null,null,null,null,null,null,null,"01051500"]
[null,null,null,null,null,null,null,null,null,"01051900"]
[null,null,null,null,null,null,null,null,null,"01059200"]
[null,null,null,null,null,null,null,null,null,"01059300"]
[null,null,null,null,null,null,null,null,null,"01059400"]
[null,null,null,null,null,null,null,null,null,"01059900"]
[null,null,null,null,null,null,null,null,null,"0106"]
[null,null,null,null,null,null,null,null,null,"01061100"]
[null,null,null,null,null,null,null,null,null,"01061200"]
[null,null,null,null,null,null,null,null,null,"01061300"]
[null,null,null,null,null,null,null,null,null,"01061400"]
[null,null,null,null,null,null,null,null,null,"01061900"]
[null,null,null,null,null,null,null,null,null,"01062000"]
[null,null,null,null,null,null,null,null,null,"01063100"]
[null,null,null,null,null,null,null,null,null,"01063200"]
[null,null,null,null,null,null,null,null,null,"01063300"]
[null,null,null,null,null,null,null,null,null,"01063900"]
[null,null,null,null,null,null,null,null,null,"010641"]
[null,null,null,null,null,null,null,null,null,"01064110"]
[null,null,null,null,null,null,null,null,null,"01064190"]
[null,null,null,null,null,null,null,null,null,"010649"]
[null,null,null,null,null,null,null,null,null,"01064910"]
[null,null,null,null,null,null,null,null,null,"01064990"]
[null,null,null,null,null,null,null,null,null,"010690"]
[null,null,null,null,null,null,null,null,null,"01069000"]
[null,null,null,null,null,null,null,null,null,"01069010"]
[null,null,null,null,null,null,null,null,null,"01069020"]
[null,null,null,null,null,null,null,null,null,"01069090"]
[null,null,null,null,null,null,null,null,null,"02"]
[null,null,null,null,null,null,null,null,null,"0201"]
[null,null,null,null,null,null,null,null,null,"02011000"]
[null,null,null,null,null,null,null,null,null,"02012000"]
[null,null,null,null,null,null,null,null,null,"02013000"]
[null,null,null,null,null,null,null,null,null,"0202"]
[null,null,null,null,null,null,null,null,null,"02021000"]
[null,null,null,null,null,null,null,null,null,"02022000"]
[null,null,null,null,null,null,null,null,null,"02023000"]
[null,null,null,null,null,null,null,null,null,"0203"]
[null,null,null,null,null,null,null,null,null,"02031100"]
[null,null,null,null,null,null,null,null,null,"02031200"]
[null,null,null,null,null,null,null,null,null,"02031900"]
[null,null,null,null,null,null,null,null,null,"02032100"]
[null,null,null,null,null,null,null,null,null,"02032200"]
[null,null,null,null,null,null,null,null,null,"02032900"]
[null,null,null,null,null,null,null,null,null,"0204"]
[null,null,null,null,null,null,null,null,null,"02041000"]
[null,null,null,null,null,null,null,null,null,"02042100"]
[null,null,null,null,null,null,null,null,null,"02042200"]
[null,null,null,null,null,null,null,null,null,"02042300"]
[null,null,null,null,null,null,null,null,null,"02043000"]
[null,null,null,null,null,null,null,null,null,"02044100"]
[null,null,null,null,null,null,null,null,null,"02044200"]
[null,null,null,null,null,null,null,null,null,"02044300"]
[null,null,null,null,null,null,null,null,null,"02045000"]
[null,null,null,null,null,null,null,null,null,"0205"]
[null,null,null,null,null,null,null,null,null,"02050000"]
[null,null,null,null,null,null,null,null,null,"0206"]
[null,null,null,null,null,null,null,null,null,"02061000"]
[null,null,null,null,null,null,null,null,null,"02062100"]
[null,null,null,null,null,null,null,null,null,"02062200"]
[null,null,null,null,null,null,null,null,null,"02062900"]
[null,null,null,null,null,null,null,null,null,"02063000"]
[null,null,null,null,null,null,null,null,null,"02064100"]
[null,null,null,null,null,null,null,null,null,"02064900"]
[null,null,null,null,null,null,null,null,null,"020680"]
[null,null,null,null,null,null,null,null,null,"02068010"]
[null,null,null,null,null,null,null,null,null,"02068090"]
[null,null,null,null,null,null,null,null,null,"020690"]
[null,null,null,null,null,null,null,null,null,"02069010"]
[null,null,null,null,null,null,null,null,null,"02069090"]
[null,null,null,null,null,null,null,null,null,"0207"]
[null,null,null,null,null,null,null,null,null,"02071100"]
[null,null,null,null,null,null,null,null,null,"02071200"]
[null,null,null,null,null,null,null,null,null,"02071300"]
[null,null,null,null,null,null,null,null,null,"02071400"]
[null,null,null,null,null,null,null,null,null,"02072400"]
[null,null,null,null,null,null,null,null,null,"02072500"]
[null,null,null,null,null,null,null,null,null,"02072600"]
[null,null,null,null,null,null,null,null,null,"02072700"]
[null,null,null,null,null,null,null,null,null,"02074100"]
[null,null,null,null,null,null,null,null,null,"02074200"]
[null,null,null,null,null,null,null,null,null,"02074300"]
[null,null,null,null,null,null,null,null,null,"02074400"]
[null,null,null,null,null,null,null,null,null,"02074500"]
[null,null,null,null,null,null,null,null,null,"02075100"]
[null,null,null,null,null,null,null,null,null,"02075200"]
[null,null,null,null,null,null,null,null,null,"02075300"]
[null,null,null,null,null,null,null,null,null,"02075400"]
[null,null,null,null,null,null,null,null,null,"02075500"]
[null,null,null,null,null,null,null,null,null,"02076000"]
[null,null,null,null,null,null,null,null,null,"0208"]
[null,null,null,null,null,null,null,null,null,"02081000"]
[null,null,null,null,null,null,null,null,null,"02082000"]
[null,null,null,null,null,null,null,null,null,"02083000"]
[null,null,null,null,null,null,null,null,null,"02084000"]
[null,null,null,null,null,null,null,null,null,"02085000"]
[null,null,null,null,null,null,null,null,null,"02086000"]
[null,null,null,null,null,null,null,null,null,"020890"]
[null,null,null,null,null,null,null,null,null,"02089010"]
[null,null,null,null,null,null,null,null,null,"02089090"]
[null,null,null,null,null,null,null,null,null,"0209"]
[null,null,null,null,null,null,null,null,null,"020900"]
[null,null,null,null,null,null,null,null,null,"02091000"]
[null,null,null,null,null,null,null,null,null,"02099000"]
[null,null,null,null,null,null,null,null,null,"0210"]
[null,null,null,null,null,null,null,null,null,"02101100"]
[null,null,null,null,null,null,null,null,null,"02101200"]
[null,null,null,null,null,null,null,null,null,"02101900"]
[null,null,null,null,null,null,null,null,null,"02102000"]
[null,null,null,null,null,null,null,null,null,"02109100"]
[null,null,null,null,null,null,null,null,null,"02109200"]
[null,null,null,null,null,null,null,null,null,"02109300"]
[null,null,null,null,null,null,null,null,null,"02109900"]
[null,null,null,null,null,null,null,null,null,"03"]
[null,null,null,null,null,null,null,null,null,"0301"]
[null,null,null,null,null,null,null,null,null,"03011100"]
[null,null,null,null,null,null,null,null,null,"03011900"]
[null,null,null,null,null,null,null,null,null,"03019100"]
[null,null,null,null,null,null,null,null,null,"03019200"]
[null,null,null,null,null,null,null,null,null,"03019300"]
[null,null,null,null,null,null,null,null,null,"03019400"]
[null,null,null,null,null,null,null,null,null,"03019500"]
[null,null,null,null,null,null,null,null,null,"03019900"]
[null,null,null,null,null,null,null,null,null,"0302"]
[null,null,null,null,null,null,null,null,null,"03021100"]
[null,null,null,null,null,null,null,null,null,"03021300"]
[null,null,null,null,null,null,null,null,null,"03021400"]
[null,null,null,null,null,null,null,null,null,"03021900"]
[null,null,null,null,null,null,null,null,null,"03022100"]
[null,null,null,null,null,null,null,null,null,"03022200"]
[null,null,null,null,null,null,null,null,null,"03022300"]
[null,null,null,null,null,null,null,null,null,"03022400"]
[null,null,null,null,null,null,null,null,null,"03022900"]
[null,null,null,null,null,null,null,null,null,"03023100"]
[null,null,null,null,null,null,null,null,null,"03023200"]
[null,null,null,null,null,null,null,null,null,"03023300"]
[null,null,null,null,null,null,null,null,null,"03023400"]
[null,null,null,null,null,null,null,null,null,"03023500"]
[null,null,null,null,null,null,null,null,null,"03023600"]
[null,null,null,null,null,null,null,null,null,"03023900"]
[null,null,null,null,null,null,null,null,null,"03024000"]
[null,null,null,null,null,null,null,null,null,"03024100"]
[null,null,null,null,null,null,null,null,null,"03024200"]
[null,null,null,null,null,null,null,null,null,"03024300"]
[null,null,null,null,null,null,null,null,null,"03024400"]
[null,null,null,null,null,null,null,null,null,"03024500"]
[null,null,null,null,null,null,null,null,null,"03024600"]
[null,null,null,null,null,null,null,null,null,"03024700"]
[null,null,null,null,null,null,null,null,null,"03024900"]
[null,null,null,null,null,null,null,null,null,"03025000"]
[null,null,null,null,null,null,null,null,null,"03025100"]
[null,null,null,null,null,null,null,null,null,"03025200"]
[null,null,null,null,null,null,null,null,null,"03025300"]
[null,null,null,null,null,null,null,null,null,"03025400"]
[null,null,null,null,null,null,null,null,null,"03025500"]
[null,null,null,null,null,null,null,null,null,"03025600"]
[null,null,null,null,null,null,null,null,null,"03025900"]
[null,null,null,null,null,null,null,null,null,"03026100"]
[null,null,null,null,null,null,null,null,null,"03026200"]
[null,null,null,null,null,null,null,null,null,"03026300"]
[null,null,null,null,null,null,null,null,null,"03026400"]
[null,null,null,null,null,null,null,null,null,"03026500"]
[null,null,null,null,null,null,null,null,null,"03026600"]
[null,null,null,null,null,null,null,null,null,"03026700"]
[null,null,null,null,null,null,null,null,null,"03026800"]
[null,null,null,null,null,null,null,null,null,"03026910"]
[null,null,null,null,null,null,null,null,null,"03026920"]
[null,null,null,null,null,null,null,null,null,"03026930"]
[null,null,null,null,null,null,null,null,null,"03026990"]
[null,null,null,null,null,null,null,null,null,"03027000"]
[null,null,null,null,null,null,null,null,null,"03027100"]
[null,null,null,null,null,null,null,null,null,"03027200"]
[null,null,null,null,null,null,null,null,null,"03027300"]
[null,null,null,null,null,null,null,null,null,"03027400"]
[null,null,null,null,null,null,null,null,null,"03027900"]
[null,null,null,null,null,null,null,null,null,"03028100"]
[null,null,null,null,null,null,null,null,null,"03028200"]
[null,null,null,null,null,null,null,null,null,"03028300"]
[null,null,null,null,null,null,null,null,null,"03028400"]
[null,null,null,null,null,null,null,null,null,"03028500"]
[null,null,null,null,null,null,null,null,null,"030289"]
[null,null,null,null,null,null,null,null,null,"03028910"]
[null,null,null,null,null,null,null,null,null,"03028920"]
[null,null,null,null,null,null,null,null,null,"03028930"]
[null,null,null,null,null,null,null,null,null,"03028990"]
[null,null,null,null,null,null,null,null,null,"03029000"]
[null,null,null,null,null,null,null,null,null,"030291"]
[null,null,null,null,null,null,null,null,null,"03029110"]
[null,null,null,null,null,null,null,null,null,"030292"]
[null,null,null,null,null,null,null,null,null,"03029210"]
[null,null,null,null,null,null,null,null,null,"030299"]
[null,null,null,null,null,null,null,null,null,"03029910"]
[null,null,null,null,null,null,null,null,null,"03029990"]
[null,null,null,null,null,null,null,null,null,"0303"]
[null,null,null,null,null,null,null,null,null,"03031100"]
[null,null,null,null,null,null,null,null,null,"03031200"]
[null,null,null,null,null,null,null,null,null,"03031300"]
[null,null,null,null,null,null,null,null,null,"03031400"]
[null,null,null,null,null,null,null,null,null,"03031900"]
[null,null,null,null,null,null,null,null,null,"03032100"]
[null,null,null,null,null,null,null,null,null,"03032200"]
[null,null,null,null,null,null,null,null,null,"03032300"]
[null,null,null,null,null,null,null,null,null,"03032400"]
[null,null,null,null,null,null,null,null,null,"03032500"]
[null,null,null,null,null,null,null,null,null,"03032600"]
[null,null,null,null,null,null,null,null,null,"03032900"]
[null,null,null,null,null,null,null,null,null,"03033100"]
[null,null,null,null,null,null,null,null,null,"03033200"]
[null,null,null,null,null,null,null,null,null,"03033300"]
[null,null,null,null,null,null,null,null,null,"03033400"]
[null,null,null,null,null,null,null,null,null,"03033900"]
[null,null,null,null,null,null,null,null,null,"03034100"]
[null,null,null,null,null,null,null,null,null,"03034200"]
[null,null,null,null,null,null,null,null,null,"03034300"]
[null,null,null,null,null,null,null,null,null,"03034400"]
[null,null,null,null,null,null,null,null,null,"03034500"]
[null,null,null,null,null,null,null,null,null,"03034600"]
[null,null,null,null,null,null,null,null,null,"03034900"]
[null,null,null,null,null,null,null,null,null,"03035000"]
[null,null,null,null,null,null,null,null,null,"03035100"]
[null,null,null,null,null,null,null,null,null,"03035200"]
[null,null,null,null,null,null,null,null,null,"03035300"]
[null,null,null,null,null,null,null,null,null,"03035400"]
[null,null,null,null,null,null,null,null,null,"03035500"]
[null,null,null,null,null,null,null,null,null,"03035600"]
[null,null,null,null,null,null,null,null,null,"03035700"]
[null,null,null,null,null,null,null,null,null,"03035910"]
[null,null,null,null,null,null,null,null,null,"03035990"]
[null,null,null,null,null,null,null,null,null,"03036000"]
[null,null,null,null,null,null,null,null,null,"03036100"]
[null,null,null,null,null,null,null,null,null,"03036200"]
[null,null,null,null,null,null,null,null,null,"03036300"]
[null,null,null,null,null,null,null,null,null,"03036400"]
[null,null,null,null,null,null,null,null,null,"03036500"]
[null,null,null,null,null,null,null,null,null,"03036600"]
[null,null,null,null,null,null,null,null,null,"03036700"]
[null,null,null,null,null,null,null,null,null,"03036800"]
[null,null,null,null,null,null,null,null,null,"03036900"]
[null,null,null,null,null,null,null,null,null,"03037100"]
[null,null,null,null,null,null,null,null,null,"03037200"]
[null,null,null,null,null,null,null,null,null,"03037300"]
[null,null,null,null,null,null,null,null,null,"03037400"]
[null,null,null,null,null,null,null,null,null,"03037500"]
[null,null,null,null,null,null,null,null,null,"03037600"]
[null,null,null,null,null,null,null,null,null,"03037700"]
[null,null,null,null,null,null,null,null,null,"03037800"]
[null,null,null,null,null,null,null,null,null,"03037910"]
[null,null,null,null,null,null,null,null,null,"03037920"]
[null,null,null,null,null,null,null,null,null,"03037930"]
[null,null,null,null,null,null,null,null,null,"03037940"]
[null,null,null,null,null,null,null,null,null,"03037950"]
[null,null,null,null,null,null,null,null,null,"03037960"]
[null,null,null,null,null,null,null,null,null,"03037970"]
[null,null,null,null,null,null,null,null,null,"03037980"]
[null,null,null,null,null,null,null,null,null,"03037991"]
[null,null,null,null,null,null,null,null,null,"03037992"]
[null,null,null,null,null,null,null,null,null,"03037999"]
[null,null,null,null,null,null,null,null,null,"03038010"]
[null,null,null,null,null,null,null,null,null,"03038090"]
[null,null,null,null,null,null,null,null,null,"030381"]
[null,null,null,null,null,null,null,null,null,"03038110"]
[null,null,null,null,null,null,null,null,null,"03038190"]
[null,null,null,null,null,null,null,null,null,"03038200"]
[null,null,null,null,null,null,null,null,null,"03038300"]
[null,null,null,null,null,null,null,null,null,"03038400"]
[null,null,null,null,null,null,null,null,null,"030389"]
[null,null,null,null,null,null,null,null,null,"03038910"]
[null,null,null,null,null,null,null,null,null,"03038920"]
[null,null,null,null,null,null,null,null,null,"03038930"]
[null,null,null,null,null,null,null,null,null,"03038940"]
[null,null,null,null,null,null,null,null,null,"03038950"]
[null,null,null,null,null,null,null,null,null,"03038960"]
[null,null,null,null,null,null,null,null,null,"03038970"]
[null,null,null,null,null,null,null,null,null,"03038980"]
[null,null,null,null,null,null,null,null,null,"03038990"]
[null,null,null,null,null,null,null,null,null,"03038991"]
[null,null,null,null,null,null,null,null,null,"03038992"]
[null,null,null,null,null,null,null,null,null,"03038999"]
[null,null,null,null,null,null,null,null,null,"03039010"]
[null,null,null,null,null,null,null,null,null,"03039090"]
[null,null,null,null,null,null,null,null,null,"030391"]
[null,null,null,null,null,null,null,null,null,"03039110"]
[null,null,null,null,null,null,null,null,null,"03039190"]
[null,null,null,null,null,null,null,null,null,"030392"]
[null,null,null,null,null,null,null,null,null,"03039210"]
[null,null,null,null,null,null,null,null,null,"030399"]
[null,null,null,null,null,null,null,null,null,"03039910"]
[null,null,null,null,null,null,null,null,null,"03039990"]
[null,null,null,null,null,null,null,null,null,"0304"]
[null,null,null,null,null,null,null,null,null,"03041000"]
[null,null,null,null,null,null,null,null,null,"03041100"]
[null,null,null,null,null,null,null,null,null,"03041200"]
[null,null,null,null,null,null,null,null,null,"03041900"]
[null,null,null,null,null,null,null,null,null,"03042010"]
[null,null,null,null,null,null,null,null,null,"03042020"]
[null,null,null,null,null,null,null,null,null,"03042030"]
[null,null,null,null,null,null,null,null,null,"03042040"]
[null,null,null,null,null,null,null,null,null,"03042050"]
[null,null,null,null,null,null,null,null,null,"03042090"]
[null,null,null,null,null,null,null,null,null,"03042100"]
[null,null,null,null,null,null,null,null,null,"03042200"]
[null,null,null,null,null,null,null,null,null,"03042910"]
[null,null,null,null,null,null,null,null,null,"03042920"]
[null,null,null,null,null,null,null,null,null,"03042930"]
[null,null,null,null,null,null,null,null,null,"03042940"]
[null,null,null,null,null,null,null,null,null,"03042950"]
[null,null,null,null,null,null,null,null,null,"03042990"]
[null,null,null,null,null,null,null,null,null,"03043100"]
[null,null,null,null,null,null,null,null,null,"03043200"]
[null,null,null,null,null,null,null,null,null,"03043300"]
[null,null,null,null,null,null,null,null,null,"03043900"]
[null,null,null,null,null,null,null,null,null,"03044100"]
[null,null,null,null,null,null,null,null,null,"03044200"]
[null,null,null,null,null,null,null,null,null,"03044300"]
[null,null,null,null,null,null,null,null,null,"03044400"]
[null,null,null,null,null,null,null,null,null,"03044500"]
[null,null,null,null,null,null,null,null,null,"03044600"]
[null,null,null,null,null,null,null,null,null,"03044700"]
[null,null,null,null,null,null,null,null,null,"03044800"]
[null,null,null,null,null,null,null,null,null,"030449"]
[null,null,null,null,null,null,null,null,null,"03044910"]
[null,null,null,null,null,null,null,null,null,"03044920"]
[null,null,null,null,null,null,null,null,null,"03044930"]
[null,null,null,null,null,null,null,null,null,"03044940"]
[null,null,null,null,null,null,null,null,null,"03044990"]
[null,null,null,null,null,null,null,null,null,"03045100"]
[null,null,null,null,null,null,null,null,null,"03045200"]
[null,null,null,null,null,null,null,null,null,"03045300"]
[null,null,null,null,null,null,null,null,null,"03045400"]
[null,null,null,null,null,null,null,null,null,"03045500"]
[null,null,null,null,null,null,null,null,null,"03045600"]
[null,null,null,null,null,null,null,null,null,"03045700"]
[null,null,null,null,null,null,null,null,null,"030459"]
[null,null,null,null,null,null,null,null,null,"03045910"]
[null,null,null,null,null,null,null,null,null,"03045920"]
[null,null,null,null,null,null,null,null,null,"03045930"]
[null,null,null,null,null,null,null,null,null,"03045940"]
[null,null,null,null,null,null,null,null,null,"03045990"]
[null,null,null,null,null,null,null,null,null,"03046100"]
[null,null,null,null,null,null,null,null,null,"03046200"]
[null,null,null,null,null,null,null,null,null,"03046300"]
[null,null,null,null,null,null,null,null,null,"03046900"]
[null,null,null,null,null,null,null,null,null,"03047100"]
[null,null,null,null,null,null,null,null,null,"03047200"]
[null,null,null,null,null,null,null,null,null,"03047300"]
[null,null,null,null,null,null,null,null,null,"03047400"]
[null,null,null,null,null,null,null,null,null,"03047500"]
[null,null,null,null,null,null,null,null,null,"03047900"]
[null,null,null,null,null,null,null,null,null,"03048100"]
[null,null,null,null,null,null,null,null,null,"03048200"]
[null,null,null,null,null,null,null,null,null,"03048300"]
[null,null,null,null,null,null,null,null,null,"03048400"]
[null,null,null,null,null,null,null,null,null,"03048500"]
[null,null,null,null,null,null,null,null,null,"03048600"]
[null,null,null,null,null,null,null,null,null,"03048700"]
[null,null,null,null,null,null,null,null,null,"030488"]
[null,null,null,null,null,null,null,null,null,"03048810"]
[null,null,null,null,null,null,null,null,null,"03048820"]
[null,null,null,null,null,null,null,null,null,"03048830"]
[null,null,null,null,null,null,null,null,null,"030489"]
[null,null,null,null,null,null,null,null,null,"03048910"]
[null,null,null,null,null,null,null,null,null,"03048920"]
[null,null,null,null,null,null,null,null,null,"03048930"]
[null,null,null,null,null,null,null,null,null,"03048940"]
[null,null,null,null,null,null,null,null,null,"03048990"]
[null,null,null,null,null,null,null,null,null,"03049000"]
[null,null,null,null,null,null,null,null,null,"03049100"]
[null,null,null,null,null,null,null,null,null,"03049200"]
[null,null,null,null,null,null,null,null,null,"03049300"]
[null,null,null,null,null,null,null,null,null,"03049400"]
[null,null,null,null,null,null,null,null,null,"03049500"]
[null,null,null,null,null,null,null,null,null,"03049600"]
[null,null,null,null,null,null,null,null,null,"03049700"]
[null,null,null,null,null,null,null,null,null,"03049900"]
[null,null,null,null,null,null,null,null,null,"0305"]
[null,null,null,null,null,null,null,null,null,"03051000"]
[null,null,null,null,null,null,null,null,null,"03052000"]
[null,null,null,null,null,null,null,null,null,"03053000"]
[null,null,null,null,null,null,null,null,null,"03053100"]
[null,null,null,null,null,null,null,null,null,"03053200"]
[null,null,null,null,null,null,null,null,null,"03053900"]
[null,null,null,null,null,null,null,null,null,"03054100"]
[null,null,null,null,null,null,null,null,null,"03054200"]
[null,null,null,null,null,null,null,null,null,"03054300"]
[null,null,null,null,null,null,null,null,null,"03054400"]
[null,null,null,null,null,null,null,null,null,"03054900"]
[null,null,null,null,null,null,null,null,null,"03055100"]
[null,null,null,null,null,null,null,null,null,"03055200"]
[null,null,null,null,null,null,null,null,null,"03055300"]
[null,null,null,null,null,null,null,null,null,"03055400"]
[null,null,null,null,null,null,null,null,null,"030559"]
[null,null,null,null,null,null,null,null,null,"03055910"]
[null,null,null,null,null,null,null,null,null,"03055920"]
[null,null,null,null,null,null,null,null,null,"03055930"]
[null,null,null,null,null,null,null,null,null,"03055990"]
[null,null,null,null,null,null,null,null,null,"03056100"]
[null,null,null,null,null,null,null,null,null,"03056200"]
[null,null,null,null,null,null,null,null,null,"03056300"]
[null,null,null,null,null,null,null,null,null,"03056400"]
[null,null,null,null,null,null,null,null,null,"030569"]
[null,null,null,null,null,null,null,null,null,"03056910"]
[null,null,null,null,null,null,null,null,null,"03056920"]
[null,null,null,null,null,null,null,null,null,"03056930"]
[null,null,null,null,null,null,null,null,null,"03056990"]
[null,null,null,null,null,null,null,null,null,"03057100"]
[null,null,null,null,null,null,null,null,null,"03057200"]
[null,null,null,null,null,null,null,null,null,"03057900"]
[null,null,null,null,null,null,null,null,null,"0306"]
[null,null,null,null,null,null,null,null,null,"03061100"]
[null,null,null,null,null,null,null,null,null,"030612"]
[null,null,null,null,null,null,null,null,null,"03061210"]
[null,null,null,null,null,null,null,null,null,"03061290"]
[null,null,null,null,null,null,null,null,null,"03061400"]
[null,null,null,null,null,null,null,null,null,"030615"]
[null,null,null,null,null,null,null,null,null,"03061500"]
[null,null,null,null,null,null,null,null,null,"030616"]
[null,null,null,null,null,null,null,null,null,"03061610"]
[null,null,null,null,null,null,null,null,null,"03061690"]
[null,null,null,null,null,null,null,null,null,"030617"]
[null,null,null,null,null,null,null,null,null,"03061711"]
[null,null,null,null,null,null,null,null,null,"03061719"]
[null,null,null,null,null,null,null,null,null,"03061720"]
[null,null,null,null,null,null,null,null,null,"03061730"]
[null,null,null,null,null,null,null,null,null,"03061740"]
[null,null,null,null,null,null,null,null,null,"03061750"]
[null,null,null,null,null,null,null,null,null,"03061790"]
[null,null,null,null,null,null,null,null,null,"03061900"]
[null,null,null,null,null,null,null,null,null,"03062100"]
[null,null,null,null,null,null,null,null,null,"03062200"]
[null,null,null,null,null,null,null,null,null,"03062400"]
[null,null,null,null,null,null,null,null,null,"03062500"]
[null,null,null,null,null,null,null,null,null,"03062600"]
[null,null,null,null,null,null,null,null,null,"03062710"]
[null,null,null,null,null,null,null,null,null,"03062790"]
[null,null,null,null,null,null,null,null,null,"03062900"]
[null,null,null,null,null,null,null,null,null,"03063100"]
[null,null,null,null,null,null,null,null,null,"03063200"]
[null,null,null,null,null,null,null,null,null,"03063300"]
[null,null,null,null,null,null,null,null,null,"03063400"]
[null,null,null,null,null,null,null,null,null,"03063500"]
[null,null,null,null,null,null,null,null,null,"03063600"]
[null,null,null,null,null,null,null,null,null,"03063900"]
[null,null,null,null,null,null,null,null,null,"03069100"]
[null,null,null,null,null,null,null,null,null,"03069200"]
[null,null,null,null,null,null,null,null,null,"03069300"]
[null,null,null,null,null,null,null,null,null,"03069400"]
[null,null,null,null,null,null,null,null,null,"03069500"]
[null,null,null,null,null,null,null,null,null,"03069900"]
[null,null,null,null,null,null,null,null,null,"0307"]
[null,null,null,null,null,null,null,null,null,"03071100"]
[null,null,null,null,null,null,null,null,null,"03071200"]
[null,null,null,null,null,null,null,null,null,"03071900"]
[null,null,null,null,null,null,null,null,null,"03072100"]
[null,null,null,null,null,null,null,null,null,"03072200"]
[null,null,null,null,null,null,null,null,null,"03072900"]
[null,null,null,null,null,null,null,null,null,"03073100"]
[null,null,null,null,null,null,null,null,null,"03073200"]
[null,null,null,null,null,null,null,null,null,"030739"]
[null,null,null,null,null,null,null,null,null,"03073910"]
[null,null,null,null,null,null,null,null,null,"03073990"]
[null,null,null,null,null,null,null,null,null,"03074110"]
[null,null,null,null,null,null,null,null,null,"03074120"]
[null,null,null,null,null,null,null,null,null,"030742"]
[null,null,null,null,null,null,null,null,null,"03074210"]
[null,null,null,null,null,null,null,null,null,"03074220"]
[null,null,null,null,null,null,null,null,null,"030743"]
[null,null,null,null,null,null,null,null,null,"03074310"]
[null,null,null,null,null,null,null,null,null,"03074320"]
[null,null,null,null,null,null,null,null,null,"03074330"]
[null,null,null,null,null,null,null,null,null,"030749"]
[null,null,null,null,null,null,null,null,null,"03074910"]
[null,null,null,null,null,null,null,null,null,"03074920"]
[null,null,null,null,null,null,null,null,null,"03074930"]
[null,null,null,null,null,null,null,null,null,"03074940"]
[null,null,null,null,null,null,null,null,null,"03074990"]
[null,null,null,null,null,null,null,null,null,"03075100"]
[null,null,null,null,null,null,null,null,null,"03075200"]
[null,null,null,null,null,null,null,null,null,"03075900"]
[null,null,null,null,null,null,null,null,null,"03076000"]
[null,null,null,null,null,null,null,null,null,"03077100"]
[null,null,null,null,null,null,null,null,null,"03077200"]
[null,null,null,null,null,null,null,null,null,"03077900"]
[null,null,null,null,null,null,null,null,null,"03078100"]
[null,null,null,null,null,null,null,null,null,"03078200"]
[null,null,null,null,null,null,null,null,null,"03078300"]
[null,null,null,null,null,null,null,null,null,"03078400"]
[null,null,null,null,null,null,null,null,null,"03078700"]
[null,null,null,null,null,null,null,null,null,"03078800"]
[null,null,null,null,null,null,null,null,null,"03078900"]
[null,null,null,null,null,null,null,null,null,"03079100"]
[null,null,null,null,null,null,null,null,null,"03079200"]
[null,null,null,null,null,null,null,null,null,"03079900"]
[null,null,null,null,null,null,null,null,null,"03079910"]
[null,null,null,null,null,null,null,null,null,"03079920"]
[null,null,null,null,null,null,null,null,null,"03079990"]
[null,null,null,null,null,null,null,null,null,"0308"]
[null,null,null,null,null,null,null,null,null,"03081100"]
[null,null,null,null,null,null,null,null,null,"03081200"]
[null,null,null,null,null,null,null,null,null,"03081900"]
[null,null,null,null,null,null,null,null,null,"03082100"]
[null,null,null,null,null,null,null,null,null,"03082200"]
[null,null,null,null,null,null,null,null,null,"03082900"]
[null,null,null,null,null,null,null,null,null,"030830"]
[null,null,null,null,null,null,null,null,null,"03083010"]
[null,null,null,null,null,null,null,null,null,"03083020"]
[null,null,null,null,null,null,null,null,null,"03089000"]
[null,null,null,null,null,null,null,null,null,"04"]
[null,null,null,null,null,null,null,null,null,"0401"]
[null,null,null,null,null,null,null,null,null,"04011000"]
[null,null,null,null,null,null,null,null,null,"04012000"]
[null,null,null,null,null,null,null,null,null,"040140"]
[null,null,null,null,null,null,null,null,null,"04014000"]
[null,null,null,null,null,null,null,null,null,"040150"]
[null,null,null,null,null,null,null,null,null,"04015000"]
[null,null,null,null,null,null,null,null,null,"0402"]
[null,null,null,null,null,null,null,null,null,"040210"]
[null,null,null,null,null,null,null,null,null,"04021010"]
[null,null,null,null,null,null,null,null,null,"04021020"]
[null,null,null,null,null,null,null,null,null,"04021090"]
[null,null,null,null,null,null,null,null,null,"04022100"]
[null,null,null,null,null,null,null,null,null,"040229"]
[null,null,null,null,null,null,null,null,null,"04022910"]
[null,null,null,null,null,null,null,null,null,"04022920"]
[null,null,null,null,null,null,null,null,null,"04022990"]
[null,null,null,null,null,null,null,null,null,"040291"]
[null,null,null,null,null,null,null,null,null,"04029110"]
[null,null,null,null,null,null,null,null,null,"04029190"]
[null,null,null,null,null,null,null,null,null,"040299"]
[null,null,null,null,null,null,null,null,null,"04029910"]
[null,null,null,null,null,null,null,null,null,"04029920"]
[null,null,null,null,null,null,null,null,null,"04029990"]
[null,null,null,null,null,null,null,null,null,"0403"]
[null,null,null,null,null,null,null,null,null,"04031000"]
[null,null,null,null,null,null,null,null,null,"040390"]
[null,null,null,null,null,null,null,null,null,"04039010"]
[null,null,null,null,null,null,null,null,null,"04039090"]
[null,null,null,null,null,null,null,null,null,"0404"]
[null,null,null,null,null,null,null,null,null,"040410"]
[null,null,null,null,null,null,null,null,null,"04041010"]
[null,null,null,null,null,null,null,null,null,"04041020"]
[null,null,null,null,null,null,null,null,null,"04041090"]
[null,null,null,null,null,null,null,null,null,"04049000"]
[null,null,null,null,null,null,null,null,null,"0405"]
[null,null,null,null,null,null,null,null,null,"04051000"]
[null,null,null,null,null,null,null,null,null,"04052000"]
[null,null,null,null,null,null,null,null,null,"040590"]
[null,null,null,null,null,null,null,null,null,"04059010"]
[null,null,null,null,null,null,null,null,null,"04059020"]
[null,null,null,null,null,null,null,null,null,"04059090"]
[null,null,null,null,null,null,null,null,null,"0406"]
[null,null,null,null,null,null,null,null,null,"04061000"]
[null,null,null,null,null,null,null,null,null,"04062000"]
[null,null,null,null,null,null,null,null,null,"04063000"]
[null,null,null,null,null,null,null,null,null,"04064000"]
[null,null,null,null,null,null,null,null,null,"04069000"]
[null,null,null,null,null,null,null,null,null,"0407"]
[null,null,null,null,null,null,null,null,null,"040700"]
[null,null,null,null,null,null,null,null,null,"04070090"]
[null,null,null,null,null,null,null,null,null,"040711"]
[null,null,null,null,null,null,null,null,null,"04071100"]
[null,null,null,null,null,null,null,null,null,"040719"]
[null,null,null,null,null,null,null,null,null,"04071910"]
[null,null,null,null,null,null,null,null,null,"04071990"]
[null,null,null,null,null,null,null,null,null,"040721"]
[null,null,null,null,null,null,null,null,null,"04072100"]
[null,null,null,null,null,null,null,null,null,"040729"]
[null,null,null,null,null,null,null,null,null,"04072900"]
[null,null,null,null,null,null,null,null,null,"040790"]
[null,null,null,null,null,null,null,null,null,"04079000"]
[null,null,null,null,null,null,null,null,null,"0408"]
[null,null,null,null,null,null,null,null,null,"04081100"]
[null,null,null,null,null,null,null,null,null,"04081900"]
[null,null,null,null,null,null,null,null,null,"04089100"]
[null,null,null,null,null,null,null,null,null,"04089900"]
[null,null,null,null,null,null,null,null,null,"0409"]
[null,null,null,null,null,null,null,null,null,"04090000"]
[null,null,null,null,null,null,null,null,null,"0410"]
[null,null,null,null,null,null,null,null,null,"041000"]
[null,null,null,null,null,null,null,null,null,"04100010"]
[null,null,null,null,null,null,null,null,null,"04100020"]
[null,null,null,null,null,null,null,null,null,"04100090"]
[null,null,null,null,null,null,null,null,null,"05"]
[null,null,null,null,null,null,null,null,null,"0501"]
[null,null,null,null,null,null,null,null,null,"050100"]
[null,null,null,null,null,null,null,null,null,"05010010"]
[null,null,null,null,null,null,null,null,null,"05010020"]
[null,null,null,null,null,null,null,null,null,"0502"]
[null,null,null,null,null,null,null,null,null,"050210"]
[null,null,null,null,null,null,null,null,null,"05021010"]
[null,null,null,null,null,null,null,null,null,"05021020"]
[null,null,null,null,null,null,null,null,null,"050290"]
[null,null,null,null,null,null,null,null,null,"05029010"]
[null,null,null,null,null,null,null,null,null,"05029020"]
[null,null,null,null,null,null,null,null,null,"05029090"]
[null,null,null,null,null,null,null,null,null,"0503"]
[null,null,null,null,null,null,null,null,null,"05030000"]
[null,null,null,null,null,null,null,null,null,"0504"]
[null,null,null,null,null,null,null,null,null,"050400"]
[null,null,null,null,null,null,null,null,null,"05040010"]
[null,null,null,null,null,null,null,null,null,"05040020"]
[null,null,null,null,null,null,null,null,null,"05040031"]
[null,null,null,null,null,null,null,null,null,"05040039"]
[null,null,null,null,null,null,null,null,null,"05040041"]
[null,null,null,null,null,null,null,null,null,"05040049"]
[null,null,null,null,null,null,null,null,null,"05040051"]
[null,null,null,null,null,null,null,null,null,"05040059"]
[null,null,null,null,null,null,null,null,null,"0505"]
[null,null,null,null,null,null,null,null,null,"050510"]
[null,null,null,null,null,null,null,null,null,"05051010"]
[null,null,null,null,null,null,null,null,null,"05051090"]
[null,null,null,null,null,null,null,null,null,"050590"]
[null,null,null,null,null,null,null,null,null,"05059010"]
[null,null,null,null,null,null,null,null,null,"05059021"]
[null,null,null,null,null,null,null,null,null,"05059029"]
[null,null,null,null,null,null,null,null,null,"05059031"]
[null,null,null,null,null,null,null,null,null,"05059039"]
[null,null,null,null,null,null,null,null,null,"05059091"]
[null,null,null,null,null,null,null,null,null,"05059099"]
[null,null,null,null,null,null,null,null,null,"0506"]
[null,null,null,null,null,null,null,null,null,"050610"]
[null,null,null,null,null,null,null,null,null,"05061011"]
[null,null,null,null,null,null,null,null,null,"05061019"]
[null,null,null,null,null,null,null,null,null,"05061021"]
[null,null,null,null,null,null,null,null,null,"05061029"]
[null,null,null,null,null,null,null,null,null,"05061031"]
[null,null,null,null,null,null,null,null,null,"05061039"]
[null,null,null,null,null,null,null,null,null,"05061041"]
[null,null,null,null,null,null,null,null,null,"05061049"]
[null,null,null,null,null,null,null,null,null,"050690"]
[null,null,null,null,null,null,null,null,null,"05069011"]
[null,null,null,null,null,null,null,null,null,"05069019"]
[null,null,null,null,null,null,null,null,null,"05069091"]
[null,null,null,null,null,null,null,null,null,"05069099"]
[null,null,null,null,null,null,null,null,null,"0507"]
[null,null,null,null,null,null,null,null,null,"050710"]
[null,null,null,null,null,null,null,null,null,"05071010"]
[null,null,null,null,null,null,null,null,null,"05071020"]
[null,null,null,null,null,null,null,null,null,"050790"]
[null,null,null,null,null,null,null,null,null,"05079010"]
[null,null,null,null,null,null,null,null,null,"05079020"]
[null,null,null,null,null,null,null,null,null,"05079030"]
[null,null,null,null,null,null,null,null,null,"05079040"]
[null,null,null,null,null,null,null,null,null,"05079050"]
[null,null,null,null,null,null,null,null,null,"05079060"]
[null,null,null,null,null,null,null,null,null,"05079070"]
[null,null,null,null,null,null,null,null,null,"05079090"]
[null,null,null,null,null,null,null,null,null,"0508"]
[null,null,null,null,null,null,null,null,null,"050800"]
[null,null,null,null,null,null,null,null,null,"05080010"]
[null,null,null,null,null,null,null,null,null,"05080020"]
[null,null,null,null,null,null,null,null,null,"05080030"]
[null,null,null,null,null,null,null,null,null,"05080040"]
[null,null,null,null,null,null,null,null,null,"05080050"]
[null,null,null,null,null,null,null,null,null,"05080090"]
[null,null,null,null,null,null,null,null,null,"0509"]
[null,null,null,null,null,null,null,null,null,"05090010"]
[null,null,null,null,null,null,null,null,null,"05090090"]
[null,null,null,null,null,null,null,null,null,"0510"]
[null,null,null,null,null,null,null,null,null,"051000"]
[null,null,null,null,null,null,null,null,null,"05100010"]
[null,null,null,null,null,null,null,null,null,"05100020"]
[null,null,null,null,null,null,null,null,null,"05100030"]
[null,null,null,null,null,null,null,null,null,"05100091"]
[null,null,null,null,null,null,null,null,null,"05100099"]
[null,null,null,null,null,null,null,null,null,"0511"]
[null,null,null,null,null,null,null,null,null,"05111000"]
[null,null,null,null,null,null,null,null,null,"051191"]
[null,null,null,null,null,null,null,null,null,"05119110"]
[null,null,null,null,null,null,null,null,null,"05119120"]
[null,null,null,null,null,null,null,null,null,"05119130"]
[null,null,null,null,null,null,null,null,null,"05119190"]
[null,null,null,null,null,null,null,null,null,"051199"]
[null,null,null,null,null,null,null,null,null,"05119911"]
[null,null,null,null,null,null,null,null,null,"05119919"]
[null,null,null,null,null,null,null,null,null,"05119921"]
[null,null,null,null,null,null,null,null,null,"05119929"]
[null,null,null,null,null,null,null,null,null,"05119991"]
[null,null,null,null,null,null,null,null,null,"05119992"]
[null,null,null,null,null,null,null,null,null,"05119999"]
[null,null,null,null,null,null,null,null,null,"06"]
[null,null,null,null,null,null,null,null,null,"0601"]
[null,null,null,null,null,null,null,null,null,"06011000"]
[null,null,null,null,null,null,null,null,null,"060120"]
[null,null,null,null,null,null,null,null,null,"06012010"]
[null,null,null,null,null,null,null,null,null,"06012021"]
[null,null,null,null,null,null,null,null,null,"06012022"]
[null,null,null,null,null,null,null,null,null,"06012090"]
[null,null,null,null,null,null,null,null,null,"0602"]
[null,null,null,null,null,null,null,null,null,"06021000"]
[null,null,null,null,null,null,null,null,null,"060220"]
[null,null,null,null,null,null,null,null,null,"06022010"]
[null,null,null,null,null,null,null,null,null,"06022020"]
[null,null,null,null,null,null,null,null,null,"06022090"]
[null,null,null,null,null,null,null,null,null,"06023000"]
[null,null,null,null,null,null,null,null,null,"06024000"]
[null,null,null,null,null,null,null,null,null,"060290"]
[null,null,null,null,null,null,null,null,null,"06029010"]
[null,null,null,null,null,null,null,null,null,"06029020"]
[null,null,null,null,null,null,null,null,null,"06029030"]
[null,null,null,null,null,null,null,null,null,"06029090"]
[null,null,null,null,null,null,null,null,null,"0603"]
[null,null,null,null,null,null,null,null,null,"06031000"]
[null,null,null,null,null,null,null,null,null,"06031100"]
[null,null,null,null,null,null,null,null,null,"06031200"]
[null,null,null,null,null,null,null,null,null,"06031300"]
[null,null,null,null,null,null,null,null,null,"06031400"]
[null,null,null,null,null,null,null,null,null,"060315"]
[null,null,null,null,null,null,null,null,null,"06031500"]
[null,null,null,null,null,null,null,null,null,"06031900"]
[null,null,null,null,null,null,null,null,null,"06039000"]
[null,null,null,null,null,null,null,null,null,"0604"]
[null,null,null,null,null,null,null,null,null,"06041000"]
[null,null,null,null,null,null,null,null,null,"060420"]
[null,null,null,null,null,null,null,null,null,"06042000"]
[null,null,null,null,null,null,null,null,null,"060490"]
[null,null,null,null,null,null,null,null,null,"06049000"]
[null,null,null,null,null,null,null,null,null,"06049100"]
[null,null,null,null,null,null,null,null,null,"06049900"]
[null,null,null,null,null,null,null,null,null,"07"]
[null,null,null,null,null,null,null,null,null,"0701"]
[null,null,null,null,null,null,null,null,null,"07011000"]
[null,null,null,null,null,null,null,null,null,"07019000"]
[null,null,null,null,null,null,null,null,null,"0702"]
[null,null,null,null,null,null,null,null,null,"07020000"]
[null,null,null,null,null,null,null,null,null,"0703"]
[null,null,null,null,null,null,null,null,null,"070310"]
[null,null,null,null,null,null,null,null,null,"07031010"]
[null,null,null,null,null,null,null,null,null,"07031020"]
[null,null,null,null,null,null,null,null,null,"07031090"]
[null,null,null,null,null,null,null,null,null,"07032000"]
[null,null,null,null,null,null,null,null,null,"07039000"]
[null,null,null,null,null,null,null,null,null,"0704"]
[null,null,null,null,null,null,null,null,null,"07041000"]
[null,null,null,null,null,null,null,null,null,"07042000"]
[null,null,null,null,null,null,null,null,null,"07049000"]
[null,null,null,null,null,null,null,null,null,"0705"]
[null,null,null,null,null,null,null,null,null,"07051100"]
[null,null,null,null,null,null,null,null,null,"07051900"]
[null,null,null,null,null,null,null,null,null,"07052100"]
[null,null,null,null,null,null,null,null,null,"07052900"]
[null,null,null,null,null,null,null,null,null,"0706"]
[null,null,null,null,null,null,null,null,null,"07061000"]
[null,null,null,null,null,null,null,null,null,"070690"]
[null,null,null,null,null,null,null,null,null,"07069010"]
[null,null,null,null,null,null,null,null,null,"07069020"]
[null,null,null,null,null,null,null,null,null,"07069030"]
[null,null,null,null,null,null,null,null,null,"07069090"]
[null,null,null,null,null,null,null,null,null,"0707"]
[null,null,null,null,null,null,null,null,null,"07070000"]
[null,null,null,null,null,null,null,null,null,"0708"]
[null,null,null,null,null,null,null,null,null,"07081000"]
[null,null,null,null,null,null,null,null,null,"07082000"]
[null,null,null,null,null,null,null,null,null,"07089000"]
[null,null,null,null,null,null,null,null,null,"0709"]
[null,null,null,null,null,null,null,null,null,"07091000"]
[null,null,null,null,null,null,null,null,null,"07092000"]
[null,null,null,null,null,null,null,null,null,"07093000"]
[null,null,null,null,null,null,null,null,null,"07094000"]
[null,null,null,null,null,null,null,null,null,"07095100"]
[null,null,null,null,null,null,null,null,null,"07095200"]
[null,null,null,null,null,null,null,null,null,"07095900"]
[null,null,null,null,null,null,null,null,null,"070960"]
[null,null,null,null,null,null,null,null,null,"07096010"]
[null,null,null,null,null,null,null,null,null,"07096090"]
[null,null,null,null,null,null,null,null,null,"07097000"]
[null,null,null,null,null,null,null,null,null,"070990"]
[null,null,null,null,null,null,null,null,null,"07099090"]
[null,null,null,null,null,null,null,null,null,"070991"]
[null,null,null,null,null,null,null,null,null,"07099100"]
[null,null,null,null,null,null,null,null,null,"070992"]
[null,null,null,null,null,null,null,null,null,"07099200"]
[null,null,null,null,null,null,null,null,null,"070993"]
[null,null,null,null,null,null,null,null,null,"07099300"]
[null,null,null,null,null,null,null,null,null,"07099310"]
[null,null,null,null,null,null,null,null,null,"07099320"]
[null,null,null,null,null,null,null,null,null,"07099330"]
[null,null,null,null,null,null,null,null,null,"07099340"]
[null,null,null,null,null,null,null,null,null,"07099350"]
[null,null,null,null,null,null,null,null,null,"07099360"]
[null,null,null,null,null,null,null,null,null,"07099390"]
[null,null,null,null,null,null,null,null,null,"070999"]
[null,null,null,null,null,null,null,null,null,"07099910"]
[null,null,null,null,null,null,null,null,null,"07099920"]
[null,null,null,null,null,null,null,null,null,"07099930"]
[null,null,null,null,null,null,null,null,null,"07099990"]
[null,null,null,null,null,null,null,null,null,"0710"]
[null,null,null,null,null,null,null,null,null,"07101000"]
[null,null,null,null,null,null,null,null,null,"07102100"]
[null,null,null,null,null,null,null,null,null,"07102200"]
[null,null,null,null,null,null,null,null,null,"07102900"]
[null,null,null,null,null,null,null,null,null,"07103000"]
[null,null,null,null,null,null,null,null,null,"07104000"]
[null,null,null,null,null,null,null,null,null,"071080"]
[null,null,null,null,null,null,null,null,null,"07108010"]
[null,null,null,null,null,null,null,null,null,"07108090"]
[null,null,null,null,null,null,null,null,null,"07109000"]
[null,null,null,null,null,null,null,null,null,"0711"]
[null,null,null,null,null,null,null,null,null,"07112000"]
[null,null,null,null,null,null,null,null,null,"07113000"]
[null,null,null,null,null,null,null,null,null,"07114000"]
[null,null,null,null,null,null,null,null,null,"07115100"]
[null,null,null,null,null,null,null,null,null,"07115900"]
[null,null,null,null,null,null,null,null,null,"071190"]
[null,null,null,null,null,null,null,null,null,"07119010"]
[null,null,null,null,null,null,null,null,null,"07119020"]
[null,null,null,null,null,null,null,null,null,"07119090"]
[null,null,null,null,null,null,null,null,null,"0712"]
[null,null,null,null,null,null,null,null,null,"07122000"]
[null,null,null,null,null,null,null,null,null,"07123100"]
[null,null,null,null,null,null,null,null,null,"07123200"]
[null,null,null,null,null,null,null,null,null,"07123300"]
[null,null,null,null,null,null,null,null,null,"07123900"]
[null,null,null,null,null,null,null,null,null,"071290"]
[null,null,null,null,null,null,null,null,null,"07129010"]
[null,null,null,null,null,null,null,null,null,"07129020"]
[null,null,null,null,null,null,null,null,null,"07129030"]
[null,null,null,null,null,null,null,null,null,"07129040"]
[null,null,null,null,null,null,null,null,null,"07129050"]
[null,null,null,null,null,null,null,null,null,"07129060"]
[null,null,null,null,null,null,null,null,null,"07129090"]
[null,null,null,null,null,null,null,null,null,"0713"]
[null,null,null,null,null,null,null,null,null,"071310"]
[null,null,null,null,null,null,null,null,null,"07131000"]
[null,null,null,null,null,null,null,null,null,"07131010"]
[null,null,null,null,null,null,null,null,null,"07131020"]
[null,null,null,null,null,null,null,null,null,"07131090"]
[null,null,null,null,null,null,null,null,null,"071320"]
[null,null,null,null,null,null,null,null,null,"07132000"]
[null,null,null,null,null,null,null,null,null,"07132010"]
[null,null,null,null,null,null,null,null,null,"07132020"]
[null,null,null,null,null,null,null,null,null,"07132090"]
[null,null,null,null,null,null,null,null,null,"07133100"]
[null,null,null,null,null,null,null,null,null,"07133110"]
[null,null,null,null,null,null,null,null,null,"07133190"]
[null,null,null,null,null,null,null,null,null,"07133200"]
[null,null,null,null,null,null,null,null,null,"07133300"]
[null,null,null,null,null,null,null,null,null,"071334"]
[null,null,null,null,null,null,null,null,null,"07133400"]
[null,null,null,null,null,null,null,null,null,"071335"]
[null,null,null,null,null,null,null,null,null,"07133500"]
[null,null,null,null,null,null,null,null,null,"071339"]
[null,null,null,null,null,null,null,null,null,"07133910"]
[null,null,null,null,null,null,null,null,null,"07133990"]
[null,null,null,null,null,null,null,null,null,"07134000"]
[null,null,null,null,null,null,null,null,null,"07135000"]
[null,null,null,null,null,null,null,null,null,"071360"]
[null,null,null,null,null,null,null,null,null,"07136000"]
[null,null,null,null,null,null,null,null,null,"071390"]
[null,null,null,null,null,null,null,null,null,"07139010"]
[null,null,null,null,null,null,null,null,null,"07139090"]
[null,null,null,null,null,null,null,null,null,"0714"]
[null,null,null,null,null,null,null,null,null,"07141000"]
[null,null,null,null,null,null,null,null,null,"07142000"]
[null,null,null,null,null,null,null,null,null,"071430"]
[null,null,null,null,null,null,null,null,null,"07143000"]
[null,null,null,null,null,null,null,null,null,"071440"]
[null,null,null,null,null,null,null,null,null,"07144000"]
[null,null,null,null,null,null,null,null,null,"071450"]
[null,null,null,null,null,null,null,null,null,"07145000"]
[null,null,null,null,null,null,null,null,null,"071490"]
[null,null,null,null,null,null,null,null,null,"07149010"]
[null,null,null,null,null,null,null,null,null,"07149090"]
[null,null,null,null,null,null,null,null,null,"08"]
[null,null,null,null,null,null,null,null,null,"0801"]
[null,null,null,null,null,null,null,null,null,"08011100"]
[null,null,null,null,null,null,null,null,null,"080112"]
[null,null,null,null,null,null,null,null,null,"08011210"]
[null,null,null,null,null,null,null,null,null,"08011220"]
[null,null,null,null,null,null,null,null,null,"08011290"]
[null,null,null,null,null,null,null,null,null,"080119"]
[null,null,null,null,null,null,null,null,null,"08011910"]
[null,null,null,null,null,null,null,null,null,"08011920"]
[null,null,null,null,null,null,null,null,null,"08011990"]
[null,null,null,null,null,null,null,null,null,"08012100"]
[null,null,null,null,null,null,null,null,null,"08012200"]
[null,null,null,null,null,null,null,null,null,"08013100"]
[null,null,null,null,null,null,null,null,null,"080132"]
[null,null,null,null,null,null,null,null,null,"08013210"]
[null,null,null,null,null,null,null,null,null,"08013220"]
[null,null,null,null,null,null,null,null,null,"08013290"]
[null,null,null,null,null,null,null,null,null,"0802"]
[null,null,null,null,null,null,null,null,null,"08021100"]
[null,null,null,null,null,null,null,null,null,"08021200"]
[null,null,null,null,null,null,null,null,null,"08022100"]
[null,null,null,null,null,null,null,null,null,"08022200"]
[null,null,null,null,null,null,null,null,null,"08023100"]
[null,null,null,null,null,null,null,null,null,"08023200"]
[null,null,null,null,null,null,null,null,null,"080241"]
[null,null,null,null,null,null,null,null,null,"08024100"]
[null,null,null,null,null,null,null,null,null,"080242"]
[null,null,null,null,null,null,null,null,null,"08024200"]
[null,null,null,null,null,null,null,null,null,"080251"]
[null,null,null,null,null,null,null,null,null,"08025100"]
[null,null,null,null,null,null,null,null,null,"080252"]
[null,null,null,null,null,null,null,null,null,"08025200"]
[null,null,null,null,null,null,null,null,null,"080261"]
[null,null,null,null,null,null,null,null,null,"08026100"]
[null,null,null,null,null,null,null,null,null,"080262"]
[null,null,null,null,null,null,null,null,null,"08026200"]
[null,null,null,null,null,null,null,null,null,"080270"]
[null,null,null,null,null,null,null,null,null,"08027000"]
[null,null,null,null,null,null,null,null,null,"080280"]
[null,null,null,null,null,null,null,null,null,"08028010"]
[null,null,null,null,null,null,null,null,null,"08028020"]
[null,null,null,null,null,null,null,null,null,"08028030"]
[null,null,null,null,null,null,null,null,null,"08028090"]
[null,null,null,null,null,null,null,null,null,"080290"]
[null,null,null,null,null,null,null,null,null,"08029000"]
[null,null,null,null,null,null,null,null,null,"0803"]
[null,null,null,null,null,null,null,null,null,"080310"]
[null,null,null,null,null,null,null,null,null,"08031010"]
[null,null,null,null,null,null,null,null,null,"08031090"]
[null,null,null,null,null,null,null,null,null,"080390"]
[null,null,null,null,null,null,null,null,null,"08039010"]
[null,null,null,null,null,null,null,null,null,"08039090"]
[null,null,null,null,null,null,null,null,null,"0804"]
[null,null,null,null,null,null,null,null,null,"080410"]
[null,null,null,null,null,null,null,null,null,"08041010"]
[null,null,null,null,null,null,null,null,null,"08041020"]
[null,null,null,null,null,null,null,null,null,"08041030"]
[null,null,null,null,null,null,null,null,null,"08041090"]
[null,null,null,null,null,null,null,null,null,"080420"]
[null,null,null,null,null,null,null,null,null,"08042010"]
[null,null,null,null,null,null,null,null,null,"08042090"]
[null,null,null,null,null,null,null,null,null,"08043000"]
[null,null,null,null,null,null,null,null,null,"08044000"]
[null,null,null,null,null,null,null,null,null,"080450"]
[null,null,null,null,null,null,null,null,null,"08045010"]
[null,null,null,null,null,null,null,null,null,"08045020"]
[null,null,null,null,null,null,null,null,null,"08045021"]
[null,null,null,null,null,null,null,null,null,"08045022"]
[null,null,null,null,null,null,null,null,null,"08045023"]
[null,null,null,null,null,null,null,null,null,"08045024"]
[null,null,null,null,null,null,null,null,null,"08045025"]
[null,null,null,null,null,null,null,null,null,"08045026"]
[null,null,null,null,null,null,null,null,null,"08045027"]
[null,null,null,null,null,null,null,null,null,"08045028"]
[null,null,null,null,null,null,null,null,null,"08045029"]
[null,null,null,null,null,null,null,null,null,"08045030"]
[null,null,null,null,null,null,null,null,null,"08045040"]
[null,null,null,null,null,null,null,null,null,"08045090"]
[null,null,null,null,null,null,null,null,null,"0805"]
[null,null,null,null,null,null,null,null,null,"08051000"]
[null,null,null,null,null,null,null,null,null,"08052000"]
[null,null,null,null,null,null,null,null,null,"08052100"]
[null,null,null,null,null,null,null,null,null,"08052200"]
[null,null,null,null,null,null,null,null,null,"08052900"]
[null,null,null,null,null,null,null,null,null,"08054000"]
[null,null,null,null,null,null,null,null,null,"08055000"]
[null,null,null,null,null,null,null,null,null,"08059000"]
[null,null,null,null,null,null,null,null,null,"0806"]
[null,null,null,null,null,null,null,null,null,"08061000"]
[null,null,null,null,null,null,null,null,null,"080620"]
[null,null,null,null,null,null,null,null,null,"08062010"]
[null,null,null,null,null,null,null,null,null,"08062090"]
[null,null,null,null,null,null,null,null,null,"0807"]
[null,null,null,null,null,null,null,null,null,"08071100"]
[null,null,null,null,null,null,null,null,null,"080719"]
[null,null,null,null,null,null,null,null,null,"08071900"]
[null,null,null,null,null,null,null,null,null,"08071910"]
[null,null,null,null,null,null,null,null,null,"08071990"]
[null,null,null,null,null,null,null,null,null,"08072000"]
[null,null,null,null,null,null,null,null,null,"0808"]
[null,null,null,null,null,null,null,null,null,"08081000"]
[null,null,null,null,null,null,null,null,null,"080821"]
[null,null,null,null,null,null,null,null,null,"080829"]
[null,null,null,null,null,null,null,null,null,"080830"]
[null,null,null,null,null,null,null,null,null,"08083000"]
[null,null,null,null,null,null,null,null,null,"080840"]
[null,null,null,null,null,null,null,null,null,"08084000"]
[null,null,null,null,null,null,null,null,null,"0809"]
[null,null,null,null,null,null,null,null,null,"08091000"]
[null,null,null,null,null,null,null,null,null,"080921"]
[null,null,null,null,null,null,null,null,null,"08092100"]
[null,null,null,null,null,null,null,null,null,"080929"]
[null,null,null,null,null,null,null,null,null,"08092900"]
[null,null,null,null,null,null,null,null,null,"08093000"]
[null,null,null,null,null,null,null,null,null,"08094000"]
[null,null,null,null,null,null,null,null,null,"0810"]
[null,null,null,null,null,null,null,null,null,"08101000"]
[null,null,null,null,null,null,null,null,null,"08102000"]
[null,null,null,null,null,null,null,null,null,"081030"]
[null,null,null,null,null,null,null,null,null,"08103000"]
[null,null,null,null,null,null,null,null,null,"08104000"]
[null,null,null,null,null,null,null,null,null,"08105000"]
[null,null,null,null,null,null,null,null,null,"08106000"]
[null,null,null,null,null,null,null,null,null,"081070"]
[null,null,null,null,null,null,null,null,null,"08107000"]
[null,null,null,null,null,null,null,null,null,"081090"]
[null,null,null,null,null,null,null,null,null,"08109010"]
[null,null,null,null,null,null,null,null,null,"08109020"]
[null,null,null,null,null,null,null,null,null,"08109030"]
[null,null,null,null,null,null,null,null,null,"08109040"]
[null,null,null,null,null,null,null,null,null,"08109050"]
[null,null,null,null,null,null,null,null,null,"08109060"]
[null,null,null,null,null,null,null,null,null,"08109090"]
[null,null,null,null,null,null,null,null,null,"0811"]
[null,null,null,null,null,null,null,null,null,"081110"]
[null,null,null,null,null,null,null,null,null,"08111010"]
[null,null,null,null,null,null,null,null,null,"08111020"]
[null,null,null,null,null,null,null,null,null,"08111090"]
[null,null,null,null,null,null,null,null,null,"081120"]
[null,null,null,null,null,null,null,null,null,"08112010"]
[null,null,null,null,null,null,null,null,null,"08112020"]
[null,null,null,null,null,null,null,null,null,"08112090"]
[null,null,null,null,null,null,null,null,null,"081190"]
[null,null,null,null,null,null,null,null,null,"08119010"]
[null,null,null,null,null,null,null,null,null,"08119090"]
[null,null,null,null,null,null,null,null,null,"0812"]
[null,null,null,null,null,null,null,null,null,"08121000"]
[null,null,null,null,null,null,null,null,null,"081290"]
[null,null,null,null,null,null,null,null,null,"08129010"]
[null,null,null,null,null,null,null,null,null,"08129090"]
[null,null,null,null,null,null,null,null,null,"0813"]
[null,null,null,null,null,null,null,null,null,"08131000"]
[null,null,null,null,null,null,null,null,null,"08132000"]
[null,null,null,null,null,null,null,null,null,"08133000"]
[null,null,null,null,null,null,null,null,null,"081340"]
[null,null,null,null,null,null,null,null,null,"08134010"]
[null,null,null,null,null,null,null,null,null,"08134020"]
[null,null,null,null,null,null,null,null,null,"08134090"]
[null,null,null,null,null,null,null,null,null,"081350"]
[null,null,null,null,null,null,null,null,null,"08135010"]
[null,null,null,null,null,null,null,null,null,"08135020"]
[null,null,null,null,null,null,null,null,null,"0814"]
[null,null,null,null,null,null,null,null,null,"08140000"]
[null,null,null,null,null,null,null,null,null,"09"]
[null,null,null,null,null,null,null,null,null,"0901"]
[null,null,null,null,null,null,null,null,null,"090111"]
[null,null,null,null,null,null,null,null,null,"09011111"]
[null,null,null,null,null,null,null,null,null,"09011112"]
[null,null,null,null,null,null,null,null,null,"09011113"]
[null,null,null,null,null,null,null,null,null,"09011119"]
[null,null,null,null,null,null,null,null,null,"09011121"]
[null,null,null,null,null,null,null,null,null,"09011122"]
[null,null,null,null,null,null,null,null,null,"09011123"]
[null,null,null,null,null,null,null,null,null,"09011124"]
[null,null,null,null,null,null,null,null,null,"09011129"]
[null,null,null,null,null,null,null,null,null,"09011131"]
[null,null,null,null,null,null,null,null,null,"09011132"]
[null,null,null,null,null,null,null,null,null,"09011133"]
[null,null,null,null,null,null,null,null,null,"09011139"]
[null,null,null,null,null,null,null,null,null,"09011141"]
[null,null,null,null,null,null,null,null,null,"09011142"]
[null,null,null,null,null,null,null,null,null,"09011143"]
[null,null,null,null,null,null,null,null,null,"09011144"]
[null,null,null,null,null,null,null,null,null,"09011145"]
[null,null,null,null,null,null,null,null,null,"09011149"]
[null,null,null,null,null,null,null,null,null,"09011190"]
[null,null,null,null,null,null,null,null,null,"09011200"]
[null,null,null,null,null,null,null,null,null,"090121"]
[null,null,null,null,null,null,null,null,null,"09012110"]
[null,null,null,null,null,null,null,null,null,"09012190"]
[null,null,null,null,null,null,null,null,null,"090122"]
[null,null,null,null,null,null,null,null,null,"09012210"]
[null,null,null,null,null,null,null,null,null,"09012290"]
[null,null,null,null,null,null,null,null,null,"090190"]
[null,null,null,null,null,null,null,null,null,"09019010"]
[null,null,null,null,null,null,null,null,null,"09019020"]
[null,null,null,null,null,null,null,null,null,"09019090"]
[null,null,null,null,null,null,null,null,null,"0902"]
[null,null,null,null,null,null,null,null,null,"090210"]
[null,null,null,null,null,null,null,null,null,"09021010"]
[null,null,null,null,null,null,null,null,null,"09021020"]
[null,null,null,null,null,null,null,null,null,"09021030"]
[null,null,null,null,null,null,null,null,null,"09021090"]
[null,null,null,null,null,null,null,null,null,"090220"]
[null,null,null,null,null,null,null,null,null,"09022010"]
[null,null,null,null,null,null,null,null,null,"09022020"]
[null,null,null,null,null,null,null,null,null,"09022030"]
[null,null,null,null,null,null,null,null,null,"09022040"]
[null,null,null,null,null,null,null,null,null,"09022090"]
[null,null,null,null,null,null,null,null,null,"090230"]
[null,null,null,null,null,null,null,null,null,"09023010"]
[null,null,null,null,null,null,null,null,null,"09023020"]
[null,null,null,null,null,null,null,null,null,"09023030"]
[null,null,null,null,null,null,null,null,null,"09023090"]
[null,null,null,null,null,null,null,null,null,"090240"]
[null,null,null,null,null,null,null,null,null,"09024010"]
[null,null,null,null,null,null,null,null,null,"09024020"]
[null,null,null,null,null,null,null,null,null,"09024030"]
[null,null,null,null,null,null,null,null,null,"09024040"]
[null,null,null,null,null,null,null,null,null,"09024050"]
[null,null,null,null,null,null,null,null,null,"09024060"]
[null,null,null,null,null,null,null,null,null,"09024090"]
[null,null,null,null,null,null,null,null,null,"0903"]
[null,null,null,null,null,null,null,null,null,"09030000"]
[null,null,null,null,null,null,null,null,null,"0904"]
[null,null,null,null,null,null,null,null,null,"090411"]
[null,null,null,null,null,null,null,null,null,"09041110"]
[null,null,null,null,null,null,null,null,null,"09041120"]
[null,null,null,null,null,null,null,null,null,"09041130"]
[null,null,null,null,null,null,null,null,null,"09041140"]
[null,null,null,null,null,null,null,null,null,"09041150"]
[null,null,null,null,null,null,null,null,null,"09041160"]
[null,null,null,null,null,null,null,null,null,"09041170"]
[null,null,null,null,null,null,null,null,null,"09041180"]
[null,null,null,null,null,null,null,null,null,"09041190"]
[null,null,null,null,null,null,null,null,null,"09041200"]
[null,null,null,null,null,null,null,null,null,"090420"]
[null,null,null,null,null,null,null,null,null,"090421"]
[null,null,null,null,null,null,null,null,null,"09042110"]
[null,null,null,null,null,null,null,null,null,"09042120"]
[null,null,null,null,null,null,null,null,null,"090422"]
[null,null,null,null,null,null,null,null,null,"09042211"]
[null,null,null,null,null,null,null,null,null,"09042212"]
[null,null,null,null,null,null,null,null,null,"09042219"]
[null,null,null,null,null,null,null,null,null,"09042221"]
[null,null,null,null,null,null,null,null,null,"09042229"]
[null,null,null,null,null,null,null,null,null,"0905"]
[null,null,null,null,null,null,null,null,null,"090500"]
[null,null,null,null,null,null,null,null,null,"090510"]
[null,null,null,null,null,null,null,null,null,"09051000"]
[null,null,null,null,null,null,null,null,null,"090520"]
[null,null,null,null,null,null,null,null,null,"09052000"]
[null,null,null,null,null,null,null,null,null,"0906"]
[null,null,null,null,null,null,null,null,null,"09061010"]
[null,null,null,null,null,null,null,null,null,"09061020"]
[null,null,null,null,null,null,null,null,null,"09061030"]
[null,null,null,null,null,null,null,null,null,"09061090"]
[null,null,null,null,null,null,null,null,null,"090611"]
[null,null,null,null,null,null,null,null,null,"09061110"]
[null,null,null,null,null,null,null,null,null,"09061120"]
[null,null,null,null,null,null,null,null,null,"09061190"]
[null,null,null,null,null,null,null,null,null,"090619"]
[null,null,null,null,null,null,null,null,null,"09061910"]
[null,null,null,null,null,null,null,null,null,"09061990"]
[null,null,null,null,null,null,null,null,null,"09062000"]
[null,null,null,null,null,null,null,null,null,"0907"]
[null,null,null,null,null,null,null,null,null,"090710"]
[null,null,null,null,null,null,null,null,null,"09071010"]
[null,null,null,null,null,null,null,null,null,"09071020"]
[null,null,null,null,null,null,null,null,null,"09071030"]
[null,null,null,null,null,null,null,null,null,"09071090"]
[null,null,null,null,null,null,null,null,null,"090720"]
[null,null,null,null,null,null,null,null,null,"09072000"]
[null,null,null,null,null,null,null,null,null,"0908"]
[null,null,null,null,null,null,null,null,null,"090810"]
[null,null,null,null,null,null,null,null,null,"090811"]
[null,null,null,null,null,null,null,null,null,"09081110"]
[null,null,null,null,null,null,null,null,null,"09081120"]
[null,null,null,null,null,null,null,null,null,"090812"]
[null,null,null,null,null,null,null,null,null,"09081200"]
[null,null,null,null,null,null,null,null,null,"090821"]
[null,null,null,null,null,null,null,null,null,"09082100"]
[null,null,null,null,null,null,null,null,null,"090822"]
[null,null,null,null,null,null,null,null,null,"09082200"]
[null,null,null,null,null,null,null,null,null,"090830"]
[null,null,null,null,null,null,null,null,null,"090831"]
[null,null,null,null,null,null,null,null,null,"09083110"]
[null,null,null,null,null,null,null,null,null,"09083120"]
[null,null,null,null,null,null,null,null,null,"09083130"]
[null,null,null,null,null,null,null,null,null,"09083140"]
[null,null,null,null,null,null,null,null,null,"09083150"]
[null,null,null,null,null,null,null,null,null,"09083190"]
[null,null,null,null,null,null,null,null,null,"090832"]
[null,null,null,null,null,null,null,null,null,"09083210"]
[null,null,null,null,null,null,null,null,null,"09083220"]
[null,null,null,null,null,null,null,null,null,"09083230"]
[null,null,null,null,null,null,null,null,null,"09083290"]
[null,null,null,null,null,null,null,null,null,"0909"]
[null,null,null,null,null,null,null,null,null,"090910"]
[null,null,null,null,null,null,null,null,null,"090920"]
[null,null,null,null,null,null,null,null,null,"090921"]
[null,null,null,null,null,null,null,null,null,"09092110"]
[null,null,null,null,null,null,null,null,null,"09092190"]
[null,null,null,null,null,null,null,null,null,"090922"]
[null,null,null,null,null,null,null,null,null,"09092200"]
[null,null,null,null,null,null,null,null,null,"090930"]
[null,null,null,null,null,null,null,null,null,"090931"]
[null,null,null,null,null,null,null,null,null,"09093111"]
[null,null,null,null,null,null,null,null,null,"09093119"]
[null,null,null,null,null,null,null,null,null,"09093121"]
[null,null,null,null,null,null,null,null,null,"09093129"]
[null,null,null,null,null,null,null,null,null,"090932"]
[null,null,null,null,null,null,null,null,null,"09093200"]
[null,null,null,null,null,null,null,null,null,"090940"]
[null,null,null,null,null,null,null,null,null,"090950"]
[null,null,null,null,null,null,null,null,null,"090961"]
[null,null,null,null,null,null,null,null,null,"09096111"]
[null,null,null,null,null,null,null,null,null,"09096119"]
[null,null,null,null,null,null,null,null,null,"09096121"]
[null,null,null,null,null,null,null,null,null,"09096129"]
[null,null,null,null,null,null,null,null,null,"09096131"]
[null,null,null,null,null,null,null,null,null,"09096139"]
[null,null,null,null,null,null,null,null,null,"09096141"]
[null,null,null,null,null,null,null,null,null,"09096149"]
[null,null,null,null,null,null,null,null,null,"090962"]
[null,null,null,null,null,null,null,null,null,"09096210"]
[null,null,null,null,null,null,null,null,null,"09096220"]
[null,null,null,null,null,null,null,null,null,"09096230"]
[null,null,null,null,null,null,null,null,null,"09096240"]
[null,null,null,null,null,null,null,null,null,"0910"]
[null,null,null,null,null,null,null,null,null,"091010"]
[null,null,null,null,null,null,null,null,null,"091011"]
[null,null,null,null,null,null,null,null,null,"09101110"]
[null,null,null,null,null,null,null,null,null,"09101120"]
[null,null,null,null,null,null,null,null,null,"09101130"]
[null,null,null,null,null,null,null,null,null,"09101190"]
[null,null,null,null,null,null,null,null,null,"091012"]
[null,null,null,null,null,null,null,null,null,"09101210"]
[null,null,null,null,null,null,null,null,null,"09101290"]
[null,null,null,null,null,null,null,null,null,"091020"]
[null,null,null,null,null,null,null,null,null,"09102010"]
[null,null,null,null,null,null,null,null,null,"09102020"]
[null,null,null,null,null,null,null,null,null,"09102090"]
[null,null,null,null,null,null,null,null,null,"091030"]
[null,null,null,null,null,null,null,null,null,"09103010"]
[null,null,null,null,null,null,null,null,null,"09103020"]
[null,null,null,null,null,null,null,null,null,"09103030"]
[null,null,null,null,null,null,null,null,null,"09103090"]
[null,null,null,null,null,null,null,null,null,"09104010"]
[null,null,null,null,null,null,null,null,null,"09104020"]
[null,null,null,null,null,null,null,null,null,"09104030"]
[null,null,null,null,null,null,null,null,null,"09105000"]
[null,null,null,null,null,null,null,null,null,"09109100"]
[null,null,null,null,null,null,null,null,null,"091099"]
[null,null,null,null,null,null,null,null,null,"09109911"]
[null,null,null,null,null,null,null,null,null,"09109912"]
[null,null,null,null,null,null,null,null,null,"09109913"]
[null,null,null,null,null,null,null,null,null,"09109914"]
[null,null,null,null,null,null,null,null,null,"09109915"]
[null,null,null,null,null,null,null,null,null,"09109919"]
[null,null,null,null,null,null,null,null,null,"09109921"]
[null,null,null,null,null,null,null,null,null,"09109923"]
[null,null,null,null,null,null,null,null,null,"09109924"]
[null,null,null,null,null,null,null,null,null,"09109925"]
[null,null,null,null,null,null,null,null,null,"09109926"]
[null,null,null,null,null,null,null,null,null,"09109927"]
[null,null,null,null,null,null,null,null,null,"09109929"]
[null,null,null,null,null,null,null,null,null,"09109939"]
[null,null,null,null,null,null,null,null,null,"09109990"]
[null,null,null,null,null,null,null,null,null,"10"]
[null,null,null,null,null,null,null,null,null,"1001"]
[null,null,null,null,null,null,null,null,null,"100110"]
[null,null,null,null,null,null,null,null,null,"10011010"]
[null,null,null,null,null,null,null,null,null,"10011090"]
[null,null,null,null,null,null,null,null,null,"100111"]
[null,null,null,null,null,null,null,null,null,"10011100"]
[null,null,null,null,null,null,null,null,null,"100119"]
[null,null,null,null,null,null,null,null,null,"10011900"]
[null,null,null,null,null,null,null,null,null,"100190"]
[null,null,null,null,null,null,null,null,null,"10019010"]
[null,null,null,null,null,null,null,null,null,"10019020"]
[null,null,null,null,null,null,null,null,null,"10019031"]
[null,null,null,null,null,null,null,null,null,"10019039"]
[null,null,null,null,null,null,null,null,null,"100191"]
[null,null,null,null,null,null,null,null,null,"10019100"]
[null,null,null,null,null,null,null,null,null,"100199"]
[null,null,null,null,null,null,null,null,null,"10019910"]
[null,null,null,null,null,null,null,null,null,"10019920"]
[null,null,null,null,null,null,null,null,null,"1002"]
[null,null,null,null,null,null,null,null,null,"100200"]
[null,null,null,null,null,null,null,null,null,"10020010"]
[null,null,null,null,null,null,null,null,null,"10020090"]
[null,null,null,null,null,null,null,null,null,"100210"]
[null,null,null,null,null,null,null,null,null,"10021000"]
[null,null,null,null,null,null,null,null,null,"100290"]
[null,null,null,null,null,null,null,null,null,"10029000"]
[null,null,null,null,null,null,null,null,null,"1003"]
[null,null,null,null,null,null,null,null,null,"100300"]
[null,null,null,null,null,null,null,null,null,"10030010"]
[null,null,null,null,null,null,null,null,null,"10030090"]
[null,null,null,null,null,null,null,null,null,"100310"]
[null,null,null,null,null,null,null,null,null,"10031000"]
[null,null,null,null,null,null,null,null,null,"100390"]
[null,null,null,null,null,null,null,null,null,"10039000"]
[null,null,null,null,null,null,null,null,null,"1004"]
[null,null,null,null,null,null,null,null,null,"100400"]
[null,null,null,null,null,null,null,null,null,"10040010"]
[null,null,null,null,null,null,null,null,null,"10040090"]
[null,null,null,null,null,null,null,null,null,"100410"]
[null,null,null,null,null,null,null,null,null,"10041000"]
[null,null,null,null,null,null,null,null,null,"100490"]
[null,null,null,null,null,null,null,null,null,"10049000"]
[null,null,null,null,null,null,null,null,null,"1005"]
[null,null,null,null,null,null,null,null,null,"10051000"]
[null,null,null,null,null,null,null,null,null,"100590"]
[null,null,null,null,null,null,null,null,null,"10059000"]
[null,null,null,null,null,null,null,null,null,"10059011"]
[null,null,null,null,null,null,null,null,null,"10059019"]
[null,null,null,null,null,null,null,null,null,"10059020"]
[null,null,null,null,null,null,null,null,null,"10059030"]
[null,null,null,null,null,null,null,null,null,"10059090"]
[null,null,null,null,null,null,null,null,null,"1006"]
[null,null,null,null,null,null,null,null,null,"100610"]
[null,null,null,null,null,null,null,null,null,"10061010"]
[null,null,null,null,null,null,null,null,null,"10061090"]
[null,null,null,null,null,null,null,null,null,"10062000"]
[null,null,null,null,null,null,null,null,null,"100630"]
[null,null,null,null,null,null,null,null,null,"10063010"]
[null,null,null,null,null,null,null,null,null,"10063020"]
[null,null,null,null,null,null,null,null,null,"10063090"]
[null,null,null,null,null,null,null,null,null,"10064000"]
[null,null,null,null,null,null,null,null,null,"1007"]
[null,null,null,null,null,null,null,null,null,"100700"]
[null,null,null,null,null,null,null,null,null,"10070010"]
[null,null,null,null,null,null,null,null,null,"10070090"]
[null,null,null,null,null,null,null,null,null,"100710"]
[null,null,null,null,null,null,null,null,null,"10071000"]
[null,null,null,null,null,null,null,null,null,"100790"]
[null,null,null,null,null,null,null,null,null,"10079000"]
[null,null,null,null,null,null,null,null,null,"1008"]
[null,null,null,null,null,null,null,null,null,"100810"]
[null,null,null,null,null,null,null,null,null,"10081010"]
[null,null,null,null,null,null,null,null,null,"10081090"]
[null,null,null,null,null,null,null,null,null,"100820"]
[null,null,null,null,null,null,null,null,null,"10082011"]
[null,null,null,null,null,null,null,null,null,"10082019"]
[null,null,null,null,null,null,null,null,null,"10082021"]
[null,null,null,null,null,null,null,null,null,"10082029"]
[null,null,null,null,null,null,null,null,null,"10082031"]
[null,null,null,null,null,null,null,null,null,"10082039"]
[null,null,null,null,null,null,null,null,null,"100821"]
[null,null,null,null,null,null,null,null,null,"10082110"]
[null,null,null,null,null,null,null,null,null,"10082120"]
[null,null,null,null,null,null,null,null,null,"10082130"]
[null,null,null,null,null,null,null,null,null,"100829"]
[null,null,null,null,null,null,null,null,null,"10082910"]
[null,null,null,null,null,null,null,null,null,"10082920"]
[null,null,null,null,null,null,null,null,null,"10082930"]
[null,null,null,null,null,null,null,null,null,"100830"]
[null,null,null,null,null,null,null,null,null,"10083010"]
[null,null,null,null,null,null,null,null,null,"10083090"]
[null,null,null,null,null,null,null,null,null,"100840"]
[null,null,null,null,null,null,null,null,null,"10084000"]
[null,null,null,null,null,null,null,null,null,"100850"]
[null,null,null,null,null,null,null,null,null,"10085000"]
[null,null,null,null,null,null,null,null,null,"100860"]
[null,null,null,null,null,null,null,null,null,"10086000"]
[null,null,null,null,null,null,null,null,null,"100890"]
[null,null,null,null,null,null,null,null,null,"10089010"]
[null,null,null,null,null,null,null,null,null,"10089090"]
[null,null,null,null,null,null,null,null,null,"1009"]
[null,null,null,null,null,null,null,null,null,"10091090"]
[null,null,null,null,null,null,null,null,null,"11"]
[null,null,null,null,null,null,null,null,null,"1101"]
[null,null,null,null,null,null,null,null,null,"11010000"]
[null,null,null,null,null,null,null,null,null,"1102"]
[null,null,null,null,null,null,null,null,null,"11021000"]
[null,null,null,null,null,null,null,null,null,"11022000"]
[null,null,null,null,null,null,null,null,null,"11023000"]
[null,null,null,null,null,null,null,null,null,"110290"]
[null,null,null,null,null,null,null,null,null,"11029000"]
[null,null,null,null,null,null,null,null,null,11029010]
[null,null,null,null,null,null,null,null,null,"11029021"]
[null,null,null,null,null,null,null,null,null,"11029022"]
[null,null,null,null,null,null,null,null,null,"11029029"]
[null,null,null,null,null,null,null,null,null,"11029090"]
[null,null,null,null,null,null,null,null,null,"1103"]
[null,null,null,null,null,null,null,null,null,"110311"]
[null,null,null,null,null,null,null,null,null,"11031110"]
[null,null,null,null,null,null,null,null,null,"11031120"]
[null,null,null,null,null,null,null,null,null,"11031300"]
[null,null,null,null,null,null,null,null,null,"11031900"]
[null,null,null,null,null,null,null,null,null,"11032000"]
[null,null,null,null,null,null,null,null,null,"1104"]
[null,null,null,null,null,null,null,null,null,"11041200"]
[null,null,null,null,null,null,null,null,null,"11041900"]
[null,null,null,null,null,null,null,null,null,"11042200"]
[null,null,null,null,null,null,null,null,null,"11042300"]
[null,null,null,null,null,null,null,null,null,"11042900"]
[null,null,null,null,null,null,null,null,null,"11043000"]
[null,null,null,null,null,null,null,null,null,"1105"]
[null,null,null,null,null,null,null,null,null,"11051000"]
[null,null,null,null,null,null,null,null,null,"11052000"]
[null,null,null,null,null,null,null,null,null,"1106"]
[null,null,null,null,null,null,null,null,null,"110610"]
[null,null,null,null,null,null,null,null,null,"11061000"]
[null,null,null,null,null,null,null,null,null,"11061010"]
[null,null,null,null,null,null,null,null,null,"11061090"]
[null,null,null,null,null,null,null,null,null,"110620"]
[null,null,null,null,null,null,null,null,null,"11062010"]
[null,null,null,null,null,null,null,null,null,"11062020"]
[null,null,null,null,null,null,null,null,null,"11062090"]
[null,null,null,null,null,null,null,null,null,"110630"]
[null,null,null,null,null,null,null,null,null,"11063010"]
[null,null,null,null,null,null,null,null,null,"11063020"]
[null,null,null,null,null,null,null,null,null,"11063030"]
[null,null,null,null,null,null,null,null,null,"11063090"]
[null,null,null,null,null,null,null,null,null,"1107"]
[null,null,null,null,null,null,null,null,null,"11071000"]
[null,null,null,null,null,null,null,null,null,"11072000"]
[null,null,null,null,null,null,null,null,null,"1108"]
[null,null,null,null,null,null,null,null,null,"11081100"]
[null,null,null,null,null,null,null,null,null,"11081200"]
[null,null,null,null,null,null,null,null,null,"11081300"]
[null,null,null,null,null,null,null,null,null,"11081400"]
[null,null,null,null,null,null,null,null,null,"110819"]
[null,null,null,null,null,null,null,null,null,"11081910"]
[null,null,null,null,null,null,null,null,null,"11081990"]
[null,null,null,null,null,null,null,null,null,"11082000"]
[null,null,null,null,null,null,null,null,null,"1109"]
[null,null,null,null,null,null,null,null,null,"11090000"]
[null,null,null,null,null,null,null,null,null,"1111"]
[null,null,null,null,null,null,null,null,null,"12"]
[null,null,null,null,null,null,null,null,null,"1201"]
[null,null,null,null,null,null,null,null,null,"120100"]
[null,null,null,null,null,null,null,null,null,"12010010"]
[null,null,null,null,null,null,null,null,null,"12010090"]
[null,null,null,null,null,null,null,null,null,"120110"]
[null,null,null,null,null,null,null,null,null,"12011000"]
[null,null,null,null,null,null,null,null,null,"120190"]
[null,null,null,null,null,null,null,null,null,"12019000"]
[null,null,null,null,null,null,null,null,null,"1202"]
[null,null,null,null,null,null,null,null,null,"120210"]
[null,null,null,null,null,null,null,null,null,"12021011"]
[null,null,null,null,null,null,null,null,null,"12021019"]
[null,null,null,null,null,null,null,null,null,"12021091"]
[null,null,null,null,null,null,null,null,null,"12021099"]
[null,null,null,null,null,null,null,null,null,"120220"]
[null,null,null,null,null,null,null,null,null,"12022010"]
[null,null,null,null,null,null,null,null,null,"12022090"]
[null,null,null,null,null,null,null,null,null,"120230"]
[null,null,null,null,null,null,null,null,null,"12023010"]
[null,null,null,null,null,null,null,null,null,"12023090"]
[null,null,null,null,null,null,null,null,null,"120241"]
[null,null,null,null,null,null,null,null,null,"12024110"]
[null,null,null,null,null,null,null,null,null,"12024190"]
[null,null,null,null,null,null,null,null,null,"120242"]
[null,null,null,null,null,null,null,null,null,"12024210"]
[null,null,null,null,null,null,null,null,null,"12024220"]
[null,null,null,null,null,null,null,null,null,"12024290"]
[null,null,null,null,null,null,null,null,null,"1203"]
[null,null,null,null,null,null,null,null,null,"12030000"]
[null,null,null,null,null,null,null,null,null,"1204"]
[null,null,null,null,null,null,null,null,null,"120400"]
[null,null,null,null,null,null,null,null,null,"12040010"]
[null,null,null,null,null,null,null,null,null,"12040090"]
[null,null,null,null,null,null,null,null,null,"1205"]
[null,null,null,null,null,null,null,null,null,"12051000"]
[null,null,null,null,null,null,null,null,null,"12059000"]
[null,null,null,null,null,null,null,null,null,"1206"]
[null,null,null,null,null,null,null,null,null,"120600"]
[null,null,null,null,null,null,null,null,null,"12060010"]
[null,null,null,null,null,null,null,null,null,"12060090"]
[null,null,null,null,null,null,null,null,null,"1207"]
[null,null,null,null,null,null,null,null,null,"120710"]
[null,null,null,null,null,null,null,null,null,"12071010"]
[null,null,null,null,null,null,null,null,null,"12071090"]
[null,null,null,null,null,null,null,null,null,"120720"]
[null,null,null,null,null,null,null,null,null,"12072010"]
[null,null,null,null,null,null,null,null,null,"12072090"]
[null,null,null,null,null,null,null,null,null,"120721"]
[null,null,null,null,null,null,null,null,null,"12072100"]
[null,null,null,null,null,null,null,null,null,"120729"]
[null,null,null,null,null,null,null,null,null,"12072900"]
[null,null,null,null,null,null,null,null,null,"120730"]
[null,null,null,null,null,null,null,null,null,"12073010"]
[null,null,null,null,null,null,null,null,null,"12073090"]
[null,null,null,null,null,null,null,null,null,"120740"]
[null,null,null,null,null,null,null,null,null,"12074010"]
[null,null,null,null,null,null,null,null,null,"12074090"]
[null,null,null,null,null,null,null,null,null,"120750"]
[null,null,null,null,null,null,null,null,null,"12075010"]
[null,null,null,null,null,null,null,null,null,"12075090"]
[null,null,null,null,null,null,null,null,null,"120760"]
[null,null,null,null,null,null,null,null,null,"12076010"]
[null,null,null,null,null,null,null,null,null,"12076090"]
[null,null,null,null,null,null,null,null,null,"120770"]
[null,null,null,null,null,null,null,null,null,"12077010"]
[null,null,null,null,null,null,null,null,null,"12077090"]
[null,null,null,null,null,null,null,null,null,"12079100"]
[null,null,null,null,null,null,null,null,null,"120799"]
[null,null,null,null,null,null,null,null,null,"12079910"]
[null,null,null,null,null,null,null,null,null,"12079920"]
[null,null,null,null,null,null,null,null,null,"12079930"]
[null,null,null,null,null,null,null,null,null,"12079940"]
[null,null,null,null,null,null,null,null,null,"12079990"]
[null,null,null,null,null,null,null,null,null,"1208"]
[null,null,null,null,null,null,null,null,null,"12081000"]
[null,null,null,null,null,null,null,null,null,"12089000"]
[null,null,null,null,null,null,null,null,null,"1209"]
[null,null,null,null,null,null,null,null,null,"12091000"]
[null,null,null,null,null,null,null,null,null,"12092100"]
[null,null,null,null,null,null,null,null,null,"12092200"]
[null,null,null,null,null,null,null,null,null,"12092300"]
[null,null,null,null,null,null,null,null,null,"12092400"]
[null,null,null,null,null,null,null,null,null,"12092500"]
[null,null,null,null,null,null,null,null,null,"12092600"]
[null,null,null,null,null,null,null,null,null,"120929"]
[null,null,null,null,null,null,null,null,null,"12092910"]
[null,null,null,null,null,null,null,null,null,"12092990"]
[null,null,null,null,null,null,null,null,null,"12093000"]
[null,null,null,null,null,null,null,null,null,"120991"]
[null,null,null,null,null,null,null,null,null,"12099110"]
[null,null,null,null,null,null,null,null,null,"12099120"]
[null,null,null,null,null,null,null,null,null,"12099130"]
[null,null,null,null,null,null,null,null,null,"12099140"]
[null,null,null,null,null,null,null,null,null,"12099150"]
[null,null,null,null,null,null,null,null,null,"12099160"]
[null,null,null,null,null,null,null,null,null,"12099170"]
[null,null,null,null,null,null,null,null,null,"12099190"]
[null,null,null,null,null,null,null,null,null,"120999"]
[null,null,null,null,null,null,null,null,null,"12099910"]
[null,null,null,null,null,null,null,null,null,"12099990"]
[null,null,null,null,null,null,null,null,null,"1210"]
[null,null,null,null,null,null,null,null,null,"12101000"]
[null,null,null,null,null,null,null,null,null,"12102000"]
[null,null,null,null,null,null,null,null,null,"1211"]
[null,null,null,null,null,null,null,null,null,"12111000"]
[null,null,null,null,null,null,null,null,null,"12112000"]
[null,null,null,null,null,null,null,null,null,"12113000"]
[null,null,null,null,null,null,null,null,null,"12114000"]
[null,null,null,null,null,null,null,null,null,"12115000"]
[null,null,null,null,null,null,null,null,null,"121190"]
[null,null,null,null,null,null,null,null,null,"12119011"]
[null,null,null,null,null,null,null,null,null,"12119012"]
[null,null,null,null,null,null,null,null,null,"12119013"]
[null,null,null,null,null,null,null,null,null,"12119014"]
[null,null,null,null,null,null,null,null,null,"12119015"]
[null,null,null,null,null,null,null,null,null,"12119019"]
[null,null,null,null,null,null,null,null,null,"12119021"]
[null,null,null,null,null,null,null,null,null,"12119022"]
[null,null,null,null,null,null,null,null,null,"12119023"]
[null,null,null,null,null,null,null,null,null,"12119024"]
[null,null,null,null,null,null,null,null,null,"12119025"]
[null,null,null,null,null,null,null,null,null,"12119026"]
[null,null,null,null,null,null,null,null,null,"12119029"]
[null,null,null,null,null,null,null,null,null,"12119031"]
[null,null,null,null,null,null,null,null,null,"12119032"]
[null,null,null,null,null,null,null,null,null,"12119033"]
[null,null,null,null,null,null,null,null,null,"12119039"]
[null,null,null,null,null,null,null,null,null,"12119041"]
[null,null,null,null,null,null,null,null,null,"12119042"]
[null,null,null,null,null,null,null,null,null,"12119043"]
[null,null,null,null,null,null,null,null,null,"12119044"]
[null,null,null,null,null,null,null,null,null,"12119045"]
[null,null,null,null,null,null,null,null,null,"12119046"]
[null,null,null,null,null,null,null,null,null,"12119047"]
[null,null,null,null,null,null,null,null,null,"12119048"]
[null,null,null,null,null,null,null,null,null,"12119049"]
[null,null,null,null,null,null,null,null,null,"12119050"]
[null,null,null,null,null,null,null,null,null,"12119060"]
[null,null,null,null,null,null,null,null,null,"12119070"]
[null,null,null,null,null,null,null,null,null,"12119080"]
[null,null,null,null,null,null,null,null,null,"12119091"]
[null,null,null,null,null,null,null,null,null,"12119092"]
[null,null,null,null,null,null,null,null,null,"12119093"]
[null,null,null,null,null,null,null,null,null,"12119094"]
[null,null,null,null,null,null,null,null,null,"12119095"]
[null,null,null,null,null,null,null,null,null,"12119096"]
[null,null,null,null,null,null,null,null,null,"12119099"]
[null,null,null,null,null,null,null,null,null,"1212"]
[null,null,null,null,null,null,null,null,null,"12121010"]
[null,null,null,null,null,null,null,null,null,"12121090"]
[null,null,null,null,null,null,null,null,null,"121220"]
[null,null,null,null,null,null,null,null,null,"12122010"]
[null,null,null,null,null,null,null,null,null,"12122090"]
[null,null,null,null,null,null,null,null,null,"121221"]
[null,null,null,null,null,null,null,null,null,"12122110"]
[null,null,null,null,null,null,null,null,null,"12122190"]
[null,null,null,null,null,null,null,null,null,"121229"]
[null,null,null,null,null,null,null,null,null,"12122910"]
[null,null,null,null,null,null,null,null,null,"12122990"]
[null,null,null,null,null,null,null,null,null,"12123010"]
[null,null,null,null,null,null,null,null,null,"12123090"]
[null,null,null,null,null,null,null,null,null,"12129100"]
[null,null,null,null,null,null,null,null,null,"121292"]
[null,null,null,null,null,null,null,null,null,"12129200"]
[null,null,null,null,null,null,null,null,null,"121293"]
[null,null,null,null,null,null,null,null,null,"12129300"]
[null,null,null,null,null,null,null,null,null,"121294"]
[null,null,null,null,null,null,null,null,null,"12129400"]
[null,null,null,null,null,null,null,null,null,"121299"]
[null,null,null,null,null,null,null,null,null,"12129910"]
[null,null,null,null,null,null,null,null,null,"12129920"]
[null,null,null,null,null,null,null,null,null,"12129990"]
[null,null,null,null,null,null,null,null,null,"1213"]
[null,null,null,null,null,null,null,null,null,"12130000"]
[null,null,null,null,null,null,null,null,null,"1214"]
[null,null,null,null,null,null,null,null,null,"12141000"]
[null,null,null,null,null,null,null,null,null,"12149000"]
[null,null,null,null,null,null,null,null,null,"13"]
[null,null,null,null,null,null,null,null,null,"1301"]
[null,null,null,null,null,null,null,null,null,"13011010"]
[null,null,null,null,null,null,null,null,null,"13011020"]
[null,null,null,null,null,null,null,null,null,"13011030"]
[null,null,null,null,null,null,null,null,null,"13011040"]
[null,null,null,null,null,null,null,null,null,"13011050"]
[null,null,null,null,null,null,null,null,null,"13011060"]
[null,null,null,null,null,null,null,null,null,"13011070"]
[null,null,null,null,null,null,null,null,null,"13011080"]
[null,null,null,null,null,null,null,null,null,"13011090"]
[null,null,null,null,null,null,null,null,null,"13012000"]
[null,null,null,null,null,null,null,null,null,"130190"]
[null,null,null,null,null,null,null,null,null,"13019011"]
[null,null,null,null,null,null,null,null,null,"13019012"]
[null,null,null,null,null,null,null,null,null,"13019013"]
[null,null,null,null,null,null,null,null,null,"13019014"]
[null,null,null,null,null,null,null,null,null,"13019015"]
[null,null,null,null,null,null,null,null,null,"13019016"]
[null,null,null,null,null,null,null,null,null,"13019017"]
[null,null,null,null,null,null,null,null,null,"13019018"]
[null,null,null,null,null,null,null,null,null,"13019019"]
[null,null,null,null,null,null,null,null,null,"13019021"]
[null,null,null,null,null,null,null,null,null,"13019022"]
[null,null,null,null,null,null,null,null,null,"13019029"]
[null,null,null,null,null,null,null,null,null,"13019031"]
[null,null,null,null,null,null,null,null,null,"13019032"]
[null,null,null,null,null,null,null,null,null,"13019033"]
[null,null,null,null,null,null,null,null,null,"13019034"]
[null,null,null,null,null,null,null,null,null,"13019039"]
[null,null,null,null,null,null,null,null,null,"13019041"]
[null,null,null,null,null,null,null,null,null,"13019042"]
[null,null,null,null,null,null,null,null,null,"13019043"]
[null,null,null,null,null,null,null,null,null,"13019044"]
[null,null,null,null,null,null,null,null,null,"13019045"]
[null,null,null,null,null,null,null,null,null,"13019046"]
[null,null,null,null,null,null,null,null,null,"13019049"]
[null,null,null,null,null,null,null,null,null,"13019099"]
[null,null,null,null,null,null,null,null,null,"1302"]
[null,null,null,null,null,null,null,null,null,"13021100"]
[null,null,null,null,null,null,null,null,null,"13021200"]
[null,null,null,null,null,null,null,null,null,"13021300"]
[null,null,null,null,null,null,null,null,null,"13021400"]
[null,null,null,null,null,null,null,null,null,"130219"]
[null,null,null,null,null,null,null,null,null,"13021911"]
[null,null,null,null,null,null,null,null,null,"13021912"]
[null,null,null,null,null,null,null,null,null,"13021913"]
[null,null,null,null,null,null,null,null,null,"13021914"]
[null,null,null,null,null,null,null,null,null,"13021915"]
[null,null,null,null,null,null,null,null,null,"13021916"]
[null,null,null,null,null,null,null,null,null,"13021917"]
[null,null,null,null,null,null,null,null,null,"13021918"]
[null,null,null,null,null,null,null,null,null,"13021919"]
[null,null,null,null,null,null,null,null,null,"13021920"]
[null,null,null,null,null,null,null,null,null,"13021930"]
[null,null,null,null,null,null,null,null,null,"13021990"]
[null,null,null,null,null,null,null,null,null,"13022000"]
[null,null,null,null,null,null,null,null,null,"13023100"]
[null,null,null,null,null,null,null,null,null,"130232"]
[null,null,null,null,null,null,null,null,null,"13023210"]
[null,null,null,null,null,null,null,null,null,"13023220"]
[null,null,null,null,null,null,null,null,null,"13023230"]
[null,null,null,null,null,null,null,null,null,"13023240"]
[null,null,null,null,null,null,null,null,null,"13023290"]
[null,null,null,null,null,null,null,null,null,"13023900"]
[null,null,null,null,null,null,null,null,null,"14"]
[null,null,null,null,null,null,null,null,null,"1401"]
[null,null,null,null,null,null,null,null,null,"14011000"]
[null,null,null,null,null,null,null,null,null,"14012000"]
[null,null,null,null,null,null,null,null,null,"140190"]
[null,null,null,null,null,null,null,null,null,"14019010"]
[null,null,null,null,null,null,null,null,null,"14019090"]
[null,null,null,null,null,null,null,null,null,"1402"]
[null,null,null,null,null,null,null,null,null,"14020000"]
[null,null,null,null,null,null,null,null,null,"1403"]
[null,null,null,null,null,null,null,null,null,"14030010"]
[null,null,null,null,null,null,null,null,null,"14030090"]
[null,null,null,null,null,null,null,null,null,"1404"]
[null,null,null,null,null,null,null,null,null,"14041011"]
[null,null,null,null,null,null,null,null,null,"14041019"]
[null,null,null,null,null,null,null,null,null,"14041020"]
[null,null,null,null,null,null,null,null,null,"14041030"]
[null,null,null,null,null,null,null,null,null,"14041040"]
[null,null,null,null,null,null,null,null,null,"14041050"]
[null,null,null,null,null,null,null,null,null,"14041061"]
[null,null,null,null,null,null,null,null,null,"14041069"]
[null,null,null,null,null,null,null,null,null,"14041070"]
[null,null,null,null,null,null,null,null,null,"14041090"]
[null,null,null,null,null,null,null,null,null,"14042000"]
[null,null,null,null,null,null,null,null,null,"140490"]
[null,null,null,null,null,null,null,null,null,"14049010"]
[null,null,null,null,null,null,null,null,null,"14049021"]
[null,null,null,null,null,null,null,null,null,"14049029"]
[null,null,null,null,null,null,null,null,null,"14049030"]
[null,null,null,null,null,null,null,null,null,"14049040"]
[null,null,null,null,null,null,null,null,null,"14049050"]
[null,null,null,null,null,null,null,null,null,"14049060"]
[null,null,null,null,null,null,null,null,null,"14049070"]
[null,null,null,null,null,null,null,null,null,"14049090"]
[null,null,null,null,null,null,null,null,null,"15"]
[null,null,null,null,null,null,null,null,null,"1501"]
[null,null,null,null,null,null,null,null,null,"150110"]
[null,null,null,null,null,null,null,null,null,"15011000"]
[null,null,null,null,null,null,null,null,null,"150120"]
[null,null,null,null,null,null,null,null,null,"15012000"]
[null,null,null,null,null,null,null,null,null,"150190"]
[null,null,null,null,null,null,null,null,null,"15019000"]
[null,null,null,null,null,null,null,null,null,"1502"]
[null,null,null,null,null,null,null,null,null,"150200"]
[null,null,null,null,null,null,null,null,null,"150210"]
[null,null,null,null,null,null,null,null,null,"15021010"]
[null,null,null,null,null,null,null,null,null,"15021090"]
[null,null,null,null,null,null,null,null,null,"150290"]
[null,null,null,null,null,null,null,null,null,"15029010"]
[null,null,null,null,null,null,null,null,null,"15029020"]
[null,null,null,null,null,null,null,null,null,"15029090"]
[null,null,null,null,null,null,null,null,null,"1503"]
[null,null,null,null,null,null,null,null,null,"15030000"]
[null,null,null,null,null,null,null,null,null,"1504"]
[null,null,null,null,null,null,null,null,null,"150410"]
[null,null,null,null,null,null,null,null,null,"15041010"]
[null,null,null,null,null,null,null,null,null,"15041091"]
[null,null,null,null,null,null,null,null,null,"15041099"]
[null,null,null,null,null,null,null,null,null,"150420"]
[null,null,null,null,null,null,null,null,null,"15042010"]
[null,null,null,null,null,null,null,null,null,"15042020"]
[null,null,null,null,null,null,null,null,null,"15042030"]
[null,null,null,null,null,null,null,null,null,"15042090"]
[null,null,null,null,null,null,null,null,null,"15043000"]
[null,null,null,null,null,null,null,null,null,"1505"]
[null,null,null,null,null,null,null,null,null,"150500"]
[null,null,null,null,null,null,null,null,null,"15050010"]
[null,null,null,null,null,null,null,null,null,"15050020"]
[null,null,null,null,null,null,null,null,null,"15050090"]
[null,null,null,null,null,null,null,null,null,"1506"]
[null,null,null,null,null,null,null,null,null,"150600"]
[null,null,null,null,null,null,null,null,null,"15060010"]
[null,null,null,null,null,null,null,null,null,"15060090"]
[null,null,null,null,null,null,null,null,null,"1507"]
[null,null,null,null,null,null,null,null,null,"15071000"]
[null,null,null,null,null,null,null,null,null,"150790"]
[null,null,null,null,null,null,null,null,null,"15079010"]
[null,null,null,null,null,null,null,null,null,"15079090"]
[null,null,null,null,null,null,null,null,null,"1508"]
[null,null,null,null,null,null,null,null,null,"15081000"]
[null,null,null,null,null,null,null,null,null,"150890"]
[null,null,null,null,null,null,null,null,null,"15089010"]
[null,null,null,null,null,null,null,null,null,"15089091"]
[null,null,null,null,null,null,null,null,null,"15089099"]
[null,null,null,null,null,null,null,null,null,"1509"]
[null,null,null,null,null,null,null,null,null,"15091000"]
[null,null,null,null,null,null,null,null,null,"150990"]
[null,null,null,null,null,null,null,null,null,"15099010"]
[null,null,null,null,null,null,null,null,null,"15099090"]
[null,null,null,null,null,null,null,null,null,"1510"]
[null,null,null,null,null,null,null,null,null,"151000"]
[null,null,null,null,null,null,null,null,null,"15100010"]
[null,null,null,null,null,null,null,null,null,"15100091"]
[null,null,null,null,null,null,null,null,null,"15100099"]
[null,null,null,null,null,null,null,null,null,"1511"]
[null,null,null,null,null,null,null,null,null,"15111000"]
[null,null,null,null,null,null,null,null,null,"151190"]
[null,null,null,null,null,null,null,null,null,"15119010"]
[null,null,null,null,null,null,null,null,null,"15119020"]
[null,null,null,null,null,null,null,null,null,"15119030"]
[null,null,null,null,null,null,null,null,null,"15119090"]
[null,null,null,null,null,null,null,null,null,"1512"]
[null,null,null,null,null,null,null,null,null,"151211"]
[null,null,null,null,null,null,null,null,null,"15121110"]
[null,null,null,null,null,null,null,null,null,"15121120"]
[null,null,null,null,null,null,null,null,null,"151219"]
[null,null,null,null,null,null,null,null,null,"15121910"]
[null,null,null,null,null,null,null,null,null,"15121920"]
[null,null,null,null,null,null,null,null,null,"15121930"]
[null,null,null,null,null,null,null,null,null,"15121940"]
[null,null,null,null,null,null,null,null,null,"15121990"]
[null,null,null,null,null,null,null,null,null,"15122100"]
[null,null,null,null,null,null,null,null,null,"151229"]
[null,null,null,null,null,null,null,null,null,"15122910"]
[null,null,null,null,null,null,null,null,null,"15122990"]
[null,null,null,null,null,null,null,null,null,"1513"]
[null,null,null,null,null,null,null,null,null,"15131100"]
[null,null,null,null,null,null,null,null,null,"15131900"]
[null,null,null,null,null,null,null,null,null,"151321"]
[null,null,null,null,null,null,null,null,null,"15132110"]
[null,null,null,null,null,null,null,null,null,"15132120"]
[null,null,null,null,null,null,null,null,null,"151329"]
[null,null,null,null,null,null,null,null,null,"15132910"]
[null,null,null,null,null,null,null,null,null,"15132920"]
[null,null,null,null,null,null,null,null,null,"15132930"]
[null,null,null,null,null,null,null,null,null,"15132990"]
[null,null,null,null,null,null,null,null,null,"1514"]
[null,null,null,null,null,null,null,null,null,"151411"]
[null,null,null,null,null,null,null,null,null,"15141110"]
[null,null,null,null,null,null,null,null,null,"15141120"]
[null,null,null,null,null,null,null,null,null,"15141190"]
[null,null,null,null,null,null,null,null,null,"151419"]
[null,null,null,null,null,null,null,null,null,"15141910"]
[null,null,null,null,null,null,null,null,null,"15141920"]
[null,null,null,null,null,null,null,null,null,"15141990"]
[null,null,null,null,null,null,null,null,null,"151491"]
[null,null,null,null,null,null,null,null,null,"15149110"]
[null,null,null,null,null,null,null,null,null,"15149120"]
[null,null,null,null,null,null,null,null,null,"15149190"]
[null,null,null,null,null,null,null,null,null,"151499"]
[null,null,null,null,null,null,null,null,null,"15149910"]
[null,null,null,null,null,null,null,null,null,"15149920"]
[null,null,null,null,null,null,null,null,null,"15149930"]
[null,null,null,null,null,null,null,null,null,"15149990"]
[null,null,null,null,null,null,null,null,null,"1515"]
[null,null,null,null,null,null,null,null,null,"15151100"]
[null,null,null,null,null,null,null,null,null,"151519"]
[null,null,null,null,null,null,null,null,null,"15151910"]
[null,null,null,null,null,null,null,null,null,"15151990"]
[null,null,null,null,null,null,null,null,null,"15152100"]
[null,null,null,null,null,null,null,null,null,"151529"]
[null,null,null,null,null,null,null,null,null,"15152910"]
[null,null,null,null,null,null,null,null,null,"15152990"]
[null,null,null,null,null,null,null,null,null,"151530"]
[null,null,null,null,null,null,null,null,null,"15153010"]
[null,null,null,null,null,null,null,null,null,"15153090"]
[null,null,null,null,null,null,null,null,null,"15154000"]
[null,null,null,null,null,null,null,null,null,"151550"]
[null,null,null,null,null,null,null,null,null,"15155010"]
[null,null,null,null,null,null,null,null,null,"15155091"]
[null,null,null,null,null,null,null,null,null,"15155099"]
[null,null,null,null,null,null,null,null,null,"151590"]
[null,null,null,null,null,null,null,null,null,"15159010"]
[null,null,null,null,null,null,null,null,null,"15159020"]
[null,null,null,null,null,null,null,null,null,"15159030"]
[null,null,null,null,null,null,null,null,null,"15159040"]
[null,null,null,null,null,null,null,null,null,"15159091"]
[null,null,null,null,null,null,null,null,null,"15159099"]
[null,null,null,null,null,null,null,null,null,"1516"]
[null,null,null,null,null,null,null,null,null,"15161000"]
[null,null,null,null,null,null,null,null,null,"151620"]
[null,null,null,null,null,null,null,null,null,"15162011"]
[null,null,null,null,null,null,null,null,null,"15162019"]
[null,null,null,null,null,null,null,null,null,"15162021"]
[null,null,null,null,null,null,null,null,null,"15162029"]
[null,null,null,null,null,null,null,null,null,"15162031"]
[null,null,null,null,null,null,null,null,null,"15162039"]
[null,null,null,null,null,null,null,null,null,"15162091"]
[null,null,null,null,null,null,null,null,null,"15162099"]
[null,null,null,null,null,null,null,null,null,"1517"]
[null,null,null,null,null,null,null,null,null,"151710"]
[null,null,null,null,null,null,null,null,null,"15171010"]
[null,null,null,null,null,null,null,null,null,"15171021"]
[null,null,null,null,null,null,null,null,null,"15171022"]
[null,null,null,null,null,null,null,null,null,"15171029"]
[null,null,null,null,null,null,null,null,null,"151790"]
[null,null,null,null,null,null,null,null,null,"15179010"]
[null,null,null,null,null,null,null,null,null,"15179030"]
[null,null,null,null,null,null,null,null,null,"15179040"]
[null,null,null,null,null,null,null,null,null,"15179090"]
[null,null,null,null,null,null,null,null,null,"1518"]
[null,null,null,null,null,null,null,null,null,"151800"]
[null,null,null,null,null,null,null,null,null,"15180011"]
[null,null,null,null,null,null,null,null,null,"15180019"]
[null,null,null,null,null,null,null,null,null,"15180021"]
[null,null,null,null,null,null,null,null,null,"15180029"]
[null,null,null,null,null,null,null,null,null,"15180031"]
[null,null,null,null,null,null,null,null,null,"15180039"]
[null,null,null,null,null,null,null,null,null,"15180040"]
[null,null,null,null,null,null,null,null,null,"1519"]
[null,null,null,null,null,null,null,null,null,"1520"]
[null,null,null,null,null,null,null,null,null,"15200000"]
[null,null,null,null,null,null,null,null,null,"1521"]
[null,null,null,null,null,null,null,null,null,"152110"]
[null,null,null,null,null,null,null,null,null,"15211011"]
[null,null,null,null,null,null,null,null,null,"15211019"]
[null,null,null,null,null,null,null,null,null,"15211090"]
[null,null,null,null,null,null,null,null,null,"152190"]
[null,null,null,null,null,null,null,null,null,"15219010"]
[null,null,null,null,null,null,null,null,null,"15219020"]
[null,null,null,null,null,null,null,null,null,"15219090"]
[null,null,null,null,null,null,null,null,null,"1522"]
[null,null,null,null,null,null,null,null,null,"152200"]
[null,null,null,null,null,null,null,null,null,"15220010"]
[null,null,null,null,null,null,null,null,null,"15220020"]
[null,null,null,null,null,null,null,null,null,"15220090"]
[null,null,null,null,null,null,null,null,null,"16"]
[null,null,null,null,null,null,null,null,null,"1601"]
[null,null,null,null,null,null,null,null,null,"16010000"]
[null,null,null,null,null,null,null,null,null,"1602"]
[null,null,null,null,null,null,null,null,null,"16021000"]
[null,null,null,null,null,null,null,null,null,"16022000"]
[null,null,null,null,null,null,null,null,null,"16023100"]
[null,null,null,null,null,null,null,null,null,"16023200"]
[null,null,null,null,null,null,null,null,null,"16023900"]
[null,null,null,null,null,null,null,null,null,"16024100"]
[null,null,null,null,null,null,null,null,null,"16024200"]
[null,null,null,null,null,null,null,null,null,"16024900"]
[null,null,null,null,null,null,null,null,null,"16025000"]
[null,null,null,null,null,null,null,null,null,"16029000"]
[null,null,null,null,null,null,null,null,null,"1603"]
[null,null,null,null,null,null,null,null,null,"160300"]
[null,null,null,null,null,null,null,null,null,"16030010"]
[null,null,null,null,null,null,null,null,null,"16030020"]
[null,null,null,null,null,null,null,null,null,"16030090"]
[null,null,null,null,null,null,null,null,null,"1604"]
[null,null,null,null,null,null,null,null,null,"16041100"]
[null,null,null,null,null,null,null,null,null,"160412"]
[null,null,null,null,null,null,null,null,null,"16041210"]
[null,null,null,null,null,null,null,null,null,"16041290"]
[null,null,null,null,null,null,null,null,null,"160413"]
[null,null,null,null,null,null,null,null,null,"16041310"]
[null,null,null,null,null,null,null,null,null,"16041320"]
[null,null,null,null,null,null,null,null,null,"160414"]
[null,null,null,null,null,null,null,null,null,"16041410"]
[null,null,null,null,null,null,null,null,null,"16041490"]
[null,null,null,null,null,null,null,null,null,"16041500"]
[null,null,null,null,null,null,null,null,null,"16041600"]
[null,null,null,null,null,null,null,null,null,"160417"]
[null,null,null,null,null,null,null,null,null,"16041700"]
[null,null,null,null,null,null,null,null,null,"16041800"]
[null,null,null,null,null,null,null,null,null,"16041900"]
[null,null,null,null,null,null,null,null,null,"16042000"]
[null,null,null,null,null,null,null,null,null,"160431"]
[null,null,null,null,null,null,null,null,null,"16043100"]
[null,null,null,null,null,null,null,null,null,"160432"]
[null,null,null,null,null,null,null,null,null,"16043200"]
[null,null,null,null,null,null,null,null,null,"1605"]
[null,null,null,null,null,null,null,null,null,"16051000"]
[null,null,null,null,null,null,null,null,null,"160521"]
[null,null,null,null,null,null,null,null,null,"16052100"]
[null,null,null,null,null,null,null,null,null,"160529"]
[null,null,null,null,null,null,null,null,null,"16052900"]
[null,null,null,null,null,null,null,null,null,"16053000"]
[null,null,null,null,null,null,null,null,null,"16054000"]
[null,null,null,null,null,null,null,null,null,"160551"]
[null,null,null,null,null,null,null,null,null,"16055100"]
[null,null,null,null,null,null,null,null,null,"160552"]
[null,null,null,null,null,null,null,null,null,"16055200"]
[null,null,null,null,null,null,null,null,null,"160553"]
[null,null,null,null,null,null,null,null,null,"16055300"]
[null,null,null,null,null,null,null,null,null,"160554"]
[null,null,null,null,null,null,null,null,null,"16055400"]
[null,null,null,null,null,null,null,null,null,"160555"]
[null,null,null,null,null,null,null,null,null,"16055500"]
[null,null,null,null,null,null,null,null,null,"160556"]
[null,null,null,null,null,null,null,null,null,"16055600"]
[null,null,null,null,null,null,null,null,null,"160557"]
[null,null,null,null,null,null,null,null,null,"16055700"]
[null,null,null,null,null,null,null,null,null,"160558"]
[null,null,null,null,null,null,null,null,null,"16055800"]
[null,null,null,null,null,null,null,null,null,"160559"]
[null,null,null,null,null,null,null,null,null,"16055900"]
[null,null,null,null,null,null,null,null,null,"160561"]
[null,null,null,null,null,null,null,null,null,"16056100"]
[null,null,null,null,null,null,null,null,null,"160562"]
[null,null,null,null,null,null,null,null,null,"16056200"]
[null,null,null,null,null,null,null,null,null,"160563"]
[null,null,null,null,null,null,null,null,null,"16056300"]
[null,null,null,null,null,null,null,null,null,"160569"]
[null,null,null,null,null,null,null,null,null,"16056900"]
[null,null,null,null,null,null,null,null,null,"160590"]
[null,null,null,null,null,null,null,null,null,"17"]
[null,null,null,null,null,null,null,null,null,"1701"]
[null,null,null,null,null,null,null,null,null,"170111"]
[null,null,null,null,null,null,null,null,null,"17011200"]
[null,null,null,null,null,null,null,null,null,"170113"]
[null,null,null,null,null,null,null,null,null,"17011310"]
[null,null,null,null,null,null,null,null,null,"17011320"]
[null,null,null,null,null,null,null,null,null,"17011390"]
[null,null,null,null,null,null,null,null,null,"170114"]
[null,null,null,null,null,null,null,null,null,"17011410"]
[null,null,null,null,null,null,null,null,null,"17011420"]
[null,null,null,null,null,null,null,null,null,"17011490"]
[null,null,null,null,null,null,null,null,null,"17019100"]
[null,null,null,null,null,null,null,null,null,"170199"]
[null,null,null,null,null,null,null,null,null,"17019910"]
[null,null,null,null,null,null,null,null,null,"17019990"]
[null,null,null,null,null,null,null,null,null,"1702"]
[null,null,null,null,null,null,null,null,null,"170211"]
[null,null,null,null,null,null,null,null,null,"17021110"]
[null,null,null,null,null,null,null,null,null,"170220"]
[null,null,null,null,null,null,null,null,null,"17023020"]
[null,null,null,null,null,null,null,null,null,"170260"]
[null,null,null,null,null,null,null,null,null,"17029030"]
[null,null,null,null,null,null,null,null,null,"170490"]
[null,null,null,null,null,null,null,null,null,"18020000"]
[null,null,null,null,null,null,null,null,null,"18061000"]
[null,null,null,null,null,null,null,null,null,"18063200"]
[null,null,null,null,null,null,null,null,null,"18069090"]
[null,null,null,null,null,null,null,null,null,"19019090"]
[null,null,null,null,null,null,null,null,null,"19023010"]
[null,null,null,null,null,null,null,null,null,"19041010"]
[null,null,null,null,null,null,null,null,null,"19052000"]
[null,null,null,null,null,null,null,null,null,"19059020"]
[null,null,null,null,null,null,null,null,null,"19059040"]
[null,null,null,null,null,null,null,null,null,"20021000"]
[null,null,null,null,null,null,null,null,null,"20049000"]
[null,null,null,null,null,null,null,null,null,"20056000"]
[null,null,null,null,null,null,null,null,null,"20079100"]
[null,null,null,null,null,null,null,null,null,"200819"]
[null,null,null,null,null,null,null,null,null,"20083090"]
[null,null,null,null,null,null,null,null,null,"20089300"]
[null,null,null,null,null,null,null,null,null,"20089991"]
[null,null,null,null,null,null,null,null,null,"20089992"]
[null,null,null,null,null,null,null,null,null,"20092900"]
[null,null,null,null,null,null,null,null,null,"200989"]
[null,null,null,null,null,null,null,null,null,"20099000"]
[null,null,null,null,null,null,null,null,null,"2073"]
[null,null,null,null,null,null,null,null,null,"210120"]
[null,null,null,null,null,null,null,null,null,"21013020"]
[null,null,null,null,null,null,null,null,null,"2103"]
[null,null,null,null,null,null,null,null,null,"21031000"]
[null,null,null,null,null,null,null,null,null,"21041090"]
[null,null,null,null,null,null,null,null,null,"21061000"]
[null,null,null,null,null,null,null,null,null,"21069070"]
[null,null,null,null,null,null,null,null,null,"22011010"]
[null,null,null,null,null,null,null,null,null,"22021020"]
[null,null,null,null,null,null,null,null,null,"22029910"]
[null,null,null,null,null,null,null,null,null,"22042110"]
[null,null,null,null,null,null,null,null,null,"22042290"]
[null,null,null,null,null,null,null,null,null,"22042920"]
[null,null,null,null,null,null,null,null,null,"220710"]
[null,null,null,null,null,null,null,null,null,"22082012"]
[null,null,null,null,null,null,null,null,null,"22083010"]
[null,null,null,null,null,null,null,null,null,"22083092"]
[null,null,null,null,null,null,null,null,null,"22084092"]
[null,null,null,null,null,null,null,null,null,"22085013"]
[null,null,null,null,null,null,null,null,null,"22085093"]
[null,null,null,null,null,null,null,null,null,"22087092"]
[null,null,null,null,null,null,null,null,null,"22089092"]
[null,null,null,null,null,null,null,null,null,"23"]
[null,null,null,null,null,null,null,null,null,"230210"]
[null,null,null,null,null,null,null,null,null,"2303"]
[null,null,null,null,null,null,null,null,null,"2304"]
[null,null,null,null,null,null,null,null,null,"23061010"]
[null,null,null,null,null,null,null,null,null,"23061020"]
[null,null,null,null,null,null,null,null,null,"23063010"]
[null,null,null,null,null,null,null,null,null,"23066000"]
[null,null,null,null,null,null,null,null,null,"23069016"]
[null,null,null,null,null,null,null,null,null,"23069026"]
[null,null,null,null,null,null,null,null,null,"23080000"]
[null,null,null,null,null,null,null,null,null,"230990"]
[null,null,null,null,null,null,null,null,null,"24011050"]
[null,null,null,null,null,null,null,null,null,"24011060"]
[null,null,null,null,null,null,null,null,null,"24012040"]
[null,null,null,null,null,null,null,null,null,"24021010"]
[null,null,null,null,null,null,null,null,null,"240290"]
[null,null,null,null,null,null,null,null,null,"240319"]
[null,null,null,null,null,null,null,null,null,"24039100"]
[null,null,null,null,null,null,null,null,null,"250100"]
[null,null,null,null,null,null,null,null,null,"25030090"]
[null,null,null,null,null,null,null,null,null,"250490"]
[null,null,null,null,null,null,null,null,null,"2505"]
[null,null,null,null,null,null,null,null,null,"25061010"]
[null,null,null,null,null,null,null,null,null,"25062900"]
[null,null,null,null,null,null,null,null,null,"25082010"]
[null,null,null,null,null,null,null,null,null,"25083090"]
[null,null,null,null,null,null,null,null,null,"25085023"]
[null,null,null,null,null,null,null,null,null,"251010"]
[null,null,null,null,null,null,null,null,null,"251020"]
[null,null,null,null,null,null,null,null,null,"25102090"]
[null,null,null,null,null,null,null,null,null,"25120010"]
[null,null,null,null,null,null,null,null,null,"25132020"]
[null,null,null,null,null,null,null,null,null,"251512"]
[null,null,null,null,null,null,null,null,null,"25161200"]
[null,null,null,null,null,null,null,null,null,"251710"]
[null,null,null,null,null,null,null,null,null,"25174900"]
[null,null,null,null,null,null,null,null,null,"25181000"]
[null,null,null,null,null,null,null,null,null,"25199040"]
[null,null,null,null,null,null,null,null,null,"25210010"]
[null,null,null,null,null,null,null,null,null,"25223000"]
[null,null,null,null,null,null,null,null,null,"25232990"]
[null,null,null,null,null,null,null,null,null,"25240019"]
[null,null,null,null,null,null,null,null,null,"25240091"]
[null,null,null,null,null,null,null,null,null,"25249022"]
[null,null,null,null,null,null,null,null,null,"25249023"]
[null,null,null,null,null,null,null,null,null,"25249099"]
[null,null,null,null,null,null,null,null,null,"252520"]
[null,null,null,null,null,null,null,null,null,"25253020"]
[null,null,null,null,null,null,null,null,null,"2528"]
[null,null,null,null,null,null,null,null,null,"25280090"]
[null,null,null,null,null,null,null,null,null,"25301010"]
[null,null,null,null,null,null,null,null,null,"25309050"]
[null,null,null,null,null,null,null,null,null,"25309060"]
[null,null,null,null,null,null,null,null,null,"26011121"]
[null,null,null,null,null,null,null,null,null,"26011143"]
[null,null,null,null,null,null,null,null,null,"260200"]
[null,null,null,null,null,null,null,null,null,"26020070"]
[null,null,null,null,null,null,null,null,null,"26060010"]
[null,null,null,null,null,null,null,null,null,"2610"]
[null,null,null,null,null,null,null,null,null,"2612"]
[null,null,null,null,null,null,null,null,null,"26121000"]
[null,null,null,null,null,null,null,null,null,"26140020"]
[null,null,null,null,null,null,null,null,null,"2616"]
[null,null,null,null,null,null,null,null,null,"26180000"]
[null,null,null,null,null,null,null,null,null,"26201100"]
[null,null,null,null,null,null,null,null,null,"26203010"]
[null,null,null,null,null,null,null,null,null,"26211000"]
[null,null,null,null,null,null,null,null,null,"27011910"]
[null,null,null,null,null,null,null,null,null,"27011990"]
[null,null,null,null,null,null,null,null,null,"27030010"]
[null,null,null,null,null,null,null,null,null,"2705"]
[null,null,null,null,null,null,null,null,null,"27076000"]
[null,null,null,null,null,null,null,null,null,"27081010"]
[null,null,null,null,null,null,null,null,null,"271012"]
[null,null,null,null,null,null,null,null,null,"27101231"]
[null,null,null,null,null,null,null,null,null,"271019"]
[null,null,null,null,null,null,null,null,null,"27101910"]
[null,null,null,null,null,null,null,null,null,"27101943"]
[null,null,null,null,null,null,null,null,null,"27101970"]
[null,null,null,null,null,null,null,null,null,"27101976"]
[null,null,null,null,null,null,null,null,null,"27101985"]
[null,null,null,null,null,null,null,null,null,"27102020"]
[null,null,null,null,null,null,null,null,null,"27111400"]
[null,null,null,null,null,null,null,null,null,"271210"]
[null,null,null,null,null,null,null,null,null,"27121010"]
[null,null,null,null,null,null,null,null,null,"271311"]
[null,null,null,null,null,null,null,null,null,"271312"]
[null,null,null,null,null,null,null,null,null,"27149010"]
[null,null,null,null,null,null,null,null,null,"27160000"]
[null,null,null,null,null,null,null,null,null,"28013020"]
[null,null,null,null,null,null,null,null,null,"28030090"]
[null,null,null,null,null,null,null,null,null,"28044010"]
[null,null,null,null,null,null,null,null,null,"28045020"]
[null,null,null,null,null,null,null,null,null,"28047020"]
[null,null,null,null,null,null,null,null,null,"28054000"]
[null,null,null,null,null,null,null,null,null,"280800"]
[null,null,null,null,null,null,null,null,null,"28092010"]
[null,null,null,null,null,null,null,null,null,"28111930"]
[null,null,null,null,null,null,null,null,null,"28112910"]
[null,null,null,null,null,null,null,null,null,"28121020"]
[null,null,null,null,null,null,null,null,null,"28121030"]
[null,null,null,null,null,null,null,null,null,"28121050"]
[null,null,null,null,null,null,null,null,null,"28121700"]
[null,null,null,null,null,null,null,null,null,"281390"]
[null,null,null,null,null,null,null,null,null,"28151110"]
[null,null,null,null,null,null,null,null,null,"28164000"]
[null,null,null,null,null,null,null,null,null,"28182090"]
[null,null,null,null,null,null,null,null,null,"2819"]
[null,null,null,null,null,null,null,null,null,"282110"]
[null,null,null,null,null,null,null,null,null,"2823"]
[null,null,null,null,null,null,null,null,null,"28241020"]
[null,null,null,null,null,null,null,null,null,"28252000"]
[null,null,null,null,null,null,null,null,null,"282570"]
[null,null,null,null,null,null,null,null,null,"28259040"]
[null,null,null,null,null,null,null,null,null,"28261910"]
[null,null,null,null,null,null,null,null,null,"28273100"]
[null,null,null,null,null,null,null,null,null,"28273200"]
[null,null,null,null,null,null,null,null,null,"28273940"]
[null,null,null,null,null,null,null,null,null,"28276010"]
[null,null,null,null,null,null,null,null,null,"282810"]
[null,null,null,null,null,null,null,null,null,"28289050"]
[null,null,null,null,null,null,null,null,null,"282990"]
[null,null,null,null,null,null,null,null,null,"28303000"]
[null,null,null,null,null,null,null,null,null,"28319010"]
[null,null,null,null,null,null,null,null,null,"28319020"]
[null,null,null,null,null,null,null,null,null,"28323020"]
[null,null,null,null,null,null,null,null,null,"28331910"]
[null,null,null,null,null,null,null,null,null,"28332500"]
[null,null,null,null,null,null,null,null,null,"28332950"]
[null,null,null,null,null,null,null,null,null,"2834"]
[null,null,null,null,null,null,null,null,null,"28342990"]
[null,null,null,null,null,null,null,null,null,"28352500"]
[null,null,null,null,null,null,null,null,null,"28352910"]
[null,null,null,null,null,null,null,null,null,"28352940"]
[null,null,null,null,null,null,null,null,null,"28362090"]
[null,null,null,null,null,null,null,null,null,"28369910"]
[null,null,null,null,null,null,null,null,null,"28371920"]
[null,null,null,null,null,null,null,null,null,"2838"]
[null,null,null,null,null,null,null,null,null,"28399010"]
[null,null,null,null,null,null,null,null,null,"284020"]
[null,null,null,null,null,null,null,null,null,"2841"]
[null,null,null,null,null,null,null,null,null,"28416100"]
[null,null,null,null,null,null,null,null,null,"28418090"]
[null,null,null,null,null,null,null,null,null,"28429090"]
[null,null,null,null,null,null,null,null,null,"28439011"]
[null,null,null,null,null,null,null,null,null,"28443021"]
[null,null,null,null,null,null,null,null,null,"28443030"]
[null,null,null,null,null,null,null,null,null,"284690"]
[null,null,null,null,null,null,null,null,null,"28469010"]
[null,null,null,null,null,null,null,null,null,"28480020"]
[null,null,null,null,null,null,null,null,null,"28499020"]
[null,null,null,null,null,null,null,null,null,"28500049"]
[null,null,null,null,null,null,null,null,null,"28510099"]
[null,null,null,null,null,null,null,null,null,"28530020"]
[null,null,null,null,null,null,null,null,null,"28530091"]
[null,null,null,null,null,null,null,null,null,"29012400"]
[null,null,null,null,null,null,null,null,null,"290129"]
[null,null,null,null,null,null,null,null,null,"290219"]
[null,null,null,null,null,null,null,null,null,"29024400"]
[null,null,null,null,null,null,null,null,null,"29029050"]
[null,null,null,null,null,null,null,null,null,"29031400"]
[null,null,null,null,null,null,null,null,null,"29031990"]
[null,null,null,null,null,null,null,null,null,"29033911"]
[null,null,null,null,null,null,null,null,null,"290373"]
[null,null,null,null,null,null,null,null,null,"290376"]
[null,null,null,null,null,null,null,null,null,"29037630"]
[null,null,null,null,null,null,null,null,null,"29037725"]
[null,null,null,null,null,null,null,null,null,"290378"]
[null,null,null,null,null,null,null,null,null,"290391"]
[null,null,null,null,null,null,null,null,null,"29039221"]
[null,null,null,null,null,null,null,null,null,"29039950"]
[null,null,null,null,null,null,null,null,null,"29041040"]
[null,null,null,null,null,null,null,null,null,"29042030"]
[null,null,null,null,null,null,null,null,null,"29042090"]
[null,null,null,null,null,null,null,null,null,"29049020"]
[null,null,null,null,null,null,null,null,null,"29049920"]
[null,null,null,null,null,null,null,null,null,"2905"]
[null,null,null,null,null,null,null,null,null,"29051430"]
[null,null,null,null,null,null,null,null,null,"29051900"]
[null,null,null,null,null,null,null,null,null,"29052240"]
[null,null,null,null,null,null,null,null,null,"29052290"]
[null,null,null,null,null,null,null,null,null,"290542"]
[null,null,null,null,null,null,null,null,null,"290613"]
[null,null,null,null,null,null,null,null,null,"29061910"]
[null,null,null,null,null,null,null,null,null,"29071110"]
[null,null,null,null,null,null,null,null,null,"29071510"]
[null,null,null,null,null,null,null,null,null,"29071930"]
[null,null,null,null,null,null,null,null,null,"29072990"]
[null,null,null,null,null,null,null,null,null,"2908"]
[null,null,null,null,null,null,null,null,null,"29082025"]
[null,null,null,null,null,null,null,null,null,"290892"]
[null,null,null,null,null,null,null,null,null,"29091900"]
[null,null,null,null,null,null,null,null,null,"29093020"]
[null,null,null,null,null,null,null,null,null,"29094300"]
[null,null,null,null,null,null,null,null,null,"29095040"]
[null,null,null,null,null,null,null,null,null,"29105000"]
[null,null,null,null,null,null,null,null,null,"29109000"]
[null,null,null,null,null,null,null,null,null,"29121910"]
[null,null,null,null,null,null,null,null,null,"29122920"]
[null,null,null,null,null,null,null,null,null,"29124940"]
[null,null,null,null,null,null,null,null,null,"29130010"]
[null,null,null,null,null,null,null,null,null,"29142200"]
[null,null,null,null,null,null,null,null,null,"29142930"]
[null,null,null,null,null,null,null,null,null,"29143940"]
[null,null,null,null,null,null,null,null,null,"29143990"]
[null,null,null,null,null,null,null,null,null,"29146990"]
[null,null,null,null,null,null,null,null,null,"29147930"]
[null,null,null,null,null,null,null,null,null,"291512"]
[null,null,null,null,null,null,null,null,null,"29152930"]
[null,null,null,null,null,null,null,null,null,"29153910"]
[null,null,null,null,null,null,null,null,null,"29153991"]
[null,null,null,null,null,null,null,null,null,"29155000"]
[null,null,null,null,null,null,null,null,null,"29156010"]
[null,null,null,null,null,null,null,null,null,"291590"]
[null,null,null,null,null,null,null,null,null,"29159091"]
[null,null,null,null,null,null,null,null,null,"29161310"]
[null,null,null,null,null,null,null,null,null,"29161590"]
[null,null,null,null,null,null,null,null,null,"29161960"]
[null,null,null,null,null,null,null,null,null,"29163120"]
[null,null,null,null,null,null,null,null,null,"291639"]
[null,null,null,null,null,null,null,null,null,"29163910"]
[null,null,null,null,null,null,null,null,null,"29171110"]
[null,null,null,null,null,null,null,null,null,"291719"]
[null,null,null,null,null,null,null,null,null,"29171960"]
[null,null,null,null,null,null,null,null,null,"29173600"]
[null,null,null,null,null,null,null,null,null,"29173960"]
[null,null,null,null,null,null,null,null,null,"29181310"]
[null,null,null,null,null,null,null,null,null,"29181550"]
[null,null,null,null,null,null,null,null,null,"29181590"]
[null,null,null,null,null,null,null,null,null,"291821"]
[null,null,null,null,null,null,null,null,null,"29182200"]
[null,null,null,null,null,null,null,null,null,"29182920"]
[null,null,null,null,null,null,null,null,null,"29183090"]
[null,null,null,null,null,null,null,null,null,"29189990"]
[null,null,null,null,null,null,null,null,null,"29199010"]
[null,null,null,null,null,null,null,null,null,"29201020"]
[null,null,null,null,null,null,null,null,null,"29201920"]
[null,null,null,null,null,null,null,null,null,"29202400"]
[null,null,null,null,null,null,null,null,null,"29209020"]
[null,null,null,null,null,null,null,null,null,"292111"]
[null,null,null,null,null,null,null,null,null,"292119"]
[null,null,null,null,null,null,null,null,null,"292129"]
[null,null,null,null,null,null,null,null,null,"29214110"]
[null,null,null,null,null,null,null,null,null,"292142"]
[null,null,null,null,null,null,null,null,null,"29214221"]
[null,null,null,null,null,null,null,null,null,"29214234"]
[null,null,null,null,null,null,null,null,null,"29214360"]
[null,null,null,null,null,null,null,null,null,"29214511"]
[null,null,null,null,null,null,null,null,null,"29214524"]
[null,null,null,null,null,null,null,null,null,"29214910"]
[null,null,null,null,null,null,null,null,null,"29215160"]
[null,null,null,null,null,null,null,null,null,"29215180"]
[null,null,null,null,null,null,null,null,null,"29215990"]
[null,null,null,null,null,null,null,null,null,"29221290"]
[null,null,null,null,null,null,null,null,null,"29221720"]
[null,null,null,null,null,null,null,null,null,"29222110"]
[null,null,null,null,null,null,null,null,null,"29222210"]
[null,null,null,null,null,null,null,null,null,"29222921"]
[null,null,null,null,null,null,null,null,null,"29222933"]
[null,null,null,null,null,null,null,null,null,"29224210"]
[null,null,null,null,null,null,null,null,null,"29224220"]
[null,null,null,null,null,null,null,null,null,"29225015"]
[null,null,null,null,null,null,null,null,null,"29225024"]
[null,null,null,null,null,null,null,null,null,"29239000"]
[null,null,null,null,null,null,null,null,null,"29242190"]
[null,null,null,null,null,null,null,null,null,"29242960"]
[null,null,null,null,null,null,null,null,null,"29252090"]
[null,null,null,null,null,null,null,null,null,"29264000"]
[null,null,null,null,null,null,null,null,null,"29269000"]
[null,null,null,null,null,null,null,null,null,"29291020"]
[null,null,null,null,null,null,null,null,null,"29299040"]
[null,null,null,null,null,null,null,null,null,"29305000"]
[null,null,null,null,null,null,null,null,null,"29309050"]
[null,null,null,null,null,null,null,null,null,"29309094"]
[null,null,null,null,null,null,null,null,null,"29310041"]
[null,null,null,null,null,null,null,null,null,"29310056"]
[null,null,null,null,null,null,null,null,null,"29310073"]
[null,null,null,null,null,null,null,null,null,"29311020"]
[null,null,null,null,null,null,null,null,null,"29313700"]
[null,null,null,null,null,null,null,null,null,"29321200"]
[null,null,null,null,null,null,null,null,null,"29322090"]
[null,null,null,null,null,null,null,null,null,"29329910"]
[null,null,null,null,null,null,null,null,null,"29331950"]
[null,null,null,null,null,null,null,null,null,"29331991"]
[null,null,null,null,null,null,null,null,null,"29332910"]
[null,null,null,null,null,null,null,null,null,"293339"]
[null,null,null,null,null,null,null,null,null,"29333919"]
[null,null,null,null,null,null,null,null,null,"29335200"]
[null,null,null,null,null,null,null,null,null,"29336100"]
[null,null,null,null,null,null,null,null,null,"29337200"]
[null,null,null,null,null,null,null,null,null,"29337920"]
[null,null,null,null,null,null,null,null,null,"293499"]
[null,null,null,null,null,null,null,null,null,"29349900"]
[null,null,null,null,null,null,null,null,null,"29350014"]
[null,null,null,null,null,null,null,null,null,"29353000"]
[null,null,null,null,null,null,null,null,null,"29359021"]
[null,null,null,null,null,null,null,null,null,"29362210"]
[null,null,null,null,null,null,null,null,null,"29362500"]
[null,null,null,null,null,null,null,null,null,"29362950"]
[null,null,null,null,null,null,null,null,null,"29372300"]
[null,null,null,null,null,null,null,null,null,"29372900"]
[null,null,null,null,null,null,null,null,null,"2938"]
[null,null,null,null,null,null,null,null,null,"293920"]
[null,null,null,null,null,null,null,null,null,"29392140"]
[null,null,null,null,null,null,null,null,null,"29394190"]
[null,null,null,null,null,null,null,null,null,"29394900"]
[null,null,null,null,null,null,null,null,null,"293979"]
[null,null,null,null,null,null,null,null,null,"294110"]
[null,null,null,null,null,null,null,null,null,"29411090"]
[null,null,null,null,null,null,null,null,null,"29412090"]
[null,null,null,null,null,null,null,null,null,"29419012"]
[null,null,null,null,null,null,null,null,null,"29419090"]
[null,null,null,null,null,null,null,null,null,"29420023"]
[null,null,null,null,null,null,null,null,null,"29420032"]
[null,null,null,null,null,null,null,null,null,"300120"]
[null,null,null,null,null,null,null,null,null,"30019099"]
[null,null,null,null,null,null,null,null,null,"3002"]
[null,null,null,null,null,null,null,null,null,"30021099"]
[null,null,null,null,null,null,null,null,null,"30021310"]
[null,null,null,null,null,null,null,null,null,"30022015"]
[null,null,null,null,null,null,null,null,null,"30022023"]
[null,null,null,null,null,null,null,null,null,"30029090"]
[null,null,null,null,null,null,null,null,null,"30034300"]
[null,null,null,null,null,null,null,null,null,"30039014"]
[null,null,null,null,null,null,null,null,null,"30039021"]
[null,null,null,null,null,null,null,null,null,"3004"]
[null,null,null,null,null,null,null,null,null,"30041090"]
[null,null,null,null,null,null,null,null,null,"30042031"]
[null,null,null,null,null,null,null,null,null,"30042061"]
[null,null,null,null,null,null,null,null,null,"30042094"]
[null,null,null,null,null,null,null,null,null,"30043110"]
[null,null,null,null,null,null,null,null,null,"30043990"]
[null,null,null,null,null,null,null,null,null,"300440"]
[null,null,null,null,null,null,null,null,null,"30044300"]
[null,null,null,null,null,null,null,null,null,"30044950"]
[null,null,null,null,null,null,null,null,null,"30045033"]
[null,null,null,null,null,null,null,null,null,"30049011"]
[null,null,null,null,null,null,null,null,null,"30049021"]
[null,null,null,null,null,null,null,null,null,"30049035"]
[null,null,null,null,null,null,null,null,null,"30049047"]
[null,null,null,null,null,null,null,null,null,"30049048"]
[null,null,null,null,null,null,null,null,null,"30049059"]
[null,null,null,null,null,null,null,null,null,"30049067"]
[null,null,null,null,null,null,null,null,null,"30049079"]
[null,null,null,null,null,null,null,null,null,"30049087"]
[null,null,null,null,null,null,null,null,null,"3005"]
[null,null,null,null,null,null,null,null,null,"30059040"]
[null,null,null,null,null,null,null,null,null,"30062000"]
[null,null,null,null,null,null,null,null,null,"30063000"]
[null,null,null,null,null,null,null,null,null,"30068000"]
[null,null,null,null,null,null,null,null,null,"3025"]
[null,null,null,null,null,null,null,null,null,"3032"]
[null,null,null,null,null,null,null,null,null,"3045"]
[null,null,null,null,null,null,null,null,null,"306131"]
[null,null,null,null,null,null,null,null,null,"3082"]
[null,null,null,null,null,null,null,null,null,"31010099"]
[null,null,null,null,null,null,null,null,null,"31021000"]
[null,null,null,null,null,null,null,null,null,"31027000"]
[null,null,null,null,null,null,null,null,null,"31032000"]
[null,null,null,null,null,null,null,null,null,"31055100"]
[null,null,null,null,null,null,null,null,null,"31059090"]
[null,null,null,null,null,null,null,null,null,"32019090"]
[null,null,null,null,null,null,null,null,null,"320300"]
[null,null,null,null,null,null,null,null,null,"32041111"]
[null,null,null,null,null,null,null,null,null,"32041119"]
[null,null,null,null,null,null,null,null,null,"32041143"]
[null,null,null,null,null,null,null,null,null,"32041193"]
[null,null,null,null,null,null,null,null,null,"32041211"]
[null,null,null,null,null,null,null,null,null,"32041221"]
[null,null,null,null,null,null,null,null,null,"32041239"]
[null,null,null,null,null,null,null,null,null,"32041251"]
[null,null,null,null,null,null,null,null,null,"32041264"]
[null,null,null,null,null,null,null,null,null,"32041265"]
[null,null,null,null,null,null,null,null,null,"32041321"]
[null,null,null,null,null,null,null,null,null,"32041341"]
[null,null,null,null,null,null,null,null,null,"32041391"]
[null,null,null,null,null,null,null,null,null,"32041431"]
[null,null,null,null,null,null,null,null,null,"32041482"]
[null,null,null,null,null,null,null,null,null,"32041511"]
[null,null,null,null,null,null,null,null,null,"32041542"]
[null,null,null,null,null,null,null,null,null,"32041553"]
[null,null,null,null,null,null,null,null,null,"32041558"]
[null,null,null,null,null,null,null,null,null,"32041573"]
[null,null,null,null,null,null,null,null,null,"32041593"]
[null,null,null,null,null,null,null,null,null,"320416"]
[null,null,null,null,null,null,null,null,null,"32041711"]
[null,null,null,null,null,null,null,null,null,"32041769"]
[null,null,null,null,null,null,null,null,null,"32041790"]
[null,null,null,null,null,null,null,null,null,"32041915"]
[null,null,null,null,null,null,null,null,null,"32041932"]
[null,null,null,null,null,null,null,null,null,"32041943"]
[null,null,null,null,null,null,null,null,null,"32041953"]
[null,null,null,null,null,null,null,null,null,"32041963"]
[null,null,null,null,null,null,null,null,null,"32041974"]
[null,null,null,null,null,null,null,null,null,"32041984"]
[null,null,null,null,null,null,null,null,null,"32041986"]
[null,null,null,null,null,null,null,null,null,"32042090"]
[null,null,null,null,null,null,null,null,null,"32062000"]
[null,null,null,null,null,null,null,null,null,"32064920"]
[null,null,null,null,null,null,null,null,null,"32071040"]
[null,null,null,null,null,null,null,null,null,"32081010"]
[null,null,null,null,null,null,null,null,null,"320890"]
[null,null,null,null,null,null,null,null,null,"32089049"]
[null,null,null,null,null,null,null,null,null,"32099020"]
[null,null,null,null,null,null,null,null,null,"32099090"]
[null,null,null,null,null,null,null,null,null,"32121000"]
[null,null,null,null,null,null,null,null,null,"32129030"]
[null,null,null,null,null,null,null,null,null,"32149020"]
[null,null,null,null,null,null,null,null,null,"321519"]
[null,null,null,null,null,null,null,null,null,"32159040"]
[null,null,null,null,null,null,null,null,null,"33011400"]
[null,null,null,null,null,null,null,null,null,"330125"]
[null,null,null,null,null,null,null,null,null,"33012510"]
[null,null,null,null,null,null,null,null,null,"33012916"]
[null,null,null,null,null,null,null,null,null,"33012923"]
[null,null,null,null,null,null,null,null,null,"33012934"]
[null,null,null,null,null,null,null,null,null,"33012945"]
[null,null,null,null,null,null,null,null,null,"33013010"]
[null,null,null,null,null,null,null,null,null,"33019016"]
[null,null,null,null,null,null,null,null,null,"33019032"]
[null,null,null,null,null,null,null,null,null,"33019060"]
[null,null,null,null,null,null,null,null,null,"33019090"]
[null,null,null,null,null,null,null,null,null,"33029020"]
[null,null,null,null,null,null,null,null,null,"33030050"]
[null,null,null,null,null,null,null,null,null,"33049120"]
[null,null,null,null,null,null,null,null,null,"3305"]
[null,null,null,null,null,null,null,null,null,"33059020"]
[null,null,null,null,null,null,null,null,null,"3306"]
[null,null,null,null,null,null,null,null,null,"33061090"]
[null,null,null,null,null,null,null,null,null,"33073010"]
[null,null,null,null,null,null,null,null,null,"3401"]
[null,null,null,null,null,null,null,null,null,"34011919"]
[null,null,null,null,null,null,null,null,null,"34013019"]
[null,null,null,null,null,null,null,null,null,"340220"]
[null,null,null,null,null,null,null,null,null,"340290"]
[null,null,null,null,null,null,null,null,null,"34029092"]
[null,null,null,null,null,null,null,null,null,"34029099"]
[null,null,null,null,null,null,null,null,null,"340490"]
[null,null,null,null,null,null,null,null,null,"34051000"]
[null,null,null,null,null,null,null,null,null,"340600"]
[null,null,null,null,null,null,null,null,null,"35011000"]
[null,null,null,null,null,null,null,null,null,"35029000"]
[null,null,null,null,null,null,null,null,null,"35040099"]
[null,null,null,null,null,null,null,null,null,"35069110"]
[null,null,null,null,null,null,null,null,null,"35069190"]
[null,null,null,null,null,null,null,null,null,"35071019"]
[null,null,null,null,null,null,null,null,null,"35079061"]
[null,null,null,null,null,null,null,null,null,"360100"]
[null,null,null,null,null,null,null,null,null,"360300"]
[null,null,null,null,null,null,null,null,null,"36030039"]
[null,null,null,null,null,null,null,null,null,"36050010"]
[null,null,null,null,null,null,null,null,null,"36069099"]
[null,null,null,null,null,null,null,null,null,"37012000"]
[null,null,null,null,null,null,null,null,null,"37019110"]
[null,null,null,null,null,null,null,null,null,"37023110"]
[null,null,null,null,null,null,null,null,null,"37024110"]
[null,null,null,null,null,null,null,null,null,"37024410"]
[null,null,null,null,null,null,null,null,null,"37025220"]
[null,null,null,null,null,null,null,null,null,"37025520"]
[null,null,null,null,null,null,null,null,null,"370295"]
[null,null,null,null,null,null,null,null,null,"370296"]
[null,null,null,null,null,null,null,null,null,"3703"]
[null,null,null,null,null,null,null,null,null,"37039020"]
[null,null,null,null,null,null,null,null,null,"37052000"]
[null,null,null,null,null,null,null,null,null,"37061013"]
[null,null,null,null,null,null,null,null,null,"37061059"]
[null,null,null,null,null,null,null,null,null,"37061092"]
[null,null,null,null,null,null,null,null,null,"37069041"]
[null,null,null,null,null,null,null,null,null,"37069042"]
[null,null,null,null,null,null,null,null,null,"37069070"]
[null,null,null,null,null,null,null,null,null,"38"]
[null,null,null,null,null,null,null,null,null,"380290"]
[null,null,null,null,null,null,null,null,null,"38040010"]
[null,null,null,null,null,null,null,null,null,"380590"]
[null,null,null,null,null,null,null,null,null,"380610"]
[null,null,null,null,null,null,null,null,null,"38070020"]
[null,null,null,null,null,null,null,null,null,"38070030"]
[null,null,null,null,null,null,null,null,null,"38081023"]
[null,null,null,null,null,null,null,null,null,"38081032"]
[null,null,null,null,null,null,null,null,null,"38082010"]
[null,null,null,null,null,null,null,null,null,"38083040"]
[null,null,null,null,null,null,null,null,null,"38085000"]
[null,null,null,null,null,null,null,null,null,"38089121"]
[null,null,null,null,null,null,null,null,null,"38089136"]
[null,null,null,null,null,null,null,null,null,"38089191"]
[null,null,null,null,null,null,null,null,null,"38089240"]
[null,null,null,null,null,null,null,null,null,"38089390"]
[null,null,null,null,null,null,null,null,null,"38099120"]
[null,null,null,null,null,null,null,null,null,"38099190"]
[null,null,null,null,null,null,null,null,null,"38101090"]
[null,null,null,null,null,null,null,null,null,"38119000"]
[null,null,null,null,null,null,null,null,null,"38123030"]
[null,null,null,null,null,null,null,null,null,"38123090"]
[null,null,null,null,null,null,null,null,null,"38130000"]
[null,null,null,null,null,null,null,null,null,"38151290"]
[null,null,null,null,null,null,null,null,null,"381700"]
[null,null,null,null,null,null,null,null,null,"3820"]
[null,null,null,null,null,null,null,null,null,"38220090"]
[null,null,null,null,null,null,null,null,null,"38231300"]
[null,null,null,null,null,null,null,null,null,"38237090"]
[null,null,null,null,null,null,null,null,null,"38241000"]
[null,null,null,null,null,null,null,null,null,"38245010"]
[null,null,null,null,null,null,null,null,null,"38247600"]
[null,null,null,null,null,null,null,null,null,"38247990"]
[null,null,null,null,null,null,null,null,null,"382490"]
[null,null,null,null,null,null,null,null,null,"38249022"]
[null,null,null,null,null,null,null,null,null,"38249035"]
[null,null,null,null,null,null,null,null,null,"3825"]
[null,null,null,null,null,null,null,null,null,"38251000"]
[null,null,null,null,null,null,null,null,null,"3826"]
[null,null,null,null,null,null,null,null,null,"390140"]
[null,null,null,null,null,null,null,null,null,"39019090"]
[null,null,null,null,null,null,null,null,null,"39031910"]
[null,null,null,null,null,null,null,null,null,"390410"]
[null,null,null,null,null,null,null,null,null,"39042200"]
[null,null,null,null,null,null,null,null,null,"39045090"]
[null,null,null,null,null,null,null,null,null,"39046100"]
[null,null,null,null,null,null,null,null,null,"39051910"]
[null,null,null,null,null,null,null,null,null,"39052900"]
[null,null,null,null,null,null,null,null,null,"390690"]
[null,null,null,null,null,null,null,null,null,"39069070"]
[null,null,null,null,null,null,null,null,null,"39074000"]
[null,null,null,null,null,null,null,null,null,"390769"]
[null,null,null,null,null,null,null,null,null,"39079150"]
[null,null,null,null,null,null,null,null,null,"39079910"]
[null,null,null,null,null,null,null,null,null,"39081010"]
[null,null,null,null,null,null,null,null,null,"39081051"]
[null,null,null,null,null,null,null,null,null,"39089010"]
[null,null,null,null,null,null,null,null,null,"39091090"]
[null,null,null,null,null,null,null,null,null,"390940"]
[null,null,null,null,null,null,null,null,null,"3910"]
[null,null,null,null,null,null,null,null,null,"39100020"]
[null,null,null,null,null,null,null,null,null,"391190"]
[null,null,null,null,null,null,null,null,null,"39121190"]
[null,null,null,null,null,null,null,null,null,"39122021"]
[null,null,null,null,null,null,null,null,null,"39123922"]
[null,null,null,null,null,null,null,null,null,"39131090"]
[null,null,null,null,null,null,null,null,null,"39140010"]
[null,null,null,null,null,null,null,null,null,"39152000"]
[null,null,null,null,null,null,null,null,null,"39159050"]
[null,null,null,null,null,null,null,null,null,"39159061"]
[null,null,null,null,null,null,null,null,null,"3916"]
[null,null,null,null,null,null,null,null,null,"39162019"]
[null,null,null,null,null,null,null,null,null,"39169026"]
[null,null,null,null,null,null,null,null,null,"39169080"]
[null,null,null,null,null,null,null,null,null,"391723"]
[null,null,null,null,null,null,null,null,null,"39172950"]
[null,null,null,null,null,null,null,null,null,"39173920"]
[null,null,null,null,null,null,null,null,null,"39173990"]
[null,null,null,null,null,null,null,null,null,"39199010"]
[null,null,null,null,null,null,null,null,null,"392010"]
[null,null,null,null,null,null,null,null,null,"39202020"]
[null,null,null,null,null,null,null,null,null,"39205111"]
[null,null,null,null,null,null,null,null,null,"39205991"]
[null,null,null,null,null,null,null,null,null,"392062"]
[null,null,null,null,null,null,null,null,null,"39206911"]
[null,null,null,null,null,null,null,null,null,"39206932"]
[null,null,null,null,null,null,null,null,null,"39206991"]
[null,null,null,null,null,null,null,null,null,"39207192"]
[null,null,null,null,null,null,null,null,null,"39207321"]
[null,null,null,null,null,null,null,null,null,"39207919"]
[null,null,null,null,null,null,null,null,null,"39209119"]
[null,null,null,null,null,null,null,null,null,"39209299"]
[null,null,null,null,null,null,null,null,null,"392099"]
[null,null,null,null,null,null,null,null,null,"39209929"]
[null,null,null,null,null,null,null,null,null,"39209939"]
[null,null,null,null,null,null,null,null,null,"39209992"]
[null,null,null,null,null,null,null,null,null,"39211400"]
[null,null,null,null,null,null,null,null,null,"39219026"]
[null,null,null,null,null,null,null,null,null,"39219091"]
[null,null,null,null,null,null,null,null,null,"39222000"]
[null,null,null,null,null,null,null,null,null,"39231020"]
[null,null,null,null,null,null,null,null,null,"39232100"]
[null,null,null,null,null,null,null,null,null,"39235010"]
[null,null,null,null,null,null,null,null,null,"392490"]
[null,null,null,null,null,null,null,null,null,"39253000"]
[null,null,null,null,null,null,null,null,null,"39261099"]
[null,null,null,null,null,null,null,null,null,"39262049"]
[null,null,null,null,null,null,null,null,null,"39263010"]
[null,null,null,null,null,null,null,null,null,"39264060"]
[null,null,null,null,null,null,null,null,null,"39264091"]
[null,null,null,null,null,null,null,null,null,"39269049"]
[null,null,null,null,null,null,null,null,null,"39269099"]
[null,null,null,null,null,null,null,null,null,"400129"]
[null,null,null,null,null,null,null,null,null,"400219"]
[null,null,null,null,null,null,null,null,null,"40023100"]
[null,null,null,null,null,null,null,null,null,"40028090"]
[null,null,null,null,null,null,null,null,null,"40040000"]
[null,null,null,null,null,null,null,null,null,"4005"]
[null,null,null,null,null,null,null,null,null,"400599"]
[null,null,null,null,null,null,null,null,null,"400700"]
[null,null,null,null,null,null,null,null,null,"40081910"]
[null,null,null,null,null,null,null,null,null,"40082190"]
[null,null,null,null,null,null,null,null,null,"40093100"]
[null,null,null,null,null,null,null,null,null,"40101210"]
[null,null,null,null,null,null,null,null,null,"40103190"]
[null,null,null,null,null,null,null,null,null,"40103390"]
[null,null,null,null,null,null,null,null,null,"40103490"]
[null,null,null,null,null,null,null,null,null,"40103912"]
[null,null,null,null,null,null,null,null,null,"401120"]
[null,null,null,null,null,null,null,null,null,"40116100"]
[null,null,null,null,null,null,null,null,null,"40119000"]
[null,null,null,null,null,null,null,null,null,"401219"]
[null,null,null,null,null,null,null,null,null,"40129010"]
[null,null,null,null,null,null,null,null,null,"40129020"]
[null,null,null,null,null,null,null,null,null,"40131020"]
[null,null,null,null,null,null,null,null,null,"40139090"]
[null,null,null,null,null,null,null,null,null,"4015"]
[null,null,null,null,null,null,null,null,null,"40159091"]
[null,null,null,null,null,null,null,null,null,"40169330"]
[null,null,null,null,null,null,null,null,null,"40169510"]
[null,null,null,null,null,null,null,null,null,"40169980"]
[null,null,null,null,null,null,null,null,null,"40169990"]
[null,null,null,null,null,null,null,null,null,"4022"]
[null,null,null,null,null,null,null,null,null,"410150"]
[null,null,null,null,null,null,null,null,null,"4102"]
[null,null,null,null,null,null,null,null,null,"410229"]
[null,null,null,null,null,null,null,null,null,"41032000"]
[null,null,null,null,null,null,null,null,null,"41044100"]
[null,null,null,null,null,null,null,null,null,"41069100"]
[null,null,null,null,null,null,null,null,null,"41069200"]
[null,null,null,null,null,null,null,null,null,"41131000"]
[null,null,null,null,null,null,null,null,null,"411420"]
[null,null,null,null,null,null,null,null,null,"4201"]
[null,null,null,null,null,null,null,null,null,"42021160"]
[null,null,null,null,null,null,null,null,null,"42021220"]
[null,null,null,null,null,null,null,null,null,"42021940"]
[null,null,null,null,null,null,null,null,null,"42022210"]
[null,null,null,null,null,null,null,null,null,"42022230"]
[null,null,null,null,null,null,null,null,null,"42023110"]
[null,null,null,null,null,null,null,null,null,"420291"]
[null,null,null,null,null,null,null,null,null,"42032110"]
[null,null,null,null,null,null,null,null,null,"420340"]
[null,null,null,null,null,null,null,null,null,"42040060"]
[null,null,null,null,null,null,null,null,null,"4206"]
[null,null,null,null,null,null,null,null,null,"43013000"]
[null,null,null,null,null,null,null,null,null,"43016000"]
[null,null,null,null,null,null,null,null,null,"43021910"]
[null,null,null,null,null,null,null,null,null,"43031010"]
[null,null,null,null,null,null,null,null,null,"43039090"]
[null,null,null,null,null,null,null,null,null,"440111"]
[null,null,null,null,null,null,null,null,null,"44013100"]
[null,null,null,null,null,null,null,null,null,"44021010"]
[null,null,null,null,null,null,null,null,null,"44031200"]
[null,null,null,null,null,null,null,null,null,"44032010"]
[null,null,null,null,null,null,null,null,null,"44032290"]
[null,null,null,null,null,null,null,null,null,"44032590"]
[null,null,null,null,null,null,null,null,null,"44034100"]
[null,null,null,null,null,null,null,null,null,"44039600"]
[null,null,null,null,null,null,null,null,null,"44039916"]
[null,null,null,null,null,null,null,null,null,"44039926"]
[null,null,null,null,null,null,null,null,null,"44042010"]
[null,null,null,null,null,null,null,null,null,"44042020"]
[null,null,null,null,null,null,null,null,null,"44069100"]
[null,null,null,null,null,null,null,null,null,"44071990"]
[null,null,null,null,null,null,null,null,null,"44072700"]
[null,null,null,null,null,null,null,null,null,"44079500"]
[null,null,null,null,null,null,null,null,null,"440810"]
[null,null,null,null,null,null,null,null,null,"44083190"]
[null,null,null,null,null,null,null,null,null,"44089090"]
[null,null,null,null,null,null,null,null,null,"4409"]
[null,null,null,null,null,null,null,null,null,"44092990"]
[null,null,null,null,null,null,null,null,null,"44101120"]
[null,null,null,null,null,null,null,null,null,"44103110"]
[null,null,null,null,null,null,null,null,null,"44103290"]
[null,null,null,null,null,null,null,null,null,"44109010"]
[null,null,null,null,null,null,null,null,null,"44109091"]
[null,null,null,null,null,null,null,null,null,"44111400"]
[null,null,null,null,null,null,null,null,null,"44112190"]
[null,null,null,null,null,null,null,null,null,"44113910"]
[null,null,null,null,null,null,null,null,null,"44119221"]
[null,null,null,null,null,null,null,null,null,"44119419"]
[null,null,null,null,null,null,null,null,null,"44119920"]
[null,null,null,null,null,null,null,null,null,"44121410"]
[null,null,null,null,null,null,null,null,null,"44121990"]
[null,null,null,null,null,null,null,null,null,"44122230"]
[null,null,null,null,null,null,null,null,null,"44122340"]
[null,null,null,null,null,null,null,null,null,"44123110"]
[null,null,null,null,null,null,null,null,null,"44123230"]
[null,null,null,null,null,null,null,null,null,"44123390"]
[null,null,null,null,null,null,null,null,null,"44123920"]
[null,null,null,null,null,null,null,null,null,"44129290"]
[null,null,null,null,null,null,null,null,null,"44129390"]
[null,null,null,null,null,null,null,null,null,"44140000"]
[null,null,null,null,null,null,null,null,null,"4415"]
[null,null,null,null,null,null,null,null,null,"4417"]
[null,null,null,null,null,null,null,null,null,"44182090"]
[null,null,null,null,null,null,null,null,null,"44187900"]
[null,null,null,null,null,null,null,null,null,"44191200"]
[null,null,null,null,null,null,null,null,null,"44209010"]
[null,null,null,null,null,null,null,null,null,"44219014"]
[null,null,null,null,null,null,null,null,null,"442191"]
[null,null,null,null,null,null,null,null,null,"44219111"]
[null,null,null,null,null,null,null,null,null,"44219911"]
[null,null,null,null,null,null,null,null,null,"44219919"]
[null,null,null,null,null,null,null,null,null,"44239113"]
[null,null,null,null,null,null,null,null,null,"45031000"]
[null,null,null,null,null,null,null,null,null,"46"]
[null,null,null,null,null,null,null,null,null,"46012900"]
[null,null,null,null,null,null,null,null,null,"46021090"]
[null,null,null,null,null,null,null,null,null,"46029000"]
[null,null,null,null,null,null,null,null,null,"4701"]
[null,null,null,null,null,null,null,null,null,"4704"]
[null,null,null,null,null,null,null,null,null,"47062000"]
[null,null,null,null,null,null,null,null,null,"47073000"]
[null,null,null,null,null,null,null,null,null,"480210"]
[null,null,null,null,null,null,null,null,null,"48025410"]
[null,null,null,null,null,null,null,null,null,"480255"]
[null,null,null,null,null,null,null,null,null,"48025530"]
[null,null,null,null,null,null,null,null,null,"48025630"]
[null,null,null,null,null,null,null,null,null,"48025730"]
[null,null,null,null,null,null,null,null,null,"48025820"]
[null,null,null,null,null,null,null,null,null,"48026140"]
[null,null,null,null,null,null,null,null,null,"48026250"]
[null,null,null,null,null,null,null,null,null,"48026960"]
[null,null,null,null,null,null,null,null,null,"48030090"]
[null,null,null,null,null,null,null,null,null,"48042100"]
[null,null,null,null,null,null,null,null,null,"48045900"]
[null,null,null,null,null,null,null,null,null,"48059100"]
[null,null,null,null,null,null,null,null,null,"480640"]
[null,null,null,null,null,null,null,null,null,"48081000"]
[null,null,null,null,null,null,null,null,null,"48099000"]
[null,null,null,null,null,null,null,null,null,"48101320"]
[null,null,null,null,null,null,null,null,null,"48102200"]
[null,null,null,null,null,null,null,null,null,"48102900"]
[null,null,null,null,null,null,null,null,null,"48109900"]
[null,null,null,null,null,null,null,null,null,"481159"]
[null,null,null,null,null,null,null,null,null,"48119015"]
[null,null,null,null,null,null,null,null,null,"48120000"]
[null,null,null,null,null,null,null,null,null,"48139090"]
[null,null,null,null,null,null,null,null,null,"48162020"]
[null,null,null,null,null,null,null,null,null,"48172000"]
[null,null,null,null,null,null,null,null,null,"481730"]
[null,null,null,null,null,null,null,null,null,"48185000"]
[null,null,null,null,null,null,null,null,null,"48192090"]
[null,null,null,null,null,null,null,null,null,"48201010"]
[null,null,null,null,null,null,null,null,null,"48204000"]
[null,null,null,null,null,null,null,null,null,"48219090"]
[null,null,null,null,null,null,null,null,null,"48232000"]
[null,null,null,null,null,null,null,null,null,"48237090"]
[null,null,null,null,null,null,null,null,null,"48239015"]
[null,null,null,null,null,null,null,null,null,"48239018"]
[null,null,null,null,null,null,null,null,null,"490110"]
[null,null,null,null,null,null,null,null,null,"49029020"]
[null,null,null,null,null,null,null,null,null,"49040000"]
[null,null,null,null,null,null,null,null,null,"4907"]
[null,null,null,null,null,null,null,null,null,"4909"]
[null,null,null,null,null,null,null,null,null,"4911"]
[null,null,null,null,null,null,null,null,null,"491110"]
[null,null,null,null,null,null,null,null,null,"49119990"]
[null,null,null,null,null,null,null,null,null,"5003"]
[null,null,null,null,null,null,null,null,null,"50039010"]
[null,null,null,null,null,null,null,null,null,"50040010"]
[null,null,null,null,null,null,null,null,null,"500600"]
[null,null,null,null,null,null,null,null,null,"50060033"]
[null,null,null,null,null,null,null,null,null,"50079090"]
[null,null,null,null,null,null,null,null,null,"504004"]
[null,null,null,null,null,null,null,null,null,"506901"]
[null,null,null,null,null,null,null,null,null,"51013000"]
[null,null,null,null,null,null,null,null,null,"510220"]
[null,null,null,null,null,null,null,null,null,"51032020"]
[null,null,null,null,null,null,null,null,null,"51040090"]
[null,null,null,null,null,null,null,null,null,"510610"]
[null,null,null,null,null,null,null,null,null,"510710"]
[null,null,null,null,null,null,null,null,null,"51071010"]
[null,null,null,null,null,null,null,null,null,"5108"]
[null,null,null,null,null,null,null,null,null,"51091090"]
[null,null,null,null,null,null,null,null,null,"51111120"]
[null,null,null,null,null,null,null,null,null,"51111990"]
[null,null,null,null,null,null,null,null,null,"51112040"]
[null,null,null,null,null,null,null,null,null,"51119040"]
[null,null,null,null,null,null,null,null,null,"511219"]
[null,null,null,null,null,null,null,null,null,"51121920"]
[null,null,null,null,null,null,null,null,null,"51122030"]
[null,null,null,null,null,null,null,null,null,"511290"]
[null,null,null,null,null,null,null,null,null,"51130010"]
[null,null,null,null,null,null,null,null,null,"511999"]
[null,null,null,null,null,null,null,null,null,"52010020"]
[null,null,null,null,null,null,null,null,null,"52041110"]
[null,null,null,null,null,null,null,null,null,"52042020"]
[null,null,null,null,null,null,null,null,null,"52042030"]
[null,null,null,null,null,null,null,null,null,"520512"]
[null,null,null,null,null,null,null,null,null,"52051390"]
[null,null,null,null,null,null,null,null,null,"520515"]
[null,null,null,null,null,null,null,null,null,"52052210"]
[null,null,null,null,null,null,null,null,null,"52052420"]
[null,null,null,null,null,null,null,null,null,"52052790"]
[null,null,null,null,null,null,null,null,null,"52053120"]
[null,null,null,null,null,null,null,null,null,"52053190"]
[null,null,null,null,null,null,null,null,null,"52053390"]
[null,null,null,null,null,null,null,null,null,"52054130"]
[null,null,null,null,null,null,null,null,null,"520543"]
[null,null,null,null,null,null,null,null,null,"52054610"]
[null,null,null,null,null,null,null,null,null,"520548"]
[null,null,null,null,null,null,null,null,null,"52061400"]
[null,null,null,null,null,null,null,null,null,"52063200"]
[null,null,null,null,null,null,null,null,null,"52063300"]
[null,null,null,null,null,null,null,null,null,"52081120"]
[null,null,null,null,null,null,null,null,null,"52081190"]
[null,null,null,null,null,null,null,null,null,"520813"]
[null,null,null,null,null,null,null,null,null,"52082120"]
[null,null,null,null,null,null,null,null,null,"520822"]
[null,null,null,null,null,null,null,null,null,"52082290"]
[null,null,null,null,null,null,null,null,null,"52082990"]
[null,null,null,null,null,null,null,null,null,"520831"]
[null,null,null,null,null,null,null,null,null,"52083220"]
[null,null,null,null,null,null,null,null,null,"52083260"]
[null,null,null,null,null,null,null,null,null,"520839"]
[null,null,null,null,null,null,null,null,null,"52084129"]
[null,null,null,null,null,null,null,null,null,"52084250"]
[null,null,null,null,null,null,null,null,null,"520849"]
[null,null,null,null,null,null,null,null,null,"52085140"]
[null,null,null,null,null,null,null,null,null,"52085180"]
[null,null,null,null,null,null,null,null,null,"52085230"]
[null,null,null,null,null,null,null,null,null,"52085390"]
[null,null,null,null,null,null,null,null,null,"52091113"]
[null,null,null,null,null,null,null,null,null,"52091240"]
[null,null,null,null,null,null,null,null,null,"52092130"]
[null,null,null,null,null,null,null,null,null,"52092220"]
[null,null,null,null,null,null,null,null,null,"520929"]
[null,null,null,null,null,null,null,null,null,"52093120"]
[null,null,null,null,null,null,null,null,null,"52093210"]
[null,null,null,null,null,null,null,null,null,"52094120"]
[null,null,null,null,null,null,null,null,null,"520943"]
[null,null,null,null,null,null,null,null,null,"520951"]
[null,null,null,null,null,null,null,null,null,"52095190"]
[null,null,null,null,null,null,null,null,null,"520959"]
[null,null,null,null,null,null,null,null,null,"52102110"]
[null,null,null,null,null,null,null,null,null,"52102120"]
[null,null,null,null,null,null,null,null,null,"52102229"]
[null,null,null,null,null,null,null,null,null,"52103120"]
[null,null,null,null,null,null,null,null,null,"52103239"]
[null,null,null,null,null,null,null,null,null,"52104140"]
[null,null,null,null,null,null,null,null,null,"52104190"]
[null,null,null,null,null,null,null,null,null,"52105120"]
[null,null,null,null,null,null,null,null,null,"52105910"]
[null,null,null,null,null,null,null,null,null,"52105990"]
[null,null,null,null,null,null,null,null,null,"52112010"]
[null,null,null,null,null,null,null,null,null,"52112050"]
[null,null,null,null,null,null,null,null,null,"52112150"]
[null,null,null,null,null,null,null,null,null,"521131"]
[null,null,null,null,null,null,null,null,null,"52113230"]
[null,null,null,null,null,null,null,null,null,"52114110"]
[null,null,null,null,null,null,null,null,null,"521143"]
[null,null,null,null,null,null,null,null,null,"52114910"]
[null,null,null,null,null,null,null,null,null,"521151"]
[null,null,null,null,null,null,null,null,null,"52115220"]
[null,null,null,null,null,null,null,null,null,"52121300"]
[null,null,null,null,null,null,null,null,null,"5301"]
[null,null,null,null,null,null,null,null,null,"5303"]
[null,null,null,null,null,null,null,null,null,"53041020"]
[null,null,null,null,null,null,null,null,null,"53050030"]
[null,null,null,null,null,null,null,null,null,"53050090"]
[null,null,null,null,null,null,null,null,null,"53059010"]
[null,null,null,null,null,null,null,null,null,"5307"]
[null,null,null,null,null,null,null,null,null,"53081020"]
[null,null,null,null,null,null,null,null,null,"53091120"]
[null,null,null,null,null,null,null,null,null,"53092910"]
[null,null,null,null,null,null,null,null,null,"53101019"]
[null,null,null,null,null,null,null,null,null,"531090"]
[null,null,null,null,null,null,null,null,null,"53109092"]
[null,null,null,null,null,null,null,null,null,"53110015"]
[null,null,null,null,null,null,null,null,null,"54012000"]
[null,null,null,null,null,null,null,null,null,"54021990"]
[null,null,null,null,null,null,null,null,null,"54023910"]
[null,null,null,null,null,null,null,null,null,"54024700"]
[null,null,null,null,null,null,null,null,null,"54025200"]
[null,null,null,null,null,null,null,null,null,"54026950"]
[null,null,null,null,null,null,null,null,null,"54026990"]
[null,null,null,null,null,null,null,null,null,"54033300"]
[null,null,null,null,null,null,null,null,null,"54034140"]
[null,null,null,null,null,null,null,null,null,"54034230"]
[null,null,null,null,null,null,null,null,null,"54034915"]
[null,null,null,null,null,null,null,null,null,"54041200"]
[null,null,null,null,null,null,null,null,null,"5406"]
[null,null,null,null,null,null,null,null,null,"54071012"]
[null,null,null,null,null,null,null,null,null,"54071013"]
[null,null,null,null,null,null,null,null,null,"54071024"]
[null,null,null,null,null,null,null,null,null,"54071036"]
[null,null,null,null,null,null,null,null,null,"54071091"]
[null,null,null,null,null,null,null,null,null,"54071096"]
[null,null,null,null,null,null,null,null,null,"54073040"]
[null,null,null,null,null,null,null,null,null,"54074122"]
[null,null,null,null,null,null,null,null,null,"54074290"]
[null,null,null,null,null,null,null,null,null,"54074440"]
[null,null,null,null,null,null,null,null,null,"54075111"]
[null,null,null,null,null,null,null,null,null,"54075290"]
[null,null,null,null,null,null,null,null,null,"54076900"]
[null,null,null,null,null,null,null,null,null,"54077400"]
[null,null,null,null,null,null,null,null,null,"54078121"]
[null,null,null,null,null,null,null,null,null,"54078220"]
[null,null,null,null,null,null,null,null,null,"54078410"]
[null,null,null,null,null,null,null,null,null,"54078420"]
[null,null,null,null,null,null,null,null,null,"54079120"]
[null,null,null,null,null,null,null,null,null,"540822"]
[null,null,null,null,null,null,null,null,null,"54082220"]
[null,null,null,null,null,null,null,null,null,"54082414"]
[null,null,null,null,null,null,null,null,null,"54083120"]
[null,null,null,null,null,null,null,null,null,"54083219"]
[null,null,null,null,null,null,null,null,null,"54083417"]
[null,null,null,null,null,null,null,null,null,"54083418"]
[null,null,null,null,null,null,null,null,null,"55014000"]
[null,null,null,null,null,null,null,null,null,"550210"]
[null,null,null,null,null,null,null,null,null,"55031100"]
[null,null,null,null,null,null,null,null,null,"5504"]
[null,null,null,null,null,null,null,null,null,"550490"]
[null,null,null,null,null,null,null,null,null,"55061000"]
[null,null,null,null,null,null,null,null,null,"55070010"]
[null,null,null,null,null,null,null,null,null,"55070020"]
[null,null,null,null,null,null,null,null,null,"55092200"]
[null,null,null,null,null,null,null,null,null,"55094130"]
[null,null,null,null,null,null,null,null,null,"55095300"]
[null,null,null,null,null,null,null,null,null,"551011"]
[null,null,null,null,null,null,null,null,null,"55101210"]
[null,null,null,null,null,null,null,null,null,"55109010"]
[null,null,null,null,null,null,null,null,null,"5512"]
[null,null,null,null,null,null,null,null,null,"55121110"]
[null,null,null,null,null,null,null,null,null,"55122110"]
[null,null,null,null,null,null,null,null,null,"551299"]
[null,null,null,null,null,null,null,null,null,"55131210"]
[null,null,null,null,null,null,null,null,null,"55131920"]
[null,null,null,null,null,null,null,null,null,"55134200"]
[null,null,null,null,null,null,null,null,null,"55141220"]
[null,null,null,null,null,null,null,null,null,"55142300"]
[null,null,null,null,null,null,null,null,null,"55142900"]
[null,null,null,null,null,null,null,null,null,"55143900"]
[null,null,null,null,null,null,null,null,null,"55151130"]
[null,null,null,null,null,null,null,null,null,"55151230"]
[null,null,null,null,null,null,null,null,null,"55151920"]
[null,null,null,null,null,null,null,null,null,"55152190"]
[null,null,null,null,null,null,null,null,null,"55152920"]
[null,null,null,null,null,null,null,null,null,"55159130"]
[null,null,null,null,null,null,null,null,null,"55159190"]
[null,null,null,null,null,null,null,null,null,"55159930"]
[null,null,null,null,null,null,null,null,null,"55161490"]
[null,null,null,null,null,null,null,null,null,"55162300"]
[null,null,null,null,null,null,null,null,null,"55164110"]
[null,null,null,null,null,null,null,null,null,"55169300"]
[null,null,null,null,null,null,null,null,null,"56012900"]
[null,null,null,null,null,null,null,null,null,"56022990"]
[null,null,null,null,null,null,null,null,null,"56029010"]
[null,null,null,null,null,null,null,null,null,"56042090"]
[null,null,null,null,null,null,null,null,null,"560500"]
[null,null,null,null,null,null,null,null,null,"56060090"]
[null,null,null,null,null,null,null,null,null,"560750"]
[null,null,null,null,null,null,null,null,null,"56079020"]
[null,null,null,null,null,null,null,null,null,"56089020"]
[null,null,null,null,null,null,null,null,null,"5701"]
[null,null,null,null,null,null,null,null,null,"570110"]
[null,null,null,null,null,null,null,null,null,"57021000"]
[null,null,null,null,null,null,null,null,null,"57022090"]
[null,null,null,null,null,null,null,null,null,"57023220"]
[null,null,null,null,null,null,null,null,null,"57024120"]
[null,null,null,null,null,null,null,null,null,"57024910"]
[null,null,null,null,null,null,null,null,null,"57025033"]
[null,null,null,null,null,null,null,null,null,"57025910"]
[null,null,null,null,null,null,null,null,null,"570291"]
[null,null,null,null,null,null,null,null,null,"57029190"]
[null,null,null,null,null,null,null,null,null,"5703"]
[null,null,null,null,null,null,null,null,null,"570330"]
[null,null,null,null,null,null,null,null,null,"5704"]
[null,null,null,null,null,null,null,null,null,"57049090"]
[null,null,null,null,null,null,null,null,null,"57050029"]
[null,null,null,null,null,null,null,null,null,"57050039"]
[null,null,null,null,null,null,null,null,null,"5801"]
[null,null,null,null,null,null,null,null,null,"58012710"]
[null,null,null,null,null,null,null,null,null,"58013610"]
[null,null,null,null,null,null,null,null,null,"5802"]
[null,null,null,null,null,null,null,null,null,"58022000"]
[null,null,null,null,null,null,null,null,null,"58030019"]
[null,null,null,null,null,null,null,null,null,"58031010"]
[null,null,null,null,null,null,null,null,null,"58041010"]
[null,null,null,null,null,null,null,null,null,"58041090"]
[null,null,null,null,null,null,null,null,null,"58050020"]
[null,null,null,null,null,null,null,null,null,"58063120"]
[null,null,null,null,null,null,null,null,null,"580710"]
[null,null,null,null,null,null,null,null,null,"58081010"]
[null,null,null,null,null,null,null,null,null,"58089020"]
[null,null,null,null,null,null,null,null,null,"581092"]
[null,null,null,null,null,null,null,null,null,"59"]
[null,null,null,null,null,null,null,null,null,"5901"]
[null,null,null,null,null,null,null,null,null,"590220"]
[null,null,null,null,null,null,null,null,null,"59023090"]
[null,null,null,null,null,null,null,null,null,"59032010"]
[null,null,null,null,null,null,null,null,null,"59049090"]
[null,null,null,null,null,null,null,null,null,"5906"]
[null,null,null,null,null,null,null,null,null,"5907"]
[null,null,null,null,null,null,null,null,null,"5908"]
[null,null,null,null,null,null,null,null,null,"59090010"]
[null,null,null,null,null,null,null,null,null,"59090090"]
[null,null,null,null,null,null,null,null,null,"59100090"]
[null,null,null,null,null,null,null,null,null,"59113150"]
[null,null,null,null,null,null,null,null,null,"59114000"]
[null,null,null,null,null,null,null,null,null,"60011010"]
[null,null,null,null,null,null,null,null,null,"60019910"]
[null,null,null,null,null,null,null,null,null,"60031000"]
[null,null,null,null,null,null,null,null,null,"60034000"]
[null,null,null,null,null,null,null,null,null,"60052300"]
[null,null,null,null,null,null,null,null,null,"60053800"]
[null,null,null,null,null,null,null,null,null,"60061000"]
[null,null,null,null,null,null,null,null,null,"60064100"]
[null,null,null,null,null,null,null,null,null,"6101"]
[null,null,null,null,null,null,null,null,null,"610130"]
[null,null,null,null,null,null,null,null,null,"610290"]
[null,null,null,null,null,null,null,null,null,"61029010"]
[null,null,null,null,null,null,null,null,null,"61031200"]
[null,null,null,null,null,null,null,null,null,"61032920"]
[null,null,null,null,null,null,null,null,null,"61033920"]
[null,null,null,null,null,null,null,null,null,"6104"]
[null,null,null,null,null,null,null,null,null,"61042200"]
[null,null,null,null,null,null,null,null,null,"61042920"]
[null,null,null,null,null,null,null,null,null,"610449"]
[null,null,null,null,null,null,null,null,null,"61044910"]
[null,null,null,null,null,null,null,null,null,"61046100"]
[null,null,null,null,null,null,null,null,null,"610510"]
[null,null,null,null,null,null,null,null,null,"61059090"]
[null,null,null,null,null,null,null,null,null,"61069090"]
[null,null,null,null,null,null,null,null,null,"610719"]
[null,null,null,null,null,null,null,null,null,"610791"]
[null,null,null,null,null,null,null,null,null,"6108"]
[null,null,null,null,null,null,null,null,null,"61081990"]
[null,null,null,null,null,null,null,null,null,"610822"]
[null,null,null,null,null,null,null,null,null,"61083220"]
[null,null,null,null,null,null,null,null,null,"61089910"]
[null,null,null,null,null,null,null,null,null,"610990"]
[null,null,null,null,null,null,null,null,null,"61101900"]
[null,null,null,null,null,null,null,null,null,"61113000"]
[null,null,null,null,null,null,null,null,null,"61121910"]
[null,null,null,null,null,null,null,null,null,"61122020"]
[null,null,null,null,null,null,null,null,null,"61122050"]
[null,null,null,null,null,null,null,null,null,"61124910"]
[null,null,null,null,null,null,null,null,null,"611490"]
[null,null,null,null,null,null,null,null,null,"61151200"]
[null,null,null,null,null,null,null,null,null,"61152200"]
[null,null,null,null,null,null,null,null,null,"61159300"]
[null,null,null,null,null,null,null,null,null,"61161000"]
[null,null,null,null,null,null,null,null,null,"61169100"]
[null,null,null,null,null,null,null,null,null,"61171020"]
[null,null,null,null,null,null,null,null,null,"61178040"]
[null,null,null,null,null,null,null,null,null,"6201"]
[null,null,null,null,null,null,null,null,null,"62011910"]
[null,null,null,null,null,null,null,null,null,"620211"]
[null,null,null,null,null,null,null,null,null,"62021920"]
[null,null,null,null,null,null,null,null,null,"62029390"]
[null,null,null,null,null,null,null,null,null,"620299"]
[null,null,null,null,null,null,null,null,null,"62031990"]
[null,null,null,null,null,null,null,null,null,"620331"]
[null,null,null,null,null,null,null,null,null,"62033911"]
[null,null,null,null,null,null,null,null,null,"620349"]
[null,null,null,null,null,null,null,null,null,"62041300"]
[null,null,null,null,null,null,null,null,null,"62042911"]
[null,null,null,null,null,null,null,null,null,"62043300"]
[null,null,null,null,null,null,null,null,null,"620439"]
[null,null,null,null,null,null,null,null,null,"62044220"]
[null,null,null,null,null,null,null,null,null,"620449"]
[null,null,null,null,null,null,null,null,null,"62045990"]
[null,null,null,null,null,null,null,null,null,"62046300"]
[null,null,null,null,null,null,null,null,null,"62052010"]
[null,null,null,null,null,null,null,null,null,"620610"]
[null,null,null,null,null,null,null,null,null,"62069000"]
[null,null,null,null,null,null,null,null,null,"62071100"]
[null,null,null,null,null,null,null,null,null,"62072110"]
[null,null,null,null,null,null,null,null,null,"620799"]
[null,null,null,null,null,null,null,null,null,"62081910"]
[null,null,null,null,null,null,null,null,null,"620829"]
[null,null,null,null,null,null,null,null,null,"620899"]
[null,null,null,null,null,null,null,null,null,"62092090"]
[null,null,null,null,null,null,null,null,null,"62102010"]
[null,null,null,null,null,null,null,null,null,"62102020"]
[null,null,null,null,null,null,null,null,null,"62104010"]
[null,null,null,null,null,null,null,null,null,"62113300"]
[null,null,null,null,null,null,null,null,null,"621142"]
[null,null,null,null,null,null,null,null,null,"62122000"]
[null,null,null,null,null,null,null,null,null,"62139010"]
[null,null,null,null,null,null,null,null,null,"621410"]
[null,null,null,null,null,null,null,null,null,"62143000"]
[null,null,null,null,null,null,null,null,null,"62144000"]
[null,null,null,null,null,null,null,null,null,"62149040"]
[null,null,null,null,null,null,null,null,null,"62159090"]
[null,null,null,null,null,null,null,null,null,"62160090"]
[null,null,null,null,null,null,null,null,null,"62171070"]
[null,null,null,null,null,null,null,null,null,"6301"]
[null,null,null,null,null,null,null,null,null,"630210"]
[null,null,null,null,null,null,null,null,null,"63023100"]
[null,null,null,null,null,null,null,null,null,"63023200"]
[null,null,null,null,null,null,null,null,null,"63026010"]
[null,null,null,null,null,null,null,null,null,"63029190"]
[null,null,null,null,null,null,null,null,null,"63039200"]
[null,null,null,null,null,null,null,null,null,"63041930"]
[null,null,null,null,null,null,null,null,null,"630492"]
[null,null,null,null,null,null,null,null,null,"63049250"]
[null,null,null,null,null,null,null,null,null,"63049910"]
[null,null,null,null,null,null,null,null,null,"630510"]
[null,null,null,null,null,null,null,null,null,"63051040"]
[null,null,null,null,null,null,null,null,null,"63053900"]
[null,null,null,null,null,null,null,null,null,"63061990"]
[null,null,null,null,null,null,null,null,null,"63063100"]
[null,null,null,null,null,null,null,null,null,"6307"]
[null,null,null,null,null,null,null,null,null,"630790"]
[null,null,null,null,null,null,null,null,null,"6309"]
[null,null,null,null,null,null,null,null,null,"63101010"]
[null,null,null,null,null,null,null,null,null,"63109020"]
[null,null,null,null,null,null,null,null,null,"64019110"]
[null,null,null,null,null,null,null,null,null,"640212"]
[null,null,null,null,null,null,null,null,null,"64022090"]
[null,null,null,null,null,null,null,null,null,"6403"]
[null,null,null,null,null,null,null,null,null,"64032013"]
[null,null,null,null,null,null,null,null,null,"64032022"]
[null,null,null,null,null,null,null,null,null,"64033000"]
[null,null,null,null,null,null,null,null,null,"64035910"]
[null,null,null,null,null,null,null,null,null,"640399"]
[null,null,null,null,null,null,null,null,null,"640419"]
[null,null,null,null,null,null,null,null,null,"6406"]
[null,null,null,null,null,null,null,null,null,"640690"]
[null,null,null,null,null,null,null,null,null,"64069050"]
[null,null,null,null,null,null,null,null,null,"65020020"]
[null,null,null,null,null,null,null,null,null,"65020090"]
[null,null,null,null,null,null,null,null,null,"65050090"]
[null,null,null,null,null,null,null,null,null,"65069900"]
[null,null,null,null,null,null,null,null,null,"6603"]
[null,null,null,null,null,null,null,null,null,"670100"]
[null,null,null,null,null,null,null,null,null,"670210"]
[null,null,null,null,null,null,null,null,null,"67041910"]
[null,null,null,null,null,null,null,null,null,"68010000"]
[null,null,null,null,null,null,null,null,null,"6802"]
[null,null,null,null,null,null,null,null,null,"68029300"]
[null,null,null,null,null,null,null,null,null,"6804"]
[null,null,null,null,null,null,null,null,null,"680423"]
[null,null,null,null,null,null,null,null,null,"680520"]
[null,null,null,null,null,null,null,null,null,"6806"]
[null,null,null,null,null,null,null,null,null,"68079010"]
[null,null,null,null,null,null,null,null,null,"681011"]
[null,null,null,null,null,null,null,null,null,"681099"]
[null,null,null,null,null,null,null,null,null,"68109990"]
[null,null,null,null,null,null,null,null,null,"68114010"]
[null,null,null,null,null,null,null,null,null,"6812"]
[null,null,null,null,null,null,null,null,null,"68129021"]
[null,null,null,null,null,null,null,null,null,"68129300"]
[null,null,null,null,null,null,null,null,null,"681320"]
[null,null,null,null,null,null,null,null,null,"68139090"]
[null,null,null,null,null,null,null,null,null,"681410"]
[null,null,null,null,null,null,null,null,null,"68149040"]
[null,null,null,null,null,null,null,null,null,"68152000"]
[null,null,null,null,null,null,null,null,null,"690100"]
[null,null,null,null,null,null,null,null,null,"69021030"]
[null,null,null,null,null,null,null,null,null,"69022050"]
[null,null,null,null,null,null,null,null,null,"69029030"]
[null,null,null,null,null,null,null,null,null,"69039020"]
[null,null,null,null,null,null,null,null,null,"69039030"]
[null,null,null,null,null,null,null,null,null,"6906"]
[null,null,null,null,null,null,null,null,null,"69073010"]
[null,null,null,null,null,null,null,null,null,"69081010"]
[null,null,null,null,null,null,null,null,null,"690919"]
[null,null,null,null,null,null,null,null,null,"69111011"]
[null,null,null,null,null,null,null,null,null,"691190"]
[null,null,null,null,null,null,null,null,null,"69139000"]
[null,null,null,null,null,null,null,null,null,"6914"]
[null,null,null,null,null,null,null,null,null,"7002"]
[null,null,null,null,null,null,null,null,null,"7003"]
[null,null,null,null,null,null,null,null,null,"70032090"]
[null,null,null,null,null,null,null,null,null,"70042099"]
[null,null,null,null,null,null,null,null,null,"7005"]
[null,null,null,null,null,null,null,null,null,"70053010"]
[null,null,null,null,null,null,null,null,null,"70072190"]
[null,null,null,null,null,null,null,null,null,"7009"]
[null,null,null,null,null,null,null,null,null,"70091010"]
[null,null,null,null,null,null,null,null,null,"701110"]
[null,null,null,null,null,null,null,null,null,"70120000"]
[null,null,null,null,null,null,null,null,null,"70132800"]
[null,null,null,null,null,null,null,null,null,"70139190"]
[null,null,null,null,null,null,null,null,null,"701510"]
[null,null,null,null,null,null,null,null,null,"70161000"]
[null,null,null,null,null,null,null,null,null,"70179010"]
[null,null,null,null,null,null,null,null,null,"70179090"]
[null,null,null,null,null,null,null,null,null,"70189090"]
[null,null,null,null,null,null,null,null,null,"70195900"]
[null,null,null,null,null,null,null,null,null,"70200011"]
[null,null,null,null,null,null,null,null,null,"71"]
[null,null,null,null,null,null,null,null,null,"710221"]
[null,null,null,null,null,null,null,null,null,"71023910"]
[null,null,null,null,null,null,null,null,null,"71023990"]
[null,null,null,null,null,null,null,null,null,"71031024"]
[null,null,null,null,null,null,null,null,null,"71031059"]
[null,null,null,null,null,null,null,null,null,"71031064"]
[null,null,null,null,null,null,null,null,null,"71039120"]
[null,null,null,null,null,null,null,null,null,"71039921"]
[null,null,null,null,null,null,null,null,null,"71039941"]
[null,null,null,null,null,null,null,null,null,"71041000"]
[null,null,null,null,null,null,null,null,null,"710420"]
[null,null,null,null,null,null,null,null,null,"7106"]
[null,null,null,null,null,null,null,null,null,"71069290"]
[null,null,null,null,null,null,null,null,null,"7109"]
[null,null,null,null,null,null,null,null,null,"71103100"]
[null,null,null,null,null,null,null,null,null,"7112"]
[null,null,null,null,null,null,null,null,null,"71131120"]
[null,null,null,null,null,null,null,null,null,"71131960"]
[null,null,null,null,null,null,null,null,null,"71131990"]
[null,null,null,null,null,null,null,null,null,"71142010"]
[null,null,null,null,null,null,null,null,null,"71159010"]
[null,null,null,null,null,null,null,null,null,"71171910"]
[null,null,null,null,null,null,null,null,null,"71189000"]
[null,null,null,null,null,null,null,null,null,"72015010"]
[null,null,null,null,null,null,null,null,null,"72024900"]
[null,null,null,null,null,null,null,null,null,"72029911"]
[null,null,null,null,null,null,null,null,null,"72029913"]
[null,null,null,null,null,null,null,null,null,"72029932"]
[null,null,null,null,null,null,null,null,null,"72042190"]
[null,null,null,null,null,null,null,null,null,"72044900"]
[null,null,null,null,null,null,null,null,null,"72051090"]
[null,null,null,null,null,null,null,null,null,"72061090"]
[null,null,null,null,null,null,null,null,null,"720711"]
[null,null,null,null,null,null,null,null,null,"72071230"]
[null,null,null,null,null,null,null,null,null,"72071290"]
[null,null,null,null,null,null,null,null,null,"72072090"]
[null,null,null,null,null,null,null,null,null,"720826"]
[null,null,null,null,null,null,null,null,null,"720827"]
[null,null,null,null,null,null,null,null,null,"72083690"]
[null,null,null,null,null,null,null,null,null,"72083820"]
[null,null,null,null,null,null,null,null,null,"72083890"]
[null,null,null,null,null,null,null,null,null,"72085110"]
[null,null,null,null,null,null,null,null,null,"72085120"]
[null,null,null,null,null,null,null,null,null,"72085290"]
[null,null,null,null,null,null,null,null,null,"72085490"]
[null,null,null,null,null,null,null,null,null,"72091520"]
[null,null,null,null,null,null,null,null,null,"72091710"]
[null,null,null,null,null,null,null,null,null,"720925"]
[null,null,null,null,null,null,null,null,null,"72092630"]
[null,null,null,null,null,null,null,null,null,"72092820"]
[null,null,null,null,null,null,null,null,null,"72092830"]
[null,null,null,null,null,null,null,null,null,"72104100"]
[null,null,null,null,null,null,null,null,null,"72106100"]
[null,null,null,null,null,null,null,null,null,"72111410"]
[null,null,null,null,null,null,null,null,null,"72111920"]
[null,null,null,null,null,null,null,null,null,"72112320"]
[null,null,null,null,null,null,null,null,null,"72112940"]
[null,null,null,null,null,null,null,null,null,"7212"]
[null,null,null,null,null,null,null,null,null,"72122010"]
[null,null,null,null,null,null,null,null,null,"72123090"]
[null,null,null,null,null,null,null,null,null,"72131010"]
[null,null,null,null,null,null,null,null,null,"72139190"]
[null,null,null,null,null,null,null,null,null,"72141010"]
[null,null,null,null,null,null,null,null,null,"72149910"]
[null,null,null,null,null,null,null,null,null,"72159020"]
[null,null,null,null,null,null,null,null,null,"72162100"]
[null,null,null,null,null,null,null,null,null,"72164000"]
[null,null,null,null,null,null,null,null,null,"72169940"]
[null,null,null,null,null,null,null,null,null,"72172020"]
[null,null,null,null,null,null,null,null,null,"72179013"]
[null,null,null,null,null,null,null,null,null,"72189100"]
[null,null,null,null,null,null,null,null,null,"72191200"]
[null,null,null,null,null,null,null,null,null,"72192132"]
[null,null,null,null,null,null,null,null,null,"72192190"]
[null,null,null,null,null,null,null,null,null,"72192292"]
[null,null,null,null,null,null,null,null,null,"72192413"]
[null,null,null,null,null,null,null,null,null,"72193111"]
[null,null,null,null,null,null,null,null,null,"721933"]
[null,null,null,null,null,null,null,null,null,"72193510"]
[null,null,null,null,null,null,null,null,null,"722011"]
[null,null,null,null,null,null,null,null,null,"72201190"]
[null,null,null,null,null,null,null,null,null,"72202090"]
[null,null,null,null,null,null,null,null,null,"722090"]
[null,null,null,null,null,null,null,null,null,"72221111"]
[null,null,null,null,null,null,null,null,null,"72221191"]
[null,null,null,null,null,null,null,null,null,"72221999"]
[null,null,null,null,null,null,null,null,null,"72223011"]
[null,null,null,null,null,null,null,null,null,"72223092"]
[null,null,null,null,null,null,null,null,null,"722490"]
[null,null,null,null,null,null,null,null,null,"722519"]
[null,null,null,null,null,null,null,null,null,"72251910"]
[null,null,null,null,null,null,null,null,null,"72254013"]
[null,null,null,null,null,null,null,null,null,"722550"]
[null,null,null,null,null,null,null,null,null,"722619"]
[null,null,null,null,null,null,null,null,null,"722691"]
[null,null,null,null,null,null,null,null,null,"72269220"]
[null,null,null,null,null,null,null,null,null,"72269951"]
[null,null,null,null,null,null,null,null,null,"72279010"]
[null,null,null,null,null,null,null,null,null,"7228"]
[null,null,null,null,null,null,null,null,null,"72281010"]
[null,null,null,null,null,null,null,null,null,"72283024"]
[null,null,null,null,null,null,null,null,null,"72286091"]
[null,null,null,null,null,null,null,null,null,"72287021"]
[null,null,null,null,null,null,null,null,null,"722990"]
[null,null,null,null,null,null,null,null,null,"72299023"]
[null,null,null,null,null,null,null,null,null,"72299051"]
[null,null,null,null,null,null,null,null,null,"72299054"]
[null,null,null,null,null,null,null,null,null,"73012010"]
[null,null,null,null,null,null,null,null,null,"730290"]
[null,null,null,null,null,null,null,null,null,"73030090"]
[null,null,null,null,null,null,null,null,null,"73041190"]
[null,null,null,null,null,null,null,null,null,"73042310"]
[null,null,null,null,null,null,null,null,null,"73042990"]
[null,null,null,null,null,null,null,null,null,"73043929"]
[null,null,null,null,null,null,null,null,null,"73043931"]
[null,null,null,null,null,null,null,null,null,"73045910"]
[null,null,null,null,null,null,null,null,null,"730512"]
[null,null,null,null,null,null,null,null,null,"73051919"]
[null,null,null,null,null,null,null,null,null,"730539"]
[null,null,null,null,null,null,null,null,null,"73059091"]
[null,null,null,null,null,null,null,null,null,"73061919"]
[null,null,null,null,null,null,null,null,null,"730630"]
[null,null,null,null,null,null,null,null,null,"73063010"]
[null,null,null,null,null,null,null,null,null,"73069011"]
[null,null,null,null,null,null,null,null,null,"73071900"]
[null,null,null,null,null,null,null,null,null,"73079210"]
[null,null,null,null,null,null,null,null,null,"73081000"]
[null,null,null,null,null,null,null,null,null,"73084000"]
[null,null,null,null,null,null,null,null,null,"730900"]
[null,null,null,null,null,null,null,null,null,"73101020"]
[null,null,null,null,null,null,null,null,null,"73102920"]
[null,null,null,null,null,null,null,null,null,"7311"]
[null,null,null,null,null,null,null,null,null,"73121020"]
[null,null,null,null,null,null,null,null,null,"73141200"]
[null,null,null,null,null,null,null,null,null,"731419"]
[null,null,null,null,null,null,null,null,null,"73144210"]
[null,null,null,null,null,null,null,null,null,"73151210"]
[null,null,null,null,null,null,null,null,null,"73151290"]
[null,null,null,null,null,null,null,null,null,"7316"]
[null,null,null,null,null,null,null,null,null,"73170019"]
[null,null,null,null,null,null,null,null,null,"73181190"]
[null,null,null,null,null,null,null,null,null,"731829"]
[null,null,null,null,null,null,null,null,null,"73191090"]
[null,null,null,null,null,null,null,null,null,"73201019"]
[null,null,null,null,null,null,null,null,null,"73211110"]
[null,null,null,null,null,null,null,null,null,"73211320"]
[null,null,null,null,null,null,null,null,null,"73211390"]
[null,null,null,null,null,null,null,null,null,"73218910"]
[null,null,null,null,null,null,null,null,null,"73239190"]
[null,null,null,null,null,null,null,null,null,"73239390"]
[null,null,null,null,null,null,null,null,null,"7324"]
[null,null,null,null,null,null,null,null,null,"73259910"]
[null,null,null,null,null,null,null,null,null,"7326"]
[null,null,null,null,null,null,null,null,null,"73269020"]
[null,null,null,null,null,null,null,null,null,"73269030"]
[null,null,null,null,null,null,null,null,null,"74010090"]
[null,null,null,null,null,null,null,null,null,"74020010"]
[null,null,null,null,null,null,null,null,null,"74032210"]
[null,null,null,null,null,null,null,null,null,"74040019"]
[null,null,null,null,null,null,null,null,null,"74040029"]
[null,null,null,null,null,null,null,null,null,"74071040"]
[null,null,null,null,null,null,null,null,null,"74072210"]
[null,null,null,null,null,null,null,null,null,"74072220"]
[null,null,null,null,null,null,null,null,null,"74081910"]
[null,null,null,null,null,null,null,null,null,"740822"]
[null,null,null,null,null,null,null,null,null,"74091900"]
[null,null,null,null,null,null,null,null,null,"74101100"]
[null,null,null,null,null,null,null,null,null,"7412"]
[null,null,null,null,null,null,null,null,null,"7414"]
[null,null,null,null,null,null,null,null,null,"74152900"]
[null,null,null,null,null,null,null,null,null,"74153310"]
[null,null,null,null,null,null,null,null,null,"7417"]
[null,null,null,null,null,null,null,null,null,"74181010"]
[null,null,null,null,null,null,null,null,null,"74181090"]
[null,null,null,null,null,null,null,null,null,"74191029"]
[null,null,null,null,null,null,null,null,null,"7501"]
[null,null,null,null,null,null,null,null,null,"75022040"]
[null,null,null,null,null,null,null,null,null,"7505"]
[null,null,null,null,null,null,null,null,null,"750511"]
[null,null,null,null,null,null,null,null,null,"75061000"]
[null,null,null,null,null,null,null,null,null,"75089010"]
[null,null,null,null,null,null,null,null,null,"760110"]
[null,null,null,null,null,null,null,null,null,"76012090"]
[null,null,null,null,null,null,null,null,null,"76032000"]
[null,null,null,null,null,null,null,null,null,"76041010"]
[null,null,null,null,null,null,null,null,null,"76051991"]
[null,null,null,null,null,null,null,null,null,"76051999"]
[null,null,null,null,null,null,null,null,null,"76061200"]
[null,null,null,null,null,null,null,null,null,"760719"]
[null,null,null,null,null,null,null,null,null,"76071994"]
[null,null,null,null,null,null,null,null,null,"7609"]
[null,null,null,null,null,null,null,null,null,"7611"]
[null,null,null,null,null,null,null,null,null,"761290"]
[null,null,null,null,null,null,null,null,null,"76130013"]
[null,null,null,null,null,null,null,null,null,"76130019"]
[null,null,null,null,null,null,null,null,null,"76151011"]
[null,null,null,null,null,null,null,null,null,"76151029"]
[null,null,null,null,null,null,null,null,null,"76152090"]
[null,null,null,null,null,null,null,null,null,"77"]
[null,null,null,null,null,null,null,null,null,"78019930"]
[null,null,null,null,null,null,null,null,null,"78030021"]
[null,null,null,null,null,null,null,null,null,"78041990"]
[null,null,null,null,null,null,null,null,null,"7806"]
[null,null,null,null,null,null,null,null,null,"78060030"]
[null,null,null,null,null,null,null,null,null,"7902"]
[null,null,null,null,null,null,null,null,null,"79040011"]
[null,null,null,null,null,null,null,null,null,"7905"]
[null,null,null,null,null,null,null,null,null,"790700"]
[null,null,null,null,null,null,null,null,null,"8002"]
[null,null,null,null,null,null,null,null,null,"8003"]
[null,null,null,null,null,null,null,null,null,"80030040"]
[null,null,null,null,null,null,null,null,null,"8007"]
[null,null,null,null,null,null,null,null,null,"8023"]
[null,null,null,null,null,null,null,null,null,"81019600"]
[null,null,null,null,null,null,null,null,null,"810295"]
[null,null,null,null,null,null,null,null,null,"81032090"]
[null,null,null,null,null,null,null,null,null,"810430"]
[null,null,null,null,null,null,null,null,null,"810490"]
[null,null,null,null,null,null,null,null,null,"810520"]
[null,null,null,null,null,null,null,null,null,"81060020"]
[null,null,null,null,null,null,null,null,null,"81079090"]
[null,null,null,null,null,null,null,null,null,"81093000"]
[null,null,null,null,null,null,null,null,null,"81110020"]
[null,null,null,null,null,null,null,null,null,"81122900"]
[null,null,null,null,null,null,null,null,null,"81124010"]
[null,null,null,null,null,null,null,null,null,"81130020"]
[null,null,null,null,null,null,null,null,null,"81130030"]
[null,null,null,null,null,null,null,null,null,"82021090"]
[null,null,null,null,null,null,null,null,null,"82023900"]
[null,null,null,null,null,null,null,null,null,"82031000"]
[null,null,null,null,null,null,null,null,null,"82041120"]
[null,null,null,null,null,null,null,null,null,"82042000"]
[null,null,null,null,null,null,null,null,null,"82055940"]
[null,null,null,null,null,null,null,null,null,"82059090"]
[null,null,null,null,null,null,null,null,null,"8206"]
[null,null,null,null,null,null,null,null,null,"820760"]
[null,null,null,null,null,null,null,null,null,"82077010"]
[null,null,null,null,null,null,null,null,null,"82081000"]
[null,null,null,null,null,null,null,null,null,"8209"]
[null,null,null,null,null,null,null,null,null,"82111000"]
[null,null,null,null,null,null,null,null,null,"821210"]
[null,null,null,null,null,null,null,null,null,"82130000"]
[null,null,null,null,null,null,null,null,null,"82142090"]
[null,null,null,null,null,null,null,null,null,"82149010"]
[null,null,null,null,null,null,null,null,null,"83011000"]
[null,null,null,null,null,null,null,null,null,"8302"]
[null,null,null,null,null,null,null,null,null,"83023090"]
[null,null,null,null,null,null,null,null,null,"8303"]
[null,null,null,null,null,null,null,null,null,"83059020"]
[null,null,null,null,null,null,null,null,null,"83062120"]
[null,null,null,null,null,null,null,null,null,"83062910"]
[null,null,null,null,null,null,null,null,null,"83081010"]
[null,null,null,null,null,null,null,null,null,"83089039"]
[null,null,null,null,null,null,null,null,null,"83099020"]
[null,null,null,null,null,null,null,null,null,"83112000"]
[null,null,null,null,null,null,null,null,null,"84013000"]
[null,null,null,null,null,null,null,null,null,"840219"]
[null,null,null,null,null,null,null,null,null,"8404"]
[null,null,null,null,null,null,null,null,null,"84041000"]
[null,null,null,null,null,null,null,null,null,"8406"]
[null,null,null,null,null,null,null,null,null,"84073110"]
[null,null,null,null,null,null,null,null,null,"84073320"]
[null,null,null,null,null,null,null,null,null,"8408"]
[null,null,null,null,null,null,null,null,null,"84082010"]
[null,null,null,null,null,null,null,null,null,"84099113"]
[null,null,null,null,null,null,null,null,null,"84099911"]
[null,null,null,null,null,null,null,null,null,"84099912"]
[null,null,null,null,null,null,null,null,null,"8410"]
[null,null,null,null,null,null,null,null,null,"84101390"]
[null,null,null,null,null,null,null,null,null,"84118210"]
[null,null,null,null,null,null,null,null,null,"84121000"]
[null,null,null,null,null,null,null,null,null,"84123900"]
[null,null,null,null,null,null,null,null,null,"84129090"]
[null,null,null,null,null,null,null,null,null,"84132000"]
[null,null,null,null,null,null,null,null,null,"841350"]
[null,null,null,null,null,null,null,null,null,"84135021"]
[null,null,null,null,null,null,null,null,null,"84137091"]
[null,null,null,null,null,null,null,null,null,"84138110"]
[null,null,null,null,null,null,null,null,null,"841391"]
[null,null,null,null,null,null,null,null,null,"84142090"]
[null,null,null,null,null,null,null,null,null,"84145120"]
[null,null,null,null,null,null,null,null,null,"84145140"]
[null,null,null,null,null,null,null,null,null,"84145990"]
[null,null,null,null,null,null,null,null,null,"84149011"]
[null,null,null,null,null,null,null,null,null,"84151010"]
[null,null,null,null,null,null,null,null,null,"841583"]
[null,null,null,null,null,null,null,null,null,"84162000"]
[null,null,null,null,null,null,null,null,null,"84179000"]
[null,null,null,null,null,null,null,null,null,"841830"]
[null,null,null,null,null,null,null,null,null,"84186910"]
[null,null,null,null,null,null,null,null,null,"84186920"]
[null,null,null,null,null,null,null,null,null,"84191110"]
[null,null,null,null,null,null,null,null,null,"84194020"]
[null,null,null,null,null,null,null,null,null,"84195020"]
[null,null,null,null,null,null,null,null,null,"84198910"]
[null,null,null,null,null,null,null,null,null,"841990"]
[null,null,null,null,null,null,null,null,null,"8421"]
[null,null,null,null,null,null,null,null,null,"84211991"]
[null,null,null,null,null,null,null,null,null,"84211999"]
[null,null,null,null,null,null,null,null,null,"84213990"]
[null,null,null,null,null,null,null,null,null,"84221900"]
[null,null,null,null,null,null,null,null,null,"84231000"]
[null,null,null,null,null,null,null,null,null,"84238900"]
[null,null,null,null,null,null,null,null,null,"84242000"]
[null,null,null,null,null,null,null,null,null,"8425"]
[null,null,null,null,null,null,null,null,null,"84253900"]
[null,null,null,null,null,null,null,null,null,"84254900"]
[null,null,null,null,null,null,null,null,null,"84263000"]
[null,null,null,null,null,null,null,null,null,"84272000"]
[null,null,null,null,null,null,null,null,null,"84282019"]
[null,null,null,null,null,null,null,null,null,"84285020"]
[null,null,null,null,null,null,null,null,null,"84291110"]
[null,null,null,null,null,null,null,null,null,"84294020"]
[null,null,null,null,null,null,null,null,null,"84302000"]
[null,null,null,null,null,null,null,null,null,"84303110"]
[null,null,null,null,null,null,null,null,null,"84304130"]
[null,null,null,null,null,null,null,null,null,"843110"]
[null,null,null,null,null,null,null,null,null,"843139"]
[null,null,null,null,null,null,null,null,null,"84314920"]
[null,null,null,null,null,null,null,null,null,"84322100"]
[null,null,null,null,null,null,null,null,null,"84324200"]
[null,null,null,null,null,null,null,null,null,"8433"]
[null,null,null,null,null,null,null,null,null,"843311"]
[null,null,null,null,null,null,null,null,null,"84335100"]
[null,null,null,null,null,null,null,null,null,"84349020"]
[null,null,null,null,null,null,null,null,null,"8436"]
[null,null,null,null,null,null,null,null,null,"8437"]
[null,null,null,null,null,null,null,null,null,"84379090"]
[null,null,null,null,null,null,null,null,null,"84381010"]
[null,null,null,null,null,null,null,null,null,"84388090"]
[null,null,null,null,null,null,null,null,null,"843890"]
[null,null,null,null,null,null,null,null,null,"84399100"]
[null,null,null,null,null,null,null,null,null,"84413000"]
[null,null,null,null,null,null,null,null,null,"84421000"]
[null,null,null,null,null,null,null,null,null,"84424000"]
[null,null,null,null,null,null,null,null,null,"84425060"]
[null,null,null,null,null,null,null,null,null,"84431600"]
[null,null,null,null,null,null,null,null,null,"84431990"]
[null,null,null,null,null,null,null,null,null,"84432100"]
[null,null,null,null,null,null,null,null,null,"84433930"]
[null,null,null,null,null,null,null,null,null,"84433960"]
[null,null,null,null,null,null,null,null,null,"84435949"]
[null,null,null,null,null,null,null,null,null,"84439100"]
[null,null,null,null,null,null,null,null,null,"84439953"]
[null,null,null,null,null,null,null,null,null,"8445"]
[null,null,null,null,null,null,null,null,null,"84451910"]
[null,null,null,null,null,null,null,null,null,"84451960"]
[null,null,null,null,null,null,null,null,null,"84452012"]
[null,null,null,null,null,null,null,null,null,"844530"]
[null,null,null,null,null,null,null,null,null,"84454010"]
[null,null,null,null,null,null,null,null,null,"8446"]
[null,null,null,null,null,null,null,null,null,"84462910"]
[null,null,null,null,null,null,null,null,null,"84471111"]
[null,null,null,null,null,null,null,null,null,"844712"]
[null,null,null,null,null,null,null,null,null,"844720"]
[null,null,null,null,null,null,null,null,null,"8448"]
[null,null,null,null,null,null,null,null,null,"84483220"]
[null,null,null,null,null,null,null,null,null,"84483390"]
[null,null,null,null,null,null,null,null,null,"84484140"]
[null,null,null,null,null,null,null,null,null,"84484910"]
[null,null,null,null,null,null,null,null,null,"844851"]
[null,null,null,null,null,null,null,null,null,"84501100"]
[null,null,null,null,null,null,null,null,null,"84501200"]
[null,null,null,null,null,null,null,null,null,"84511090"]
[null,null,null,null,null,null,null,null,null,"84514019"]
[null,null,null,null,null,null,null,null,null,"84518021"]
[null,null,null,null,null,null,null,null,null,"84521019"]
[null,null,null,null,null,null,null,null,null,"845230"]
[null,null,null,null,null,null,null,null,null,"84529011"]
[null,null,null,null,null,null,null,null,null,"84541000"]
[null,null,null,null,null,null,null,null,null,"845420"]
[null,null,null,null,null,null,null,null,null,"84553000"]
[null,null,null,null,null,null,null,null,null,"84561000"]
[null,null,null,null,null,null,null,null,null,"84569020"]
[null,null,null,null,null,null,null,null,null,"845720"]
[null,null,null,null,null,null,null,null,null,"845730"]
[null,null,null,null,null,null,null,null,null,"845899"]
[null,null,null,null,null,null,null,null,null,"84589942"]
[null,null,null,null,null,null,null,null,null,"84589943"]
[null,null,null,null,null,null,null,null,null,"84592910"]
[null,null,null,null,null,null,null,null,null,"84593990"]
[null,null,null,null,null,null,null,null,null,"84594130"]
[null,null,null,null,null,null,null,null,null,"84595130"]
[null,null,null,null,null,null,null,null,null,"84595950"]
[null,null,null,null,null,null,null,null,null,"84596940"]
[null,null,null,null,null,null,null,null,null,"84602100"]
[null,null,null,null,null,null,null,null,null,"84602930"]
[null,null,null,null,null,null,null,null,null,"84602990"]
[null,null,null,null,null,null,null,null,null,"84604019"]
[null,null,null,null,null,null,null,null,null,"84612020"]
[null,null,null,null,null,null,null,null,null,"84614013"]
[null,null,null,null,null,null,null,null,null,"84614029"]
[null,null,null,null,null,null,null,null,null,"84615029"]
[null,null,null,null,null,null,null,null,null,"84621013"]
[null,null,null,null,null,null,null,null,null,"84621020"]
[null,null,null,null,null,null,null,null,null,"846239"]
[null,null,null,null,null,null,null,null,null,"84629110"]
[null,null,null,null,null,null,null,null,null,"84629914"]
[null,null,null,null,null,null,null,null,null,"84629990"]
[null,null,null,null,null,null,null,null,null,"84633010"]
[null,null,null,null,null,null,null,null,null,"84639010"]
[null,null,null,null,null,null,null,null,null,"84652000"]
[null,null,null,null,null,null,null,null,null,"84659100"]
[null,null,null,null,null,null,null,null,null,"8466"]
[null,null,null,null,null,null,null,null,null,"84669200"]
[null,null,null,null,null,null,null,null,null,"84671110"]
[null,null,null,null,null,null,null,null,null,"84678910"]
[null,null,null,null,null,null,null,null,null,"84681000"]
[null,null,null,null,null,null,null,null,null,"84690030"]
[null,null,null,null,null,null,null,null,null,"8470"]
[null,null,null,null,null,null,null,null,null,"84701000"]
[null,null,null,null,null,null,null,null,null,"847090"]
[null,null,null,null,null,null,null,null,null,"847141"]
[null,null,null,null,null,null,null,null,null,"84716022"]
[null,null,null,null,null,null,null,null,null,"84716029"]
[null,null,null,null,null,null,null,null,null,"84717050"]
[null,null,null,null,null,null,null,null,null,"84723000"]
[null,null,null,null,null,null,null,null,null,"84729093"]
[null,null,null,null,null,null,null,null,null,"84732900"]
[null,null,null,null,null,null,null,null,null,"84733010"]
[null,null,null,null,null,null,null,null,null,"847340"]
[null,null,null,null,null,null,null,null,null,"84742010"]
[null,null,null,null,null,null,null,null,null,"84743120"]
[null,null,null,null,null,null,null,null,null,"84752900"]
[null,null,null,null,null,null,null,null,null,"84768120"]
[null,null,null,null,null,null,null,null,null,"84768910"]
[null,null,null,null,null,null,null,null,null,"8477"]
[null,null,null,null,null,null,null,null,null,"84778090"]
[null,null,null,null,null,null,null,null,null,"84791000"]
[null,null,null,null,null,null,null,null,null,"84797900"]
[null,null,null,null,null,null,null,null,null,"84798930"]
[null,null,null,null,null,null,null,null,null,"84799010"]
[null,null,null,null,null,null,null,null,null,"84803000"]
[null,null,null,null,null,null,null,null,null,"84812000"]
[null,null,null,null,null,null,null,null,null,"84813000"]
[null,null,null,null,null,null,null,null,null,"84818090"]
[null,null,null,null,null,null,null,null,null,"84821052"]
[null,null,null,null,null,null,null,null,null,"84822011"]
[null,null,null,null,null,null,null,null,null,"84825013"]
[null,null,null,null,null,null,null,null,null,"84829114"]
[null,null,null,null,null,null,null,null,null,"84831010"]
[null,null,null,null,null,null,null,null,null,"848360"]
[null,null,null,null,null,null,null,null,null,"84836010"]
[null,null,null,null,null,null,null,null,null,"84859000"]
[null,null,null,null,null,null,null,null,null,"84864000"]
[null,null,null,null,null,null,null,null,null,"85011012"]
[null,null,null,null,null,null,null,null,null,"85013119"]
[null,null,null,null,null,null,null,null,null,"85013310"]
[null,null,null,null,null,null,null,null,null,"850151"]
[null,null,null,null,null,null,null,null,null,"85015310"]
[null,null,null,null,null,null,null,null,null,"85015390"]
[null,null,null,null,null,null,null,null,null,"85016420"]
[null,null,null,null,null,null,null,null,null,"85021200"]
[null,null,null,null,null,null,null,null,null,"85022010"]
[null,null,null,null,null,null,null,null,null,"8503"]
[null,null,null,null,null,null,null,null,null,"85041020"]
[null,null,null,null,null,null,null,null,null,"85043100"]
[null,null,null,null,null,null,null,null,null,"85044040"]
[null,null,null,null,null,null,null,null,null,"850450"]
[null,null,null,null,null,null,null,null,null,"850511"]
[null,null,null,null,null,null,null,null,null,"85063000"]
[null,null,null,null,null,null,null,null,null,"85069000"]
[null,null,null,null,null,null,null,null,null,"85078000"]
[null,null,null,null,null,null,null,null,null,"8509"]
[null,null,null,null,null,null,null,null,null,"8510"]
[null,null,null,null,null,null,null,null,null,"85112010"]
[null,null,null,null,null,null,null,null,null,"85112090"]
[null,null,null,null,null,null,null,null,null,"85121000"]
[null,null,null,null,null,null,null,null,null,"85131020"]
[null,null,null,null,null,null,null,null,null,"85139000"]
[null,null,null,null,null,null,null,null,null,"8515"]
[null,null,null,null,null,null,null,null,null,"851539"]
[null,null,null,null,null,null,null,null,null,"85153990"]
[null,null,null,null,null,null,null,null,null,"85166000"]
[null,null,null,null,null,null,null,null,null,"85167100"]
[null,null,null,null,null,null,null,null,null,"851711"]
[null,null,null,null,null,null,null,null,null,"85171912"]
[null,null,null,null,null,null,null,null,null,"85173000"]
[null,null,null,null,null,null,null,null,null,"85175092"]
[null,null,null,null,null,null,null,null,null,"85176240"]
[null,null,null,null,null,null,null,null,null,"85176930"]
[null,null,null,null,null,null,null,null,null,"85178010"]
[null,null,null,null,null,null,null,null,null,"85178020"]
[null,null,null,null,null,null,null,null,null,"8519"]
[null,null,null,null,null,null,null,null,null,"85192100"]
[null,null,null,null,null,null,null,null,null,"85198910"]
[null,null,null,null,null,null,null,null,null,"85199920"]
[null,null,null,null,null,null,null,null,null,"85203390"]
[null,null,null,null,null,null,null,null,null,"85211019"]
[null,null,null,null,null,null,null,null,null,"85219020"]
[null,null,null,null,null,null,null,null,null,"8523"]
[null,null,null,null,null,null,null,null,null,"85231122"]
[null,null,null,null,null,null,null,null,null,"85231313"]
[null,null,null,null,null,null,null,null,null,"85232020"]
[null,null,null,null,null,null,null,null,null,"85232940"]
[null,null,null,null,null,null,null,null,null,"85234120"]
[null,null,null,null,null,null,null,null,null,"85234930"]
[null,null,null,null,null,null,null,null,null,"85234970"]
[null,null,null,null,null,null,null,null,null,"85235220"]
[null,null,null,null,null,null,null,null,null,"85238040"]
[null,null,null,null,null,null,null,null,null,"85239060"]
[null,null,null,null,null,null,null,null,null,"85243290"]
[null,null,null,null,null,null,null,null,null,"85245111"]
[null,null,null,null,null,null,null,null,null,"85245219"]
[null,null,null,null,null,null,null,null,null,"85245312"]
[null,null,null,null,null,null,null,null,null,"85249190"]
[null,null,null,null,null,null,null,null,null,"85249910"]
[null,null,null,null,null,null,null,null,null,"85251040"]
[null,null,null,null,null,null,null,null,null,"85252016"]
[null,null,null,null,null,null,null,null,null,"85255010"]
[null,null,null,null,null,null,null,null,null,"85256012"]
[null,null,null,null,null,null,null,null,null,"85258030"]
[null,null,null,null,null,null,null,null,null,"85269150"]
[null,null,null,null,null,null,null,null,null,"85272900"]
[null,null,null,null,null,null,null,null,null,"85273100"]
[null,null,null,null,null,null,null,null,null,"85279990"]
[null,null,null,null,null,null,null,null,null,"85281212"]
[null,null,null,null,null,null,null,null,null,"85281299"]
[null,null,null,null,null,null,null,null,null,"85284100"]
[null,null,null,null,null,null,null,null,null,"85285200"]
[null,null,null,null,null,null,null,null,null,"85287217"]
[null,null,null,null,null,null,null,null,null,"85291012"]
[null,null,null,null,null,null,null,null,null,"85291019"]
[null,null,null,null,null,null,null,null,null,"85299010"]
[null,null,null,null,null,null,null,null,null,"85309000"]
[null,null,null,null,null,null,null,null,null,"8532"]
[null,null,null,null,null,null,null,null,null,"85323000"]
[null,null,null,null,null,null,null,null,null,"85332121"]
[null,null,null,null,null,null,null,null,null,"85333120"]
[null,null,null,null,null,null,null,null,null,"85334010"]
[null,null,null,null,null,null,null,null,null,"85334030"]
[null,null,null,null,null,null,null,null,null,"85351030"]
[null,null,null,null,null,null,null,null,null,"85352121"]
[null,null,null,null,null,null,null,null,null,"85352919"]
[null,null,null,null,null,null,null,null,null,"85353090"]
[null,null,null,null,null,null,null,null,null,"85359040"]
[null,null,null,null,null,null,null,null,null,"85361060"]
[null,null,null,null,null,null,null,null,null,"85362040"]
[null,null,null,null,null,null,null,null,null,"85364100"]
[null,null,null,null,null,null,null,null,null,"853669"]
[null,null,null,null,null,null,null,null,null,"85372000"]
[null,null,null,null,null,null,null,null,null,"8539"]
[null,null,null,null,null,null,null,null,null,"85392920"]
[null,null,null,null,null,null,null,null,null,"85393220"]
[null,null,null,null,null,null,null,null,null,"85394100"]
[null,null,null,null,null,null,null,null,null,"854012"]
[null,null,null,null,null,null,null,null,null,"85401200"]
[null,null,null,null,null,null,null,null,null,"85409100"]
[null,null,null,null,null,null,null,null,null,"85413010"]
[null,null,null,null,null,null,null,null,null,"85416000"]
[null,null,null,null,null,null,null,null,null,"85423100"]
[null,null,null,null,null,null,null,null,null,"8543"]
[null,null,null,null,null,null,null,null,null,"854320"]
[null,null,null,null,null,null,null,null,null,"85437012"]
[null,null,null,null,null,null,null,null,null,"85437013"]
[null,null,null,null,null,null,null,null,null,"85437035"]
[null,null,null,null,null,null,null,null,null,"85437062"]
[null,null,null,null,null,null,null,null,null,"85437099"]
[null,null,null,null,null,null,null,null,null,"85438939"]
[null,null,null,null,null,null,null,null,null,"85438960"]
[null,null,null,null,null,null,null,null,null,"85438994"]
[null,null,null,null,null,null,null,null,null,"85441910"]
[null,null,null,null,null,null,null,null,null,"85443000"]
[null,null,null,null,null,null,null,null,null,"85444119"]
[null,null,null,null,null,null,null,null,null,"85444290"]
[null,null,null,null,null,null,null,null,null,"85444991"]
[null,null,null,null,null,null,null,null,null,"85445120"]
[null,null,null,null,null,null,null,null,null,"85445950"]
[null,null,null,null,null,null,null,null,null,"85447090"]
[null,null,null,null,null,null,null,null,null,"85451100"]
[null,null,null,null,null,null,null,null,null,"8546"]
[null,null,null,null,null,null,null,null,null,"85462029"]
[null,null,null,null,null,null,null,null,null,"85469010"]
[null,null,null,null,null,null,null,null,null,"85479010"]
[null,null,null,null,null,null,null,null,null,"85481020"]
[null,null,null,null,null,null,null,null,null,"860290"]
[null,null,null,null,null,null,null,null,null,"8605"]
[null,null,null,null,null,null,null,null,null,"860691"]
[null,null,null,null,null,null,null,null,null,"86069110"]
[null,null,null,null,null,null,null,null,null,"86071100"]
[null,null,null,null,null,null,null,null,null,"860799"]
[null,null,null,null,null,null,null,null,null,"86079990"]
[null,null,null,null,null,null,null,null,null,"86090000"]
[null,null,null,null,null,null,null,null,null,"870130"]
[null,null,null,null,null,null,null,null,null,"87019300"]
[null,null,null,null,null,null,null,null,null,"87021021"]
[null,null,null,null,null,null,null,null,null,"87021022"]
[null,null,null,null,null,null,null,null,null,"87022022"]
[null,null,null,null,null,null,null,null,null,"87023012"]
[null,null,null,null,null,null,null,null,null,"87024012"]
[null,null,null,null,null,null,null,null,null,"87029012"]
[null,null,null,null,null,null,null,null,null,"87029022"]
[null,null,null,null,null,null,null,null,null,"87032110"]
[null,null,null,null,null,null,null,null,null,"87032291"]
[null,null,null,null,null,null,null,null,null,"87032310"]
[null,null,null,null,null,null,null,null,null,"87032410"]
[null,null,null,null,null,null,null,null,null,"87033192"]
[null,null,null,null,null,null,null,null,null,"87033310"]
[null,null,null,null,null,null,null,null,null,"87034030"]
[null,null,null,null,null,null,null,null,null,"870360"]
[null,null,null,null,null,null,null,null,null,"87037030"]
[null,null,null,null,null,null,null,null,null,"87038020"]
[null,null,null,null,null,null,null,null,null,"870390"]
[null,null,null,null,null,null,null,null,null,"87042110"]
[null,null,null,null,null,null,null,null,null,"87042319"]
[null,null,null,null,null,null,null,null,null,"87043211"]
[null,null,null,null,null,null,null,null,null,"87052000"]
[null,null,null,null,null,null,null,null,null,"87060029"]
[null,null,null,null,null,null,null,null,null,"87071000"]
[null,null,null,null,null,null,null,null,null,"87083000"]
[null,null,null,null,null,null,null,null,null,"87083100"]
[null,null,null,null,null,null,null,null,null,"87089300"]
[null,null,null,null,null,null,null,null,null,"87111020"]
[null,null,null,null,null,null,null,null,null,"87112019"]
[null,null,null,null,null,null,null,null,null,"87113020"]
[null,null,null,null,null,null,null,null,null,"87116030"]
[null,null,null,null,null,null,null,null,null,"87119010"]
[null,null,null,null,null,null,null,null,null,"87139090"]
[null,null,null,null,null,null,null,null,null,"8714"]
[null,null,null,null,null,null,null,null,null,"87149100"]
[null,null,null,null,null,null,null,null,null,"87149400"]
[null,null,null,null,null,null,null,null,null,"8715"]
[null,null,null,null,null,null,null,null,null,"87164000"]
[null,null,null,null,null,null,null,null,null,"8801"]
[null,null,null,null,null,null,null,null,null,"8802"]
[null,null,null,null,null,null,null,null,null,"88032000"]
[null,null,null,null,null,null,null,null,null,"88033000"]
[null,null,null,null,null,null,null,null,null,"8901"]
[null,null,null,null,null,null,null,null,null,"89011020"]
[null,null,null,null,null,null,null,null,null,"89020010"]
[null,null,null,null,null,null,null,null,null,"89039990"]
[null,null,null,null,null,null,null,null,null,"8906"]
[null,null,null,null,null,null,null,null,null,"9001"]
[null,null,null,null,null,null,null,null,null,"90019010"]
[null,null,null,null,null,null,null,null,null,"90022000"]
[null,null,null,null,null,null,null,null,null,"90031900"]
[null,null,null,null,null,null,null,null,null,"90051000"]
[null,null,null,null,null,null,null,null,null,"90061000"]
[null,null,null,null,null,null,null,null,null,"90065310"]
[null,null,null,null,null,null,null,null,null,"90069900"]
[null,null,null,null,null,null,null,null,null,"90079200"]
[null,null,null,null,null,null,null,null,null,"90085020"]
[null,null,null,null,null,null,null,null,null,"90091100"]
[null,null,null,null,null,null,null,null,null,"9010"]
[null,null,null,null,null,null,null,null,null,"90111000"]
[null,null,null,null,null,null,null,null,null,"901210"]
[null,null,null,null,null,null,null,null,null,"90131090"]
[null,null,null,null,null,null,null,null,null,"90141000"]
[null,null,null,null,null,null,null,null,null,"90149000"]
[null,null,null,null,null,null,null,null,null,"90158030"]
[null,null,null,null,null,null,null,null,null,"90158090"]
[null,null,null,null,null,null,null,null,null,"901720"]
[null,null,null,null,null,null,null,null,null,"90173022"]
[null,null,null,null,null,null,null,null,null,"901812"]
[null,null,null,null,null,null,null,null,null,"90182000"]
[null,null,null,null,null,null,null,null,null,"90183230"]
[null,null,null,null,null,null,null,null,null,"90185030"]
[null,null,null,null,null,null,null,null,null,"90189024"]
[null,null,null,null,null,null,null,null,null,"90189025"]
[null,null,null,null,null,null,null,null,null,"90189096"]
[null,null,null,null,null,null,null,null,null,"90189099"]
[null,null,null,null,null,null,null,null,null,"9020"]
[null,null,null,null,null,null,null,null,null,"90214010"]
[null,null,null,null,null,null,null,null,null,"90219010"]
[null,null,null,null,null,null,null,null,null,"902290"]
[null,null,null,null,null,null,null,null,null,"90230090"]
[null,null,null,null,null,null,null,null,null,"9024"]
[null,null,null,null,null,null,null,null,null,"902511"]
[null,null,null,null,null,null,null,null,null,"90258020"]
[null,null,null,null,null,null,null,null,null,"90262000"]
[null,null,null,null,null,null,null,null,null,"90273020"]
[null,null,null,null,null,null,null,null,null,"90275090"]
[null,null,null,null,null,null,null,null,null,"90279020"]
[null,null,null,null,null,null,null,null,null,"90283090"]
[null,null,null,null,null,null,null,null,null,"90289010"]
[null,null,null,null,null,null,null,null,null,"90292030"]
[null,null,null,null,null,null,null,null,null,"90303310"]
[null,null,null,null,null,null,null,null,null,"90303930"]
[null,null,null,null,null,null,null,null,null,"903089"]
[null,null,null,null,null,null,null,null,null,"90312000"]
[null,null,null,null,null,null,null,null,null,"90321090"]
[null,null,null,null,null,null,null,null,null,"90328910"]
[null,null,null,null,null,null,null,null,null,"9033"]
[null,null,null,null,null,null,null,null,null,"91"]
[null,null,null,null,null,null,null,null,null,"910199"]
[null,null,null,null,null,null,null,null,null,"91021200"]
[null,null,null,null,null,null,null,null,null,"91029910"]
[null,null,null,null,null,null,null,null,null,"91051090"]
[null,null,null,null,null,null,null,null,null,"91059100"]
[null,null,null,null,null,null,null,null,null,"91081200"]
[null,null,null,null,null,null,null,null,null,"91081900"]
[null,null,null,null,null,null,null,null,null,"910993"]
[null,null,null,null,null,null,null,null,null,"91111000"]
[null,null,null,null,null,null,null,null,null,"911320"]
[null,null,null,null,null,null,null,null,null,"91141020"]
[null,null,null,null,null,null,null,null,null,"911490"]
[null,null,null,null,null,null,null,null,null,"92021000"]
[null,null,null,null,null,null,null,null,null,"92051000"]
[null,null,null,null,null,null,null,null,null,"920590"]
[null,null,null,null,null,null,null,null,null,"9208"]
[null,null,null,null,null,null,null,null,null,"92099100"]
[null,null,null,null,null,null,null,null,null,"93011090"]
[null,null,null,null,null,null,null,null,null,"93031000"]
[null,null,null,null,null,null,null,null,null,"93059100"]
[null,null,null,null,null,null,null,null,null,"93070000"]
[null,null,null,null,null,null,null,null,null,"94015200"]
[null,null,null,null,null,null,null,null,null,"94018000"]
[null,null,null,null,null,null,null,null,null,"9402"]
[null,null,null,null,null,null,null,null,null,"940310"]
[null,null,null,null,null,null,null,null,null,"94035090"]
[null,null,null,null,null,null,null,null,null,"94038100"]
[null,null,null,null,null,null,null,null,null,"94042190"]
[null,null,null,null,null,null,null,null,null,"94049011"]
[null,null,null,null,null,null,null,null,null,"94049091"]
[null,null,null,null,null,null,null,null,null,"940520"]
[null,null,null,null,null,null,null,null,null,"94055020"]
[null,null,null,null,null,null,null,null,null,"94059100"]
[null,null,null,null,null,null,null,null,null,"940610"]
[null,null,null,null,null,null,null,null,null,"94069010"]
[null,null,null,null,null,null,null,null,null,"95021010"]
[null,null,null,null,null,null,null,null,null,"95030010"]
[null,null,null,null,null,null,null,null,null,"95034920"]
[null,null,null,null,null,null,null,null,null,"95034930"]
[null,null,null,null,null,null,null,null,null,"95038090"]
[null,null,null,null,null,null,null,null,null,"95049020"]
[null,null,null,null,null,null,null,null,null,"950590"]
[null,null,null,null,null,null,null,null,null,"95063100"]
[null,null,null,null,null,null,null,null,null,"95065990"]
[null,null,null,null,null,null,null,null,null,"95066930"]
[null,null,null,null,null,null,null,null,null,"95069920"]
[null,null,null,null,null,null,null,null,null,"95069930"]
[null,null,null,null,null,null,null,null,null,"95079010"]
[null,null,null,null,null,null,null,null,null,"96"]
[null,null,null,null,null,null,null,null,null,"9602"]
[null,null,null,null,null,null,null,null,null,"96032100"]
[null,null,null,null,null,null,null,null,null,"960340"]
[null,null,null,null,null,null,null,null,null,"9606"]
[null,null,null,null,null,null,null,null,null,"960630"]
[null,null,null,null,null,null,null,null,null,"9607"]
[null,null,null,null,null,null,null,null,null,"96071990"]
[null,null,null,null,null,null,null,null,null,"96081099"]
[null,null,null,null,null,null,null,null,null,"96083029"]
[null,null,null,null,null,null,null,null,null,"960860"]
[null,null,null,null,null,null,null,null,null,"960899"]
[null,null,null,null,null,null,null,null,null,"96099030"]
[null,null,null,null,null,null,null,null,null,"9610"]
[null,null,null,null,null,null,null,null,null,"96121020"]
[null,null,null,null,null,null,null,null,null,"96138090"]
[null,null,null,null,null,null,null,null,null,"96151100"]
[null,null,null,null,null,null,null,null,null,"96162000"]
[null,null,null,null,null,null,null,null,null,"9619"]
[null,null,null,null,null,null,null,null,null,"9701"]
[null,null,null,null,null,null,null,null,null,"97019099"]
[null,null,null,null,null,null,null,null,null,"9704"]
[null,null,null,null,null,null,null,null,null,"970400"]
[null,null,null,null,null,null,null,null,null,"97060000"]
[null,null,null,null,null,null,null,null,null,"98020000"]
[null,null,null,null,null,null,null,null,null,"98041000"]
[null,null,null,null,null,null,null,null,null,995412]
[null,null,null,null,null,null,null,null,null,995424]
[null,null,null,null,null,null,null,null,null,995427]
[null,null,null,null,null,null,null,null,null,995451]
[null,null,null,null,null,null,null,null,null,995452]
[null,null,null,null,null,null,null,null,null,995461]
[null,null,null,null,null,null,null,null,null,995472]
[null,null,null,null,null,null,null,null,null,996111]
[null,null,null,null,null,null,null,null,null,996329]
[null,null,null,null,null,null,null,null,null,9964]
[null,null,null,null,null,null,null,null,null,996421]
[null,null,null,null,null,null,null,null,null,996511]
[null,null,null,null,null,null,null,null,null,996512]
[null,null,null,null,null,null,null,null,null,996601]
[null,null,null,null,null,null,null,null,null,996602]
[null,null,null,null,null,null,null,null,null,996603]
[null,null,null,null,null,null,null,null,null,996609]
[null,null,null,null,null,null,null,null,null,9967]
[null,null,null,null,null,null,null,null,null,996711]
[null,null,null,null,null,null,null,null,null,996712]
[null,null,null,null,null,null,null,null,null,996713]
[null,null,null,null,null,null,null,null,null,996719]
[null,null,null,null,null,null,null,null,null,996721]
[null,null,null,null,null,null,null,null,null,996722]
[null,null,null,null,null,null,null,null,null,996729]
[null,null,null,null,null,null,null,null,null,996731]
[null,null,null,null,null,null,null,null,null,996739]
[null,null,null,null,null,null,null,null,null,996741]
[null,null,null,null,null,null,null,null,null,996742]
[null,null,null,null,null,null,null,null,null,996743]
[null,null,null,null,null,null,null,null,null,996744]
[null,null,null,null,null,null,null,null,null,996749]
[null,null,null,null,null,null,null,null,null,996751]
[null,null,null,null,null,null,null,null,null,996752]
[null,null,null,null,null,null,null,null,null,996753]
[null,null,null,null,null,null,null,null,null,996759]
[null,null,null,null,null,null,null,null,null,996761]
[null,null,null,null,null,null,null,null,null,996762]
[null,null,null,null,null,null,null,null,null,996763]
[null,null,null,null,null,null,null,null,null,996764]
[null,null,null,null,null,null,null,null,null,996791]
[null,null,null,null,null,null,null,null,null,996792]
[null,null,null,null,null,null,null,null,null,996793]
[null,null,null,null,null,null,null,null,null,996799]
[null,null,null,null,null,null,null,null,null,9968]
[null,null,null,null,null,null,null,null,null,996811]
[null,null,null,null,null,null,null,null,null,996812]
[null,null,null,null,null,null,null,null,null,996813]
[null,null,null,null,null,null,null,null,null,996819]
[null,null,null,null,null,null,null,null,null,9969]
[null,null,null,null,null,null,null,null,null,996911]
[null,null,null,null,null,null,null,null,null,996912]
[null,null,null,null,null,null,null,null,null,996913]
[null,null,null,null,null,null,null,null,null,996921]
[null,null,null,null,null,null,null,null,null,996922]
[null,null,null,null,null,null,null,null,null,996929]
[null,null,null,null,null,null,null,null,null,9971]
[null,null,null,null,null,null,null,null,null,997111]
[null,null,null,null,null,null,null,null,null,997112]
[null,null,null,null,null,null,null,null,null,997113]
[null,null,null,null,null,null,null,null,null,997114]
[null,null,null,null,null,null,null,null,null,997119]
[null,null,null,null,null,null,null,null,null,997120]
[null,null,null,null,null,null,null,null,null,997131]
[null,null,null,null,null,null,null,null,null,997132]
[null,null,null,null,null,null,null,null,null,997133]
[null,null,null,null,null,null,null,null,null,997134]
[null,null,null,null,null,null,null,null,null,997135]
[null,null,null,null,null,null,null,null,null,997136]
[null,null,null,null,null,null,null,null,null,997137]
[null,null,null,null,null,null,null,null,null,997139]
[null,null,null,null,null,null,null,null,null,997141]
[null,null,null,null,null,null,null,null,null,997142]
[null,null,null,null,null,null,null,null,null,997143]
[null,null,null,null,null,null,null,null,null,997144]
[null,null,null,null,null,null,null,null,null,997145]
[null,null,null,null,null,null,null,null,null,997146]
[null,null,null,null,null,null,null,null,null,997147]
[null,null,null,null,null,null,null,null,null,997149]
[null,null,null,null,null,null,null,null,null,997151]
[null,null,null,null,null,null,null,null,null,997152]
[null,null,null,null,null,null,null,null,null,997153]
[null,null,null,null,null,null,null,null,null,997154]
[null,null,null,null,null,null,null,null,null,997155]
[null,null,null,null,null,null,null,null,null,997156]
[null,null,null,null,null,null,null,null,null,997157]
[null,null,null,null,null,null,null,null,null,997158]
[null,null,null,null,null,null,null,null,null,997159]
[null,null,null,null,null,null,null,null,null,997161]
[null,null,null,null,null,null,null,null,null,997162]
[null,null,null,null,null,null,null,null,null,997163]
[null,null,null,null,null,null,null,null,null,997164]
[null,null,null,null,null,null,null,null,null,997169]
[null,null,null,null,null,null,null,null,null,997171]
[null,null,null,null,null,null,null,null,null,997172]
[null,null,null,null,null,null,null,null,null,9972]
[null,null,null,null,null,null,null,null,null,997211]
[null,null,null,null,null,null,null,null,null,997212]
[null,null,null,null,null,null,null,null,null,997213]
[null,null,null,null,null,null,null,null,null,997214]
[null,null,null,null,null,null,null,null,null,997215]
[null,null,null,null,null,null,null,null,null,997221]
[null,null,null,null,null,null,null,null,null,997222]
[null,null,null,null,null,null,null,null,null,997223]
[null,null,null,null,null,null,null,null,null,997224]
[null,null,null,null,null,null,null,null,null,9973]
[null,null,null,null,null,null,null,null,null,997311]
[null,null,null,null,null,null,null,null,null,997312]
[null,null,null,null,null,null,null,null,null,997313]
[null,null,null,null,null,null,null,null,null,997314]
[null,null,null,null,null,null,null,null,null,997315]
[null,null,null,null,null,null,null,null,null,997316]
[null,null,null,null,null,null,null,null,null,997319]
[null,null,null,null,null,null,null,null,null,997321]
[null,null,null,null,null,null,null,null,null,997322]
[null,null,null,null,null,null,null,null,null,997323]
[null,null,null,null,null,null,null,null,null,997324]
[null,null,null,null,null,null,null,null,null,997325]
[null,null,null,null,null,null,null,null,null,997326]
[null,null,null,null,null,null,null,null,null,997327]
[null,null,null,null,null,null,null,null,null,997329]
[null,null,null,null,null,null,null,null,null,997331]
[null,null,null,null,null,null,null,null,null,997332]
[null,null,null,null,null,null,null,null,null,997333]
[null,null,null,null,null,null,null,null,null,997334]
[null,null,null,null,null,null,null,null,null,997335]
[null,null,null,null,null,null,null,null,null,997336]
[null,null,null,null,null,null,null,null,null,997337]
[null,null,null,null,null,null,null,null,null,997338]
[null,null,null,null,null,null,null,null,null,997339]
[null,null,null,null,null,null,null,null,null,9981]
[null,null,null,null,null,null,null,null,null,998111]
[null,null,null,null,null,null,null,null,null,998112]
[null,null,null,null,null,null,null,null,null,998113]
[null,null,null,null,null,null,null,null,null,998114]
[null,null,null,null,null,null,null,null,null,998121]
[null,null,null,null,null,null,null,null,null,998122]
[null,null,null,null,null,null,null,null,null,998130]
[null,null,null,null,null,null,null,null,null,998141]
[null,null,null,null,null,null,null,null,null,998142]
[null,null,null,null,null,null,null,null,null,998143]
[null,null,null,null,null,null,null,null,null,998144]
[null,null,null,null,null,null,null,null,null,998145]
[null,null,null,null,null,null,null,null,null,9982]
[null,null,null,null,null,null,null,null,null,998211]
[null,null,null,null,null,null,null,null,null,998212]
[null,null,null,null,null,null,null,null,null,998213]
[null,null,null,null,null,null,null,null,null,998214]
[null,null,null,null,null,null,null,null,null,998215]
[null,null,null,null,null,null,null,null,null,998216]
[null,null,null,null,null,null,null,null,null,998221]
[null,null,null,null,null,null,null,null,null,998222]
[null,null,null,null,null,null,null,null,null,998223]
[null,null,null,null,null,null,null,null,null,998224]
[null,null,null,null,null,null,null,null,null,998231]
[null,null,null,null,null,null,null,null,null,998232]
[null,null,null,null,null,null,null,null,null,998240]
[null,null,null,null,null,null,null,null,null,9983]
[null,null,null,null,null,null,null,null,null,998311]
[null,null,null,null,null,null,null,null,null,998312]
[null,null,null,null,null,null,null,null,null,998313]
[null,null,null,null,null,null,null,null,null,998314]
[null,null,null,null,null,null,null,null,null,998315]
[null,null,null,null,null,null,null,null,null,998316]
[null,null,null,null,null,null,null,null,null,998319]
[null,null,null,null,null,null,null,null,null,998321]
[null,null,null,null,null,null,null,null,null,998322]
[null,null,null,null,null,null,null,null,null,998323]
[null,null,null,null,null,null,null,null,null,998324]
[null,null,null,null,null,null,null,null,null,998325]
[null,null,null,null,null,null,null,null,null,998326]
[null,null,null,null,null,null,null,null,null,998327]
[null,null,null,null,null,null,null,null,null,998328]
[null,null,null,null,null,null,null,null,null,998331]
[null,null,null,null,null,null,null,null,null,998332]
[null,null,null,null,null,null,null,null,null,998333]
[null,null,null,null,null,null,null,null,null,998334]
[null,null,null,null,null,null,null,null,null,998335]
[null,null,null,null,null,null,null,null,null,998336]
[null,null,null,null,null,null,null,null,null,998337]
[null,null,null,null,null,null,null,null,null,998338]
[null,null,null,null,null,null,null,null,null,998339]
[null,null,null,null,null,null,null,null,null,998341]
[null,null,null,null,null,null,null,null,null,998342]
[null,null,null,null,null,null,null,null,null,998343]
[null,null,null,null,null,null,null,null,null,998344]
[null,null,null,null,null,null,null,null,null,998345]
[null,null,null,null,null,null,null,null,null,998346]
[null,null,null,null,null,null,null,null,null,998347]
[null,null,null,null,null,null,null,null,null,998348]
[null,null,null,null,null,null,null,null,null,998349]
[null,null,null,null,null,null,null,null,null,998351]
[null,null,null,null,null,null,null,null,null,998352]
[null,null,null,null,null,null,null,null,null,998359]
[null,null,null,null,null,null,null,null,null,998361]
[null,null,null,null,null,null,null,null,null,998362]
[null,null,null,null,null,null,null,null,null,998363]
[null,null,null,null,null,null,null,null,null,998364]
[null,null,null,null,null,null,null,null,null,998365]
[null,null,null,null,null,null,null,null,null,998366]
[null,null,null,null,null,null,null,null,null,998371]
[null,null,null,null,null,null,null,null,null,998372]
[null,null,null,null,null,null,null,null,null,998381]
[null,null,null,null,null,null,null,null,null,998382]
[null,null,null,null,null,null,null,null,null,998383]
[null,null,null,null,null,null,null,null,null,998384]
[null,null,null,null,null,null,null,null,null,998385]
[null,null,null,null,null,null,null,null,null,998386]
[null,null,null,null,null,null,null,null,null,998387]
[null,null,null,null,null,null,null,null,null,998391]
[null,null,null,null,null,null,null,null,null,998392]
[null,null,null,null,null,null,null,null,null,998393]
[null,null,null,null,null,null,null,null,null,998394]
[null,null,null,null,null,null,null,null,null,998395]
[null,null,null,null,null,null,null,null,null,998396]
[null,null,null,null,null,null,null,null,null,998397]
[null,null,null,null,null,null,null,null,null,998399]
[null,null,null,null,null,null,null,null,null,9984]
[null,null,null,null,null,null,null,null,null,998411]
[null,null,null,null,null,null,null,null,null,998412]
[null,null,null,null,null,null,null,null,null,998413]
[null,null,null,null,null,null,null,null,null,998414]
[null,null,null,null,null,null,null,null,null,998415]
[null,null,null,null,null,null,null,null,null,998419]
[null,null,null,null,null,null,null,null,null,998421]
[null,null,null,null,null,null,null,null,null,998422]
[null,null,null,null,null,null,null,null,null,998423]
[null,null,null,null,null,null,null,null,null,998424]
[null,null,null,null,null,null,null,null,null,998429]
[null,null,null,null,null,null,null,null,null,998431]
[null,null,null,null,null,null,null,null,null,998432]
[null,null,null,null,null,null,null,null,null,998433]
[null,null,null,null,null,null,null,null,null,998434]
[null,null,null,null,null,null,null,null,null,998439]
[null,null,null,null,null,null,null,null,null,998441]
[null,null,null,null,null,null,null,null,null,998442]
[null,null,null,null,null,null,null,null,null,998443]
[null,null,null,null,null,null,null,null,null,998451]
[null,null,null,null,null,null,null,null,null,998452]
[null,null,null,null,null,null,null,null,null,998453]
[null,null,null,null,null,null,null,null,null,998461]
[null,null,null,null,null,null,null,null,null,998462]
[null,null,null,null,null,null,null,null,null,998463]
[null,null,null,null,null,null,null,null,null,998464]
[null,null,null,null,null,null,null,null,null,998465]
[null,null,null,null,null,null,null,null,null,998466]
[null,null,null,null,null,null,null,null,null,9985]
[null,null,null,null,null,null,null,null,null,998511]
[null,null,null,null,null,null,null,null,null,998512]
[null,null,null,null,null,null,null,null,null,998513]
[null,null,null,null,null,null,null,null,null,998514]
[null,null,null,null,null,null,null,null,null,998515]
[null,null,null,null,null,null,null,null,null,998516]
[null,null,null,null,null,null,null,null,null,998517]
[null,null,null,null,null,null,null,null,null,998519]
[null,null,null,null,null,null,null,null,null,998521]
[null,null,null,null,null,null,null,null,null,998522]
[null,null,null,null,null,null,null,null,null,998523]
[null,null,null,null,null,null,null,null,null,998524]
[null,null,null,null,null,null,null,null,null,998525]
[null,null,null,null,null,null,null,null,null,998526]
[null,null,null,null,null,null,null,null,null,998527]
[null,null,null,null,null,null,null,null,null,998528]
[null,null,null,null,null,null,null,null,null,998529]
[null,null,null,null,null,null,null,null,null,998531]
[null,null,null,null,null,null,null,null,null,998532]
[null,null,null,null,null,null,null,null,null,998533]
[null,null,null,null,null,null,null,null,null,998534]
[null,null,null,null,null,null,null,null,null,998535]
[null,null,null,null,null,null,null,null,null,998536]
[null,null,null,null,null,null,null,null,null,998537]
[null,null,null,null,null,null,null,null,null,998538]
[null,null,null,null,null,null,null,null,null,998539]
[null,null,null,null,null,null,null,null,null,998540]
[null,null,null,null,null,null,null,null,null,998541]
[null,null,null,null,null,null,null,null,null,998542]
[null,null,null,null,null,null,null,null,null,998549]
[null,null,null,null,null,null,null,null,null,998551]
[null,null,null,null,null,null,null,null,null,998552]
[null,null,null,null,null,null,null,null,null,998553]
[null,null,null,null,null,null,null,null,null,998554]
[null,null,null,null,null,null,null,null,null,998555]
[null,null,null,null,null,null,null,null,null,998556]
[null,null,null,null,null,null,null,null,null,998557]
[null,null,null,null,null,null,null,null,null,998559]
[null,null,null,null,null,null,null,null,null,998591]
[null,null,null,null,null,null,null,null,null,998592]
[null,null,null,null,null,null,null,null,null,998593]
[null,null,null,null,null,null,null,null,null,998594]
[null,null,null,null,null,null,null,null,null,998595]
[null,null,null,null,null,null,null,null,null,998596]
[null,null,null,null,null,null,null,null,null,998597]
[null,null,null,null,null,null,null,null,null,998598]
[null,null,null,null,null,null,null,null,null,998599]
[null,null,null,null,null,null,null,null,null,9986]
[null,null,null,null,null,null,null,null,null,998611]
[null,null,null,null,null,null,null,null,null,998612]
[null,null,null,null,null,null,null,null,null,998613]
[null,null,null,null,null,null,null,null,null,998614]
[null,null,null,null,null,null,null,null,null,998615]
[null,null,null,null,null,null,null,null,null,998619]
[null,null,null,null,null,null,null,null,null,998621]
[null,null,null,null,null,null,null,null,null,998622]
[null,null,null,null,null,null,null,null,null,998631]
[null,null,null,null,null,null,null,null,null,998632]
[null,null,null,null,null,null,null,null,null,998633]
[null,null,null,null,null,null,null,null,null,998634]
[null,null,null,null,null,null,null,null,null,9987]
[null,null,null,null,null,null,null,null,null,998711]
[null,null,null,null,null,null,null,null,null,998712]
[null,null,null,null,null,null,null,null,null,998713]
[null,null,null,null,null,null,null,null,null,998714]
[null,null,null,null,null,null,null,null,null,998715]
[null,null,null,null,null,null,null,null,null,998716]
[null,null,null,null,null,null,null,null,null,998717]
[null,null,null,null,null,null,null,null,null,998718]
[null,null,null,null,null,null,null,null,null,998719]
[null,null,null,null,null,null,null,null,null,998721]
[null,null,null,null,null,null,null,null,null,998722]
[null,null,null,null,null,null,null,null,null,998723]
[null,null,null,null,null,null,null,null,null,998724]
[null,null,null,null,null,null,null,null,null,998725]
[null,null,null,null,null,null,null,null,null,998726]
[null,null,null,null,null,null,null,null,null,998727]
[null,null,null,null,null,null,null,null,null,998729]
[null,null,null,null,null,null,null,null,null,998731]
[null,null,null,null,null,null,null,null,null,998732]
[null,null,null,null,null,null,null,null,null,998733]
[null,null,null,null,null,null,null,null,null,998734]
[null,null,null,null,null,null,null,null,null,998735]
[null,null,null,null,null,null,null,null,null,998736]
[null,null,null,null,null,null,null,null,null,998739]
[null,null,null,null,null,null,null,null,null,9988]
[null,null,null,null,null,null,null,null,null,998811]
[null,null,null,null,null,null,null,null,null,998812]
[null,null,null,null,null,null,null,null,null,998813]
[null,null,null,null,null,null,null,null,null,998814]
[null,null,null,null,null,null,null,null,null,998815]
[null,null,null,null,null,null,null,null,null,998816]
[null,null,null,null,null,null,null,null,null,998817]
[null,null,null,null,null,null,null,null,null,998818]
[null,null,null,null,null,null,null,null,null,998819]
[null,null,null,null,null,null,null,null,null,998821]
[null,null,null,null,null,null,null,null,null,998822]
[null,null,null,null,null,null,null,null,null,998823]
[null,null,null,null,null,null,null,null,null,998831]
[null,null,null,null,null,null,null,null,null,998832]
[null,null,null,null,null,null,null,null,null,998841]
[null,null,null,null,null,null,null,null,null,998842]
[null,null,null,null,null,null,null,null,null,998843]
[null,null,null,null,null,null,null,null,null,998851]
[null,null,null,null,null,null,null,null,null,998852]
[null,null,null,null,null,null,null,null,null,998853]
[null,null,null,null,null,null,null,null,null,998860]
[null,null,null,null,null,null,null,null,null,998871]
[null,null,null,null,null,null,null,null,null,998872]
[null,null,null,null,null,null,null,null,null,998873]
[null,null,null,null,null,null,null,null,null,998874]
[null,null,null,null,null,null,null,null,null,998875]
[null,null,null,null,null,null,null,null,null,998876]
[null,null,null,null,null,null,null,null,null,998877]
[null,null,null,null,null,null,null,null,null,998881]
[null,null,null,null,null,null,null,null,null,998882]
[null,null,null,null,null,null,null,null,null,998891]
[null,null,null,null,null,null,null,null,null,998892]
[null,null,null,null,null,null,null,null,null,998893]
[null,null,null,null,null,null,null,null,null,998894]
[null,null,null,null,null,null,null,null,null,998895]
[null,null,null,null,null,null,null,null,null,998896]
[null,null,null,null,null,null,null,null,null,998897]
[null,null,null,null,null,null,null,null,null,998898]
[null,null,null,null,null,null,null,null,null,9989]
[null,null,null,null,null,null,null,null,null,998911]
[null,null,null,null,null,null,null,null,null,998912]
[null,null,null,null,null,null,null,null,null,998920]
[null,null,null,null,null,null,null,null,null,998931]
[null,null,null,null,null,null,null,null,null,998932]
[null,null,null,null,null,null,null,null,null,998933]
[null,null,null,null,null,null,null,null,null,998941]
[null,null,null,null,null,null,null,null,null,998942]
[null,null,null,null,null,null,null,null,null,9991]
[null,null,null,null,null,null,null,null,null,999111]
[null,null,null,null,null,null,null,null,null,999112]
[null,null,null,null,null,null,null,null,null,999113]
[null,null,null,null,null,null,null,null,null,999119]
[null,null,null,null,null,null,null,null,null,999121]
[null,null,null,null,null,null,null,null,null,999122]
[null,null,null,null,null,null,null,null,null,999123]
[null,null,null,null,null,null,null,null,null,999124]
[null,null,null,null,null,null,null,null,null,999125]
[null,null,null,null,null,null,null,null,null,999126]
[null,null,null,null,null,null,null,null,null,999127]
[null,null,null,null,null,null,null,null,null,999128]
[null,null,null,null,null,null,null,null,null,999129]
[null,null,null,null,null,null,null,null,null,999131]
[null,null,null,null,null,null,null,null,null,999132]
[null,null,null,null,null,null,null,null,null,999133]
[null,null,null,null,null,null,null,null,null,999134]
[null,null,null,null,null,null,null,null,null,9992]
[null,null,null,null,null,null,null,null,null,999210]
[null,null,null,null,null,null,null,null,null,999220]
[null,null,null,null,null,null,null,null,null,999231]
[null,null,null,null,null,null,null,null,null,999232]
[null,null,null,null,null,null,null,null,null,999241]
[null,null,null,null,null,null,null,null,null,999242]
[null,null,null,null,null,null,null,null,null,999243]
[null,null,null,null,null,null,null,null,null,999249]
[null,null,null,null,null,null,null,null,null,999259]
[null,null,null,null,null,null,null,null,null,999291]
[null,null,null,null,null,null,null,null,null,999292]
[null,null,null,null,null,null,null,null,null,999293]
[null,null,null,null,null,null,null,null,null,999294]
[null,null,null,null,null,null,null,null,null,999295]
[null,null,null,null,null,null,null,null,null,999299]
[null,null,null,null,null,null,null,null,null,9993]
[null,null,null,null,null,null,null,null,null,999311]
[null,null,null,null,null,null,null,null,null,999312]
[null,null,null,null,null,null,null,null,null,999313]
[null,null,null,null,null,null,null,null,null,999314]
[null,null,null,null,null,null,null,null,null,999315]
[null,null,null,null,null,null,null,null,null,999316]
[null,null,null,null,null,null,null,null,null,999317]
[null,null,null,null,null,null,null,null,null,999319]
[null,null,null,null,null,null,null,null,null,999321]
[null,null,null,null,null,null,null,null,null,999322]
[null,null,null,null,null,null,null,null,null,999331]
[null,null,null,null,null,null,null,null,null,999332]
[null,null,null,null,null,null,null,null,null,999333]
[null,null,null,null,null,null,null,null,null,999334]
[null,null,null,null,null,null,null,null,null,999341]
[null,null,null,null,null,null,null,null,null,999349]
[null,null,null,null,null,null,null,null,null,999351]
[null,null,null,null,null,null,null,null,null,999352]
[null,null,null,null,null,null,null,null,null,999353]
[null,null,null,null,null,null,null,null,null,999359]
[null,null,null,null,null,null,null,null,null,9994]
[null,null,null,null,null,null,null,null,null,999411]
[null,null,null,null,null,null,null,null,null,999412]
[null,null,null,null,null,null,null,null,null,999421]
[null,null,null,null,null,null,null,null,null,999422]
[null,null,null,null,null,null,null,null,null,999423]
[null,null,null,null,null,null,null,null,null,999424]
[null,null,null,null,null,null,null,null,null,999431]
[null,null,null,null,null,null,null,null,null,999432]
[null,null,null,null,null,null,null,null,null,999433]
[null,null,null,null,null,null,null,null,null,999441]
[null,null,null,null,null,null,null,null,null,999442]
[null,null,null,null,null,null,null,null,null,999443]
[null,null,null,null,null,null,null,null,null,999449]
[null,null,null,null,null,null,null,null,null,999451]
[null,null,null,null,null,null,null,null,null,999459]
[null,null,null,null,null,null,null,null,null,999490]
[null,null,null,null,null,null,null,null,null,9995]
[null,null,null,null,null,null,null,null,null,999511]
[null,null,null,null,null,null,null,null,null,999512]
[null,null,null,null,null,null,null,null,null,999520]
[null,null,null,null,null,null,null,null,null,999591]
[null,null,null,null,null,null,null,null,null,999592]
[null,null,null,null,null,null,null,null,null,999593]
[null,null,null,null,null,null,null,null,null,999594]
[null,null,null,null,null,null,null,null,null,999595]
[null,null,null,null,null,null,null,null,null,999596]
[null,null,null,null,null,null,null,null,null,999597]
[null,null,null,null,null,null,null,null,null,999598]
[null,null,null,null,null,null,null,null,null,999599]
[null,null,null,null,null,null,null,null,null,9996]
[null,null,null,null,null,null,null,null,null,999611]
[null,null,null,null,null,null,null,null,null,999612]
[null,null,null,null,null,null,null,null,null,999613]
[null,null,null,null,null,null,null,null,null,999614]
[null,null,null,null,null,null,null,null,null,999615]
[null,null,null,null,null,null,null,null,null,999621]
[null,null,null,null,null,null,null,null,null,999622]
[null,null,null,null,null,null,null,null,null,999623]
[null,null,null,null,null,null,null,null,null,999629]
[null,null,null,null,null,null,null,null,null,999631]
[null,null,null,null,null,null,null,null,null,999632]
[null,null,null,null,null,null,null,null,null,999633]
[null,null,null,null,null,null,null,null,null,999641]
[null,null,null,null,null,null,null,null,null,999642]
[null,null,null,null,null,null,null,null,null,999651]
[null,null,null,null,null,null,null,null,null,999652]
[null,null,null,null,null,null,null,null,null,999659]
[null,null,null,null,null,null,null,null,null,999661]
[null,null,null,null,null,null,null,null,null,999662]
[null,null,null,null,null,null,null,null,null,999691]
[null,null,null,null,null,null,null,null,null,999692]
[null,null,null,null,null,null,null,null,null,999693]
[null,null,null,null,null,null,null,null,null,999694]
[null,null,null,null,null,null,null,null,null,999699]
[null,null,null,null,null,null,null,null,null,9997]
[null,null,null,null,null,null,null,null,null,999711]
[null,null,null,null,null,null,null,null,null,999712]
[null,null,null,null,null,null,null,null,null,999713]
[null,null,null,null,null,null,null,null,null,999714]
[null,null,null,null,null,null,null,null,null,999715]
[null,null,null,null,null,null,null,null,null,999719]
[null,null,null,null,null,null,null,null,null,999721]
[null,null,null,null,null,null,null,null,null,999722]
[null,null,null,null,null,null,null,null,null,999723]
[null,null,null,null,null,null,null,null,null,999729]
[null,null,null,null,null,null,null,null,null,999731]
[null,null,null,null,null,null,null,null,null,999732]
[null,null,null,null,null,null,null,null,null,999791]
[null,null,null,null,null,null,null,null,null,999792]
[null,null,null,null,null,null,null,null,null,999793]
[null,null,null,null,null,null,null,null,null,999794]
[null,null,null,null,null,null,null,null,null,999795]
[null,null,null,null,null,null,null,null,null,999799]
[null,null,null,null,null,null,null,null,null,9998]
[null,null,null,null,null,null,null,null,null,999800]
[null,null,null,null,null,null,null,null,null,9999]
[null,null,null,null,null,null,null,null,null,999900]